Workbook

Sheet Identification
B2: Année du bilan : 2020 | J2: =IF(OR(NM="Choisir une municipalité",NM=""),"","Municipalité : "&NM&" ("&codegeo&")") -> 
B3: Bilan 2020 de la Stratégie municipale d’économie d’eau potable
B7: IDENTIFICATION
B9: SECTION 1 - PRÉSENTATION DU BILAN ANNUEL DE LA STRATÉGIE MUNICIPALE D'ÉCONOMIE D'EAU POTABLE
B11: Mise en contexte
C12: La Stratégie québécoise d’économie d’eau potable pour l’horizon 2019-2025 s’inscrit dans le contexte mondial du resserrement des politiques relatives à l’eau, dans une optique de gestion intégrée et dans une perspective de développement durable. Elle vise à doter les municipalités des outils nécessaires leur permettant de poser un diagnostic clair et précis sur l’utilisation de l’eau dans chaque territoire par rapport aux normes reconnues.
C14: Les données recueillies dans le Bilan annuel de la Stratégie municipale d’économie d’eau potable (Bilan) sont destinées à fournir des informations pertinentes aux municipalités et au ministère des Affaires municipales et de l'Habitation (MAMH) sur l'usage de l'eau potable au Québec. Il dresse l’état de la situation et le portrait des actions progressives à mettre en place dans le contexte de la Stratégie 2019-2025. La production du Bilan demeure l’étape essentielle pour mesurer l’utilisation de l’eau potable au sein de la municipalité, ce qui en fait la base fondamentale de toute démarche d’économie d’eau.
C16: Afin de faciliter la tâche aux répondants municipaux pour compléter le Bilan, deux outils sont disponibles. Tout d'abord, l'audit de l'eau de l'American Water Works Association (AWWA) est disponible afin de pouvoir compléter la feuille « Audit de l'eau ». Ensuite, l'outil d'évaluation des besoins d'investissement (Outil BI) est disponible afin de pouvoir compléter la feuille « Coût ». L’information colligée dans ces documents peut être importée directement dans le Bilan à l’aide du processus d’importation automatique des données situé à la section 3.
C18: Le Bilan est complété annuellement par les municipalités et transmis au MAMH avant le 1er septembre de chaque année suivante. Par exemple, le Bilan 2020 est à remettre d'ici le 1er septembre 2021.
B20: Mode d'emploi
B21: • | C21: Les feuilles jaunes sont à remplir. Une section pour inscrire des commentaires s’y trouvent.
B22: • | C22: Les éléments de la liste de vérification, à la fin de chaque feuille, doivent être respectés avant de passer à la feuille suivante.
B23: • | C23: Un outil de conversion des unités de mesure est disponible tout au bas dans la feuille « Aide ».
B24: • | C24: Il faut activer les macros en cliquant « Activer le contenu » dans la bande jaune au haut de votre écran, comme illustré ci-dessous :
B25: • | C25: En cas de difficulté, cliquer sur les numéros soulignés en bleu, à gauche du nom de l'article, pour obtenir des directives et compléments d’information aux différentes étapes se trouvant dans l'aide du Bilan.
B27: Composition du Bilan
C28: Feuilles à compléter
C29: Identification | E29: Identification de la municipalité, des répondants principaux et présentation du Bilan.
C30: Audit de l'eau | E30: Calcul des indicateurs de performance en fonction des données entrées dans les cellules.
C31: État & Plan d'action | E31: Présentation de l'état de la situation et du plan d'action pour la gestion durable de l'eau et des actifs municipaux.
C32: Coût | E32: Calcul du coût des services d'eau et des besoins d'investissement pour les infrastructures municipales d'eau.
C34: Feuilles à consulter
C35: Rapport | E35: Rapport annuel sur la gestion de l'eau potable à présenter au conseil municipal.
C36: Aide | E36: Aide du Bilan de l'usage de l'eau potable. Cette feuille présente la description de chacune des données à fournir.
C37: Statistiques | E37: Tableau de statistiques des municipalités.
C39: Types de case du Bilan | G39: Types d'affichage à l'intérieur des cases selon les valeurs
D41: Valeur à inscrire obligatoirement. | G41: x x x | H41: Valeur inscrite acceptée
D43: Valeur à inscrire si possible | G43: x x x | H43: Valeur à justifier
D45: Valeur calculée automatiquement ou à remplir par le MAMH. | G45: x x x | H45: Valeur erronée
B47: Pour toute aide supplémentaire, communiquez avec l'équipe de la Stratégie : | G47: Coordonnées de l'équipe de soutien technique de la Stratégie
B48: Pour plus d'information sur la Stratégie, consultez le site Web : | G48: Site web de la Stratégie
B50: SECTION 2 - IDENTIFICATION DU RÉPONDANT PRINCIPAL
B52: 2.1 | C52: ANNÉE DU PRÉSENT BILAN : | E52: 2020
B54: 2.2 | C54: IDENTIFICATION DE LA MUNICIPALITÉ :
C55: Nom de la municipalité : | D55: Choisir une municipalité
C56: Désignation : | D56: =IFERROR(VLOOKUP(codegeo,Statistiques!$B$10:$E$1117,4,FALSE),"") -> 
C57: Code géographique : | D57: =IF(ISNA(MATCH(D55,Statistiques!C10:C1117,0)),"",INDEX(Statistiques!B10:B1117,MATCH(D55,Statistiques!C10:C1117,0))) -> 
C58: Région administrative : | D58: =IF(D57<>"",VLOOKUP(VLOOKUP(D57,Statistiques!B10:D1117,3,FALSE),Statistiques!B1131:C1147,2,FALSE)&" ("&VLOOKUP(D57,Statistiques!B10:D1117,3,FALSE)&")","") -> 
B60: 2.3 | C60: IDENTIFICATION DES RÉPONDANTS PRINCIPAUX :
D61: Répondant #1 | F61: Répondant #2 (facultatif) | H61: Répondant #3 (facultatif)
C62: Prénom :
C63: Nom :
C64: Fonction :
C65: Courriel :
C66: Téléphone :
C67: Poste :
B69: SECTION 3 - IMPORTATION DES DONNÉES
B71: 3.1 | C71: IMPORTATION DES DONNÉES DES AUDITS DE L'EAU DE L'AWWA :
F73: ← Cliquez ici pour débuter l'importation des audits de l'eau de l'AWWA
B75: 3.2 | C75: IMPORTATION DES DONNÉES DE L'OUTIL D'ÉVALUATION DES BESOINS D'INVESTISSEMENT (BI) :
F77: ← Cliquez ici pour débuter l'importation de l'Outil BI
B79: SECTION 4 - COMMENTAIRES DE LA MUNICIPALITÉ
B81: Commentaires de la municipalité, s'il y a lieu :
B84: SECTION 5 - VALIDATION
B86: Section réservée au MAMH :
D87: Date d'approbation par le MAMH :
B89: Commentaires du MAMH, s'il y a lieu :
B92: Liste de validation
B93: Les cases identifiées par une bordure rouge sont remplies. | I93: =IF(AND(COUNTA(D62:D66)=5,NM<>"Choisir une municipalité",NM<>""),"Respecté","Non respecté") -> Non respecté
G427: ND

Sheet Audit de l'eau
B2: Année du bilan : 2020 | V2: =Identification!$J$2 -> 
B3: =Identification!B3 -> Bilan 2020 de la Stratégie municipale d’économie d’eau potable
AB4: Myenne | AD4: Nombre d'audits AWWA importés
AA5: Oui | AB5: Canadienne | AC5: 220 | AD5: =COUNTA(WASdata[Nom de la municipalité]) -> 0 | AR5: =IF(OR(AB18<>"Respecté",AC18<>"Respecté"),"",IF($O$13<1,"",O29)) -> 
AA6: Non | AB6: Ontarienne | AC6: 184
B7: AUDIT DE L'EAU | AB7: Liste de validation encadrée de rouge | AC7: Liste de validation remplie de rouge | AD7: PER | AE7: PERI | AF7: IFI | AG7: Objectif IFI | AH7: Recherche de fuites? | AI7: Nom du réseau | AJ7: Numéro MELCC | AK7: Nb de logements | AL7: Pers/log | AM7: Pop desservie | AN7: Longueur de ce réseau (km) | AO7: Nbre de branchements | AP7: Longueur moyenne des branchements | AR7: Pression | AS7: Indice de demande limité? | AT7: Consommation résidentielle estimée (ML/an) | AU7: Eau distribuée (ML/an) | AV7: Conso résidentielle (l/pers/d) | AW7: Quantité d'eau distribuée par personne | AX7: Résultat de validité de données | AY7: Résidentiel par jour | AZ7: Total par jour | BB7: Objectif IFI atteint? | BC7: Nb B x P | BD7: L x P | BE7: Estimation de la consommation non résidentielle
AA8: BS1 | AB8: =IF(AND(COUNTA(O19:R20,O22,O35)=4,O23<>"",O31<>"",O32<>"",O33<>"",O36<>"",O26<>"",O27<>"",O28<>"",O29<>"",O38<>"",O13<>"",O47<>""),"Respecté","Non respecté") -> Non respecté | AC8: =IF(AND(O35<>"",O36<>"",O35>O36),"Non respecté",IF(AND(O35<>"",O36<>"",O38<>"",(O36-O35)<O38),"Non respecté","Respecté")) -> Respecté | AD8: =IF($O$13<1,"",AE8*AF8) ->  | AE8: =IF($O$13<1,"",O39) ->  | AF8: =IF($O$13<1,"",O43) ->  | AG8: =IFERROR(ROUND(IF($O$13<1,"",IF(O27="","",IF(AND(O27<1000,AS8="Oui"),2,IF(AND(O27<1000,AS8="Non"),3,IF(AND(O27>=1000,O27<=100000,AS8="Oui"),2+O27/100000,IF(AND(O27>=1000,O27<=100000,AS8="Non"),3+O27/100000,IF(AND(O27>100000,AS8="Oui"),3,IF(AND(O27>100000,AS8="Non"),4,"")))))))),1),"") ->  | AH8: =IF(AF8="","",IF(AF8>AG8,"Oui","Non")) ->  | AI8: =IF($O$13<1,"",IF(O19="","",O19)) ->  | AJ8: =IF($O$13<1,"",IF(O20="","",O20)) ->  | AK8: =IF($O$13<1,"",O22) -> 0 | AL8: =IF($O$13<1,"",O23) ->  | AM8: =IF($O$13<1,"",O24) ->  | AN8: =IF($O$13<1,"",O26) -> 0 | AO8: =IF($O$13<1,"",O27) -> 0 | AP8: =IF($O$13<1,"",O28) -> 0 | AQ8: =IF($O$13<1,"",AO8*AP8) -> 0 | AR8: =IF(OR(AB18<>"Respecté",AC18<>"Respecté"),"",IF($O$13<1,"",O29)) ->  | AS8: =IF($O$13<1,"",IF(COUNTA(O31:O33)<3,"",IF(OR(O31="Oui",O32="Oui",O33="Oui"),"Oui","Non"))) ->  | AT8: =IF($O$13<1,"",O35) -> 0 | AU8: =IF($O$13<1,"",O36) -> 0 | AV8: =IF($O$13<1,"",O45) ->  | AW8: =IF($O$13<1,"",R36) ->  | AX8: =IF($O$13<1,"",O47) -> 0 | AY8: =IF(AND(AM8<>"",AV8<>""),AV8*AM8,"") ->  | AZ8: =IF(AU8<>"",AU8*1000000/IF(MOD(Identification!$E$52,4)=0,366,365),"") -> 0 | BA8: =IF(COUNT(AM8,AV8)<2,"",AV8*AM8) ->  | BB8: =IF(AF8="","",IF(AF8>AG8,"Non","Oui")) ->  | BC8: =IF(ISERROR(AO8*AR8),"",AO8*AR8) ->  | BD8: =IF(ISERROR(AN8*AR8),"",AN8*AR8) ->  | BE8: =IF($O$13<1,"",AU8-AT8-AD8) -> 
B9: Un audit de l'eau de l'AWWA est à compléter pour chaque réseau de distribution d'eau potable distinct. Afin d'incorporer les données des audits de l'eau de l'AWWA, il faut les importer à l'aide de la macro d'importation présentée à l'article 3.1 de l'onglet « Identification». L'ensemble des cases blanches seront complétées à la suite de l'importation. Les cases grises doivent être complétées. | AA9: BS2 | AB9: =IF($O$13<2,"Respecté",IF(AND(COUNTA(O63:R64,O66,O80)=4,O67<>"",O75<>"",O76<>"",O77<>"",O79<>"",O70<>"",O71<>"",O72<>"",O73<>"",O82<>"",O91<>""),"Respecté","Non respecté")) -> Respecté | AC9: =IF($O$13<2,"Respecté",IF(AND(O79<>"",O80<>"",O79>O80),"Non respecté",IF(AND(O79<>"",O80<>"",O82<>"",(O80-O79)<O82),"Non respecté","Respecté"))) -> Respecté | AD9: =IF($O$13<2,"",AE9*AF9) ->  | AE9: =IF($O$13<2,"",O83) ->  | AF9: =IF($O$13<2,"",O87) ->  | AG9: =IFERROR(ROUND(IF($O$13<2,"",IF(O71="","",IF(AND(O71<1000,AS9="Oui"),2,IF(AND(O71<1000,AS9="Non"),3,IF(AND(O71>=1000,O71<=100000,AS9="Oui"),2+O71/100000,IF(AND(O71>=1000,O71<=100000,AS9="Non"),3+O71/100000,IF(AND(O71>100000,AS9="Oui"),3,IF(AND(O71>100000,AS9="Non"),4,"")))))))),1),"") ->  | AI9: =IF($O$13<2,"",IF(O63="","",O63)) ->  | AJ9: =IF($O$13<2,"",IF(O64="","",O64)) ->  | AK9: =IF($O$13<2,"",O66) ->  | AL9: =IF($O$13<2,"",O67) ->  | AM9: =IF($O$13<2,"",O68) ->  | AN9: =IF($O$13<2,"",O70) ->  | AO9: =IF($O$13<2,"",O71) ->  | AP9: =IF($O$13<2,"",O72) ->  | AQ9: =IF($O$13<2,"",AO9*AP9) ->  | AR9: =IF(OR(AB18<>"Respecté",AC18<>"Respecté"),"",IF($O$13<2,"",O73)) ->  | AS9: =IF($O$13<2,"",IF(COUNTA(O75:O77)<3,"",IF(OR(O75="Oui",O76="Oui",O77="Oui"),"Oui","Non"))) ->  | AT9: =IF($O$13<2,"",O79) ->  | AU9: =IF($O$13<2,"",O80) ->  | AV9: =IF($O$13<2,"",O89) ->  | AW9: =IF($O$13<2,"",R80) ->  | AX9: =IF($O$13<2,"",O91) ->  | AZ9: =IF(AU9<>"",AU9*1000000/IF(MOD(Identification!$E$52,4)=0,366,365),"") ->  | BA9: =IF(COUNT(AM9,AV9)<2,"",AV9*AM9) ->  | BB9: =IF(AF9="","",IF(AF9>AG9,"Non","Oui")) ->  | BC9: =IF(ISERROR(AO9*AR9),"",AO9*AR9) ->  | BD9: =IF(ISERROR(AN9*AR9),"",AN9*AR9) ->  | BE9: =IF($O$13<2,"",AU9-AT9-AD9) -> 
AA10: BS3 | AB10: =IF($O$13<3,"Respecté",IF(AND(COUNTA(O107:R108,O110,O124)=4,O119<>"",O120<>"",O121<>"",O111<>"",O123<>"",O114<>"",O115<>"",O116<>"",O117<>"",O126<>"",O135<>""),"Respecté","Non respecté")) -> Respecté | AC10: =IF($O$13<3,"Respecté",IF(AND(O123<>"",O124<>"",O123>O124),"Non respecté",IF(AND(O123<>"",O124<>"",O126<>"",(O124-O123)<O126),"Non respecté","Respecté"))) -> Respecté | AD10: =IF($O$13<3,"",AE10*AF10) ->  | AE10: =IF($O$13<3,"",O127) ->  | AF10: =IF($O$13<3,"",O131) ->  | AG10: =IFERROR(ROUND(IF($O$13<3,"",IF(O115="","",IF(AND(O115<1000,AS10="Oui"),2,IF(AND(O115<1000,AS10="Non"),3,IF(AND(O115>=1000,O115<=100000,AS10="Oui"),2+O115/100000,IF(AND(O115>=1000,O115<=100000,AS10="Non"),3+O115/100000,IF(AND(O115>100000,AS10="Oui"),3,IF(AND(O115>100000,AS10="Non"),4,"")))))))),1),"") ->  | AI10: =IF($O$13<3,"",IF(O107="","",O107)) ->  | AJ10: =IF($O$13<3,"",IF(O108="","",O108)) ->  | AK10: =IF($O$13<3,"",O110) ->  | AL10: =IF($O$13<3,"",O111) ->  | AM10: =IF($O$13<3,"",O112) ->  | AN10: =IF($O$13<3,"",O114) ->  | AO10: =IF($O$13<3,"",O115) ->  | AP10: =IF($O$13<3,"",O116) ->  | AQ10: =IF($O$13<3,"",AO10*AP10) ->  | AR10: =IF(OR(AB18<>"Respecté",AC18<>"Respecté"),"",IF($O$13<3,"",O117)) ->  | AS10: =IF($O$13<3,"",IF(COUNTA(O119:O121)<3,"",IF(OR(O119="Oui",O120="Oui",O121="Oui"),"Oui","Non"))) ->  | AT10: =IF($O$13<3,"",O123) ->  | AU10: =IF($O$13<3,"",O124) ->  | AV10: =IF($O$13<3,"",O133) ->  | AW10: =IF($O$13<3,"",R124) ->  | AX10: =IF($O$13<2,"",O135) ->  | AZ10: =IF(AU10<>"",AU10*1000000/IF(MOD(Identification!$E$52,4)=0,366,365),"") ->  | BE10: =IF($O$13<3,"",AU10-AT10-AD10) -> 
AA11: BS4 | AB11: =IF($O$13<4,"Respecté",IF(AND(COUNTA(O151:R152,O154,O168)=4,O155<>"",O163<>"",O164<>"",O165<>"",O167<>"",O158<>"",O159<>"",O160<>"",O170<>"",O179<>"",O161<>""),"Respecté","Non respecté")) -> Respecté | AC11: =IF($O$13<4,"Respecté",IF(AND(O167<>"",O168<>"",O167>O168),"Non respecté",IF(AND(O167<>"",O168<>"",O170<>"",(O168-O167)<O170),"Non respecté","Respecté"))) -> Respecté | AD11: =IF($O$13<4,"",AE11*AF11) ->  | AE11: =IF($O$13<4,"",O171) ->  | AF11: =IF($O$13<4,"",O175) ->  | AG11: =IFERROR(ROUND(IF($O$13<4,"",IF(O159="","",IF(AND(O159<1000,AS11="Oui"),2,IF(AND(O159<1000,AS11="Non"),3,IF(AND(O159>=1000,O159<=100000,AS11="Oui"),2+O159/100000,IF(AND(O159>=1000,O159<=100000,AS11="Non"),3+O159/100000,IF(AND(O159>100000,AS11="Oui"),3,IF(AND(O159>100000,AS11="Non"),4,"")))))))),1),"") ->  | AI11: =IF($O$13<4,"",IF(O151="","",O151)) ->  | AJ11: =IF($O$13<4,"",IF(O152="","",O152)) ->  | AK11: =IF($O$13<4,"",O154) ->  | AL11: =IF($O$13<4,"",O155) ->  | AM11: =IF($O$13<4,"",O156) ->  | AN11: =IF($O$13<4,"",O158) ->  | AO11: =IF($O$13<4,"",O159) ->  | AP11: =IF($O$13<4,"",O160) ->  | AQ11: =IF($O$13<4,"",AO11*AP11) ->  | AR11: =IF(OR(AB18<>"Respecté",AC18<>"Respecté"),"",IF($O$13<4,"",O161)) ->  | AS11: =IF($O$13<4,"",IF(COUNTA(O163:O165)<3,"",IF(OR(O163="Oui",O164="Oui",O165="Oui"),"Oui","Non"))) ->  | AT11: =IF($O$13<4,"",O167) ->  | AU11: =IF($O$13<4,"",O168) ->  | AV11: =IF($O$13<4,"",O177) ->  | AW11: =IF($O$13<4,"",R168) ->  | AX11: =IF($O$13<4,"",O179) ->  | AZ11: =IF(AU11<>"",AU11*1000000/IF(MOD(Identification!$E$52,4)=0,366,365),"") ->  | BE11: =IF($O$13<4,"",AU11-AT11-AD11) -> 
AA12: BS5 | AB12: =IF($O$13<5,"Respecté",IF(AND(COUNTA(O195:R196,O198,O212)=4,O207<>"",O208<>"",O209<>"",O223<>"",O199<>"",O211<>"",O202<>"",O203<>"",O204<>"",O205<>"",O214<>""),"Respecté","Non respecté")) -> Respecté | AC12: =IF($O$13<5,"Respecté",IF(AND(O211<>"",O212<>"",O211>O212),"Non respecté",IF(AND(O211<>"",O212<>"",O214<>"",(O212-O211)<O214),"Non respecté","Respecté"))) -> Respecté | AD12: =IF($O$13<5,"",AE12*AF12) ->  | AE12: =IF($O$13<5,"",O215) ->  | AF12: =IF($O$13<5,"",O219) ->  | AG12: =IFERROR(ROUND(IF($O$13<5,"",IF(O203="","",IF(AND(O203<1000,AS12="Oui"),2,IF(AND(O203<1000,AS12="Non"),3,IF(AND(O203>=1000,O203<=100000,AS12="Oui"),2+O203/100000,IF(AND(O203>=1000,O203<=100000,AS12="Non"),3+O203/100000,IF(AND(O203>100000,AS12="Oui"),3,IF(AND(O203>100000,AS12="Non"),4,"")))))))),1),"") ->  | AI12: =IF($O$13<5,"",IF(O195="","",O195)) ->  | AJ12: =IF($O$13<5,"",IF(O196="","",O196)) ->  | AK12: =IF($O$13<5,"",O198) ->  | AL12: =IF($O$13<5,"",O199) ->  | AM12: =IF($O$13<5,"",O200) ->  | AN12: =IF($O$13<5,"",O202) ->  | AO12: =IF($O$13<5,"",O203) ->  | AP12: =IF($O$13<5,"",O204) ->  | AQ12: =IF($O$13<5,"",AO12*AP12) ->  | AR12: =IF(OR(AB18<>"Respecté",AC18<>"Respecté"),"",IF($O$13<5,"",O205)) ->  | AS12: =IF($O$13<5,"",IF(COUNTA(O207:O209)<3,"",IF(OR(O207="Oui",O208="Oui",O209="Oui"),"Oui","Non"))) ->  | AT12: =IF($O$13<5,"",O211) ->  | AU12: =IF($O$13<5,"",O212) ->  | AV12: =IF($O$13<5,"",O221) ->  | AW12: =IF($O$13<5,"",R212) ->  | AX12: =IF($O$13<5,"",O223) ->  | AZ12: =IF(AU12<>"",AU12*1000000/IF(MOD(Identification!$E$52,4)=0,366,365),"") ->  | BE12: =IF($O$13<5,"",AU12-AT12-AD12) -> 
B13: A | C13: Nombre de réseaux de distribution dans la municipalité : | O13: 1 | AA13: BS6 | AB13: =IF($O$13<6,"Respecté",IF(AND(COUNTA(O239:R240,O242,O256)=4,O251<>"",O252<>"",O253<>"",O267<>"",O243<>"",O255<>"",O246<>"",O247<>"",O248<>"",O249<>"",O258<>""),"Respecté","Non respecté")) -> Respecté | AC13: =IF($O$13<6,"Respecté",IF(AND(O255<>"",O256<>"",O255>O256),"Non respecté",IF(AND(O255<>"",O256<>"",O258<>"",(O256-O255)<O258),"Non respecté","Respecté"))) -> Respecté | AD13: =IF($O$13<6,"",AE13*AF13) ->  | AE13: =IF($O$13<6,"",O259) ->  | AF13: =IF($O$13<6,"",O263) ->  | AG13: =IFERROR(ROUND(IF($O$13<6,"",IF(O247="","",IF(AND(O247<1000,AS13="Oui"),2,IF(AND(O247<1000,AS13="Non"),3,IF(AND(O247>=1000,O247<=100000,AS13="Oui"),2+O247/100000,IF(AND(O247>=1000,O247<=100000,AS13="Non"),3+O247/100000,IF(AND(O247>100000,AS13="Oui"),3,IF(AND(O247>100000,AS13="Non"),4,"")))))))),1),"") ->  | AI13: =IF($O$13<6,"",IF(O239="","",O239)) ->  | AJ13: =IF($O$13<6,"",IF(O240="","",O240)) ->  | AK13: =IF($O$13<6,"",O242) ->  | AL13: =IF($O$13<6,"",O243) ->  | AM13: =IF($O$13<6,"",O244) ->  | AN13: =IF($O$13<6,"",O246) ->  | AO13: =IF($O$13<6,"",O247) ->  | AP13: =IF($O$13<6,"",O248) ->  | AQ13: =IF($O$13<6,"",AO13*AP13) ->  | AR13: =IF(OR(AB18<>"Respecté",AC18<>"Respecté"),"",IF($O$13<6,"",O249)) ->  | AS13: =IF($O$13<6,"",IF(COUNTA(O251:O253)<3,"",IF(OR(O251="Oui",O252="Oui",O253="Oui"),"Oui","Non"))) ->  | AT13: =IF($O$13<6,"",O255) ->  | AU13: =IF($O$13<6,"",O256) ->  | AV13: =IF($O$13<6,"",O265) ->  | AW13: =IF($O$13<6,"",R256) ->  | AX13: =IF($O$13<6,"",O267) ->  | AZ13: =IF(AU13<>"",AU13*1000000/IF(MOD(Identification!$E$52,4)=0,366,365),"") ->  | BE13: =IF($O$13<6,"",AU13-AT13-AD13) -> 
AA14: BS7 | AB14: =IF($O$13<7,"Respecté",IF(AND(COUNTA(O283:R284,O286,O300)=4,O295<>"",O296<>"",O297<>"",O311<>"",O287<>"",O299<>"",O290<>"",O291<>"",O292<>"",O293<>"",O302<>""),"Respecté","Non respecté")) -> Respecté | AC14: =IF($O$13<6,"Respecté",IF(AND(O299<>"",O300<>"",O299>O300),"Non respecté",IF(AND(O299<>"",O300<>"",O302<>"",(O300-O299)<O302),"Non respecté","Respecté"))) -> Respecté | AD14: =IF($O$13<7,"",AE14*AF14) ->  | AE14: =IF($O$13<7,"",O303) ->  | AF14: =IF($O$13<7,"",O307) ->  | AG14: =IFERROR(ROUND(IF($O$13<7,"",IF(O291="","",IF(AND(O291<1000,AS14="Oui"),2,IF(AND(O291<1000,AS14="Non"),3,IF(AND(O291>=1000,O291<=100000,AS14="Oui"),2+O291/100000,IF(AND(O291>=1000,O291<=100000,AS14="Non"),3+O291/100000,IF(AND(O291>100000,AS14="Oui"),3,IF(AND(O291>100000,AS14="Non"),4,"")))))))),1),"") ->  | AH14: =IF(AF14="","",IF(AF14>AG14,"Oui","Non")) ->  | AI14: =IF($O$13<7,"",IF(O283="","",O283)) ->  | AJ14: =IF($O$13<7,"",IF(O284="","",O284)) ->  | AK14: =IF($O$13<7,"",O286) ->  | AL14: =IF($O$13<7,"",O287) ->  | AM14: =IF($O$13<7,"",O288) ->  | AN14: =IF($O$13<7,"",O290) ->  | AO14: =IF($O$13<7,"",O291) ->  | AP14: =IF($O$13<7,"",O292) ->  | AQ14: =IF($O$13<7,"",AO14*AP14) ->  | AR14: =IF(OR(AB18<>"Respecté",AC18<>"Respecté"),"",IF($O$13<7,"",O293)) ->  | AS14: =IF($O$13<7,"",IF(COUNTA(O295:O297)<3,"",IF(OR(O295="Oui",O296="Oui",O297="Oui"),"Oui","Non"))) ->  | AT14: =IF($O$13<7,"",O299) ->  | AU14: =IF($O$13<7,"",O300) ->  | AV14: =IF($O$13<7,"",O309) ->  | AW14: =IF($O$13<7,"",R300) ->  | AX14: =IF($O$13<7,"",O311) ->  | AZ14: =IF(AU14<>"",AU14*1000000/IF(MOD(Identification!$E$52,4)=0,366,365),"") ->  | BE14: =IF($O$13<7,"",AU14-AT14-AD14) -> 
B15: ="RÉSEAU 1 : "&IF(O19="","",O19) -> RÉSEAU 1 : | AA15: BS8 | AB15: =IF($O$13<8,"Respecté",IF(AND(COUNTA(O327:R328,O330,O344)=4,O339<>"",O340<>"",O341<>"",O355<>"",O331<>"",O343<>"",O334<>"",O335<>"",O336<>"",O337<>"",O346<>""),"Respecté","Non respecté")) -> Respecté | AC15: =IF($O$13<7,"Respecté",IF(AND(O343<>"",O344<>"",O343>O344),"Non respecté",IF(AND(O343<>"",O344<>"",O346<>"",(O344-O343)<O346),"Non respecté","Respecté"))) -> Respecté | AD15: =IF($O$13<8,"",AE15*AF15) ->  | AE15: =IF($O$13<8,"",O347) ->  | AF15: =IF($O$13<8,"",O351) ->  | AG15: =IFERROR(ROUND(IF($O$13<8,"",IF(O335="","",IF(AND(O335<1000,AS15="Oui"),2,IF(AND(O335<1000,AS15="Non"),3,IF(AND(O335>=1000,O335<=100000,AS15="Oui"),2+O335/100000,IF(AND(O335>=1000,O335<=100000,AS15="Non"),3+O335/100000,IF(AND(O335>100000,AS15="Oui"),3,IF(AND(O335>100000,AS15="Non"),4,"")))))))),1),"") ->  | AI15: =IF($O$13<8,"",IF(O327="","",O327)) ->  | AJ15: =IF($O$13<8,"",IF(O328="","",O328)) ->  | AK15: =IF($O$13<8,"",O330) ->  | AL15: =IF($O$13<8,"",O331) ->  | AM15: =IF($O$13<8,"",O332) ->  | AN15: =IF($O$13<8,"",O334) ->  | AO15: =IF($O$13<8,"",O335) ->  | AP15: =IF($O$13<8,"",O336) ->  | AQ15: =IF($O$13<8,"",AO15*AP15) ->  | AR15: =IF(OR(AB18<>"Respecté",AC18<>"Respecté"),"",IF($O$13<8,"",O337)) ->  | AS15: =IF($O$13<8,"",IF(COUNTA(O339:O341)<3,"",IF(OR(O339="Oui",O340="Oui",O341="Oui"),"Oui","Non"))) ->  | AT15: =IF($O$13<8,"",O343) ->  | AU15: =IF($O$13<8,"",O344) ->  | AV15: =IF($O$13<8,"",O353) ->  | AW15: =IF($O$13<8,"",R344) ->  | AX15: =IF($O$13<8,"",O355) ->  | AZ15: =IF(AU15<>"",AU15*1000000/IF(MOD(Identification!$E$52,4)=0,366,365),"") ->  | BE15: =IF($O$13<8,"",AU15-AT15-AD15) -> 
AA16: BS9 | AB16: =IF($O$13<9,"Respecté",IF(AND(COUNTA(O371:R372,O374,O388)=4,O383<>"",O384<>"",O385<>"",O399<>"",O375<>"",O387<>"",O378<>"",O379<>"",O380<>"",O381<>"",O390<>""),"Respecté","Non respecté")) -> Respecté | AC16: =IF($O$13<8,"Respecté",IF(AND(O387<>"",O388<>"",O387>O388),"Non respecté",IF(AND(O387<>"",O388<>"",O390<>"",(O388-O387)<O390),"Non respecté","Respecté"))) -> Respecté | AD16: =IF($O$13<9,"",AE16*AF16) ->  | AE16: =IF($O$13<9,"",O391) ->  | AF16: =IF($O$13<9,"",O395) ->  | AG16: =IFERROR(ROUND(IF($O$13<9,"",IF(O379="","",IF(AND(O379<1000,AS16="Oui"),2,IF(AND(O379<1000,AS16="Non"),3,IF(AND(O379>=1000,O379<=100000,AS16="Oui"),2+O379/100000,IF(AND(O379>=1000,O379<=100000,AS16="Non"),3+O379/100000,IF(AND(O379>100000,AS16="Oui"),3,IF(AND(O379>100000,AS16="Non"),4,"")))))))),1),"") ->  | AI16: =IF($O$13<9,"",IF(O371="","",O371)) ->  | AJ16: =IF($O$13<9,"",IF(O372="","",O372)) ->  | AK16: =IF($O$13<9,"",O374) ->  | AL16: =IF($O$13<9,"",O375) ->  | AM16: =IF($O$13<9,"",O376) ->  | AN16: =IF($O$13<9,"",O378) ->  | AO16: =IF($O$13<9,"",O379) ->  | AP16: =IF($O$13<9,"",O380) ->  | AQ16: =IF($O$13<9,"",AO16*AP16) ->  | AR16: =IF(OR(AB18<>"Respecté",AC18<>"Respecté"),"",IF($O$13<9,"",O381)) ->  | AS16: =IF($O$13<9,"",IF(COUNTA(O383:O385)<3,"",IF(OR(O383="Oui",O384="Oui",O385="Oui"),"Oui","Non"))) ->  | AT16: =IF($O$13<9,"",O387) ->  | AU16: =IF($O$13<9,"",O388) ->  | AV16: =IF($O$13<9,"",O397) ->  | AW16: =IF($O$13<9,"",R388) ->  | AX16: =IF($O$13<9,"",O399) ->  | AZ16: =IF(AU16<>"",AU16*1000000/IF(MOD(Identification!$E$52,4)=0,366,365),"") ->  | BE16: =IF($O$13<9,"",AU16-AT16-AD16) -> 
B17: SECTION 1 - DISTRIBUTION D'EAU POTABLE | AA17: BS10 | AB17: =IF($O$13<10,"Respecté",IF(AND(COUNTA(O415:R416,O418,O432)=4,O427<>"",O428<>"",O429<>"",O443<>"",O419<>"",O431<>"",O422<>"",O423<>"",O424<>"",O425<>"",O434<>""),"Respecté","Non respecté")) -> Respecté | AC17: =IF($O$13<9,"Respecté",IF(AND(O431<>"",O432<>"",O431>O432),"Non respecté",IF(AND(O431<>"",O432<>"",O434<>"",(O432-O431)<O434),"Non respecté","Respecté"))) -> Respecté | AD17: =IF($O$13<10,"",AE17*AF17) ->  | AE17: =IF($O$13<10,"",O435) ->  | AF17: =IF($O$13<10,"",O439) ->  | AG17: =IFERROR(ROUND(IF($O$13<10,"",IF(O423="","",IF(AND(O423<1000,AS17="Oui"),2,IF(AND(O423<1000,AS17="Non"),3,IF(AND(O423>=1000,O423<=100000,AS17="Oui"),2+O423/100000,IF(AND(O423>=1000,O423<=100000,AS17="Non"),3+O423/100000,IF(AND(O423>100000,AS17="Oui"),3,IF(AND(O423>100000,AS17="Non"),4,"")))))))),1),"") ->  | AI17: =IF($O$13<10,"",IF(O415="","",O415)) ->  | AJ17: =IF($O$13<10,"",IF(O416="","",O416)) ->  | AK17: =IF($O$13<10,"",O418) ->  | AL17: =IF($O$13<10,"",O419) ->  | AM17: =IF($O$13<10,"",O420) ->  | AN17: =IF($O$13<10,"",O422) ->  | AO17: =IF($O$13<10,"",O423) ->  | AP17: =IF($O$13<10,"",O424) ->  | AQ17: =IF($O$13<10,"",AO17*AP17) ->  | AR17: =IF(OR(AB18<>"Respecté",AC18<>"Respecté"),"",IF($O$13<10,"",O425)) ->  | AS17: =IF($O$13<10,"",IF(COUNTA(O427:O429)<3,"",IF(OR(O427="Oui",O428="Oui",O429="Oui"),"Oui","Non"))) ->  | AT17: =IF($O$13<10,"",O431) ->  | AU17: =IF($O$13<10,"",O432) ->  | AV17: =IF($O$13<10,"",O441) ->  | AW17: =IF($O$13<10,"",R432) ->  | AX17: =IF($O$13<10,"",O443) ->  | AZ17: =IF(AU17<>"",AU17*1000000/IF(MOD(Identification!$E$52,4)=0,366,365),"") ->  | BE17: =IF($O$13<10,"",AU17-AT17-AD17) -> 
AA18: Total | AB18: =IF(COUNTIF(AB8:AB17,"Respecté")=10,"Respecté","Non respecté") -> Non respecté | AC18: =IF(COUNTIF(AC8:AC17,"Respecté")=10,"Respecté","Non respecté") -> Respecté | AD18: =IF(SUM(AD8:AD17)=0,"",SUM(AD8:AD17)) ->  | AE18: =IF(SUM(AE8:AE17)=0,"",SUM(AE8:AE17)) ->  | AF18: =IF(OR(AD18=0,AE18=0,AB18<>"Respecté",AC18<>"Respecté"),"",AD18/AE18) ->  | AH18: =IF(OR(AB18<>"Respecté",AC18<>"Respecté"),"",IF(COUNTIF(AH8:AH17,"*Oui*"),"Oui","Non")) ->  | AI18: =IF(OR(AB18<>"Respecté",AC18<>"Respecté"),"",IF(COUNTIF(AH8:AH17,"*Oui*"),"Oui","Non")) ->  | AK18: =SUM(AK8:AK17) -> 0 | AM18: =IF(OR(AB18<>"Respecté",AC18<>"Respecté"),"",IF(SUM(AM8:AM17)=0,"",SUM(AM8:AM17))) ->  | AN18: =IF(OR(O13=0,O13="",AB18<>"Respecté",AC18<>"Respecté"),"",SUM(AN8:AN17)) ->  | AO18: =SUM(AO8:AO17) -> 0 | AQ18: =SUM(AQ8:AQ17) -> 0 | AR18: =IF(BB19>20,BC18/AO18,BD18/AN18) ->  | AS18: =IF(COUNTIF(AS8:AS17,"Oui")>0,"Oui","Non") -> Non | AT18: =IF(SUM(AT8:AT17)=0,"",SUM(AT8:AT17)) ->  | AU18: =IF(SUM(AU8:AU17)=0,"",SUM(AU8:AU17)) ->  | AX18: =AVERAGE(AX8:AX17) -> 0 | AY18: =IF(SUM(AY8:AY17)=0,"",SUM(AY8:AY17)) ->  | AZ18: =IF(AU18<>"",AU18*1000000/IF(MOD(Identification!$E$52,4)=0,366,365),"") ->  | BA18: =IF(AM18="","",IF((SUM(BA8:BA17)/AM18)<AT19,"Oui","Non")) ->  | BB18: =IF(COUNTIF(BB8:BB17,"Non")>0,"Non","Oui") -> Oui | BC18: =SUM(BC8:BC17) -> 0 | BD18: =SUM(BD8:BD17) -> 0 | BE18: =IF(SUM(BE8:BE17)=0,"",SUM(BE8:BE17)) -> 
B19: 1.1 | C19: Nom du réseau de distribution : | AE19: Cible | AF19: =IF(ISERROR(SUMPRODUCT(AG8:AG17,AO8:AO17)/AO18),"",SUMPRODUCT(AG8:AG17,AO8:AO17)/AO18) ->  | AH19: longueur recherche de fuites | AI19: =IF(OR(AB18<>"Respecté",AC18<>"Respecté"),"",SUMIF($AH$8:$AH$17,"Oui",$AN$8:$AN$17)) ->  | AN19: La longueur totale du réseau de distribution est nulle. | AO19: Le nombre de branchements de service est nul. | AP19: =IF(OR(AO18="",AQ18="",AO18=0,AQ18=0),"",AQ18) ->  | AT19: =RIGHT(R45,3)*1 ->  | AX19: =COUNTIF(AX8:AX17,"<50") -> 1 | BA19: Denstié B | BB19: =IF(ISERROR(AO18/AN18),"",AO18/AN18) -> 
B20: 1.2 | C20: Numéro du MELCC du réseau de distribution : | AN20: La longueur totale des réseaux de distribution est nulle. | AV20: =IF(OR(AT18="",AM18=""),"",AT18*1000000/AM18/IF(MOD(Identification!$E$52,4)=0,366,365)) -> 
B22: 1.3 | C22: Nombre de logements résidentiels desservis et occupés de façon permanente : | P22: log | R22: Statistiques 2020
B23: 1.4 | C23: Personnes par logement : | O23: =R23 ->  | P23: pers/log | R23: =IF(codegeo="","",VLOOKUP(codegeo,BD_STAT,7,FALSE)) ->  | S23: pers/log
B24: 1.5 | C24: Population résidentielle et permanente desservie par ce réseau de distribution : | O24: =IF(ISNUMBER(IF(AND(O22<>"",O23<>""),O23*O22,"")),IF(AND(O22<>"",O23<>""),O23*O22,""),"") ->  | P24: pers
B26: 1.6 | C26: Longueur de ce réseau de distribution : | P26: km
B27: 1.7 | C27: Nombre de branchements de service :
B28: 1.8 | C28: Longueur moyenne des branchements de service côté usager : | P28: m
B29: 1.9 | C29: Pression moyenne au point représentatif du réseau : | P29: mètres d'eau
B31: 1.10 | C31: L’ensemble des installations de production d’eau potable a fonctionné pendant au moins une journée à plus de 90 % de sa capacité maximale nominale :
B32: 1.11 | C32: Au moins deux avis de restriction d’utilisation d’eau ont été émis lors d’une sécheresse, au cours des 5 dernières années :
B33: 1.12 | C33: Des investissements, dont l’objectif est d’augmenter la capacité des installations de production d’eau potable d’un réseau, sont prévus dans les 10 prochaines années :
B35: 1.13 | C35: Consommation résidentielle estimée : | P35: ML/an | R35: =IF(OR(O22="",O35=""),"",(O35*1000)/O22) ->  | S35: m³/log/an
B36: 1.14 | C36: Eau distribuée : | P36: ML/an | R36: =IF(OR(O36="",O24=""),"",O36*1000000/O24/IF(MOD(Identification!$E$52,4)=0,366,365)) ->  | S36: l/pers/d
R37: Bilan 2019 | U37: Bilan 2018
B38: 1.15 | C38: Pertes d’eau réelles (PER) : | P38: ML/an | S38: ML/an | V38: ML/an
B39: 1.16 | C39: Pertes d’eau réelles inévitables (PERI) : | O39: =IF(COUNTA(O26:O29)<4,"",((18*O26+0.8*O27+25*O27*O28/1000)*O29*365/1000000)) ->  | P39: ML/an
B41: SECTION 2 - INDICATEURS DE PERFORMANCE
O42: Résultat | R42: Objectif
B43: 2.1 | C43: Indice de fuites dans les infrastructures (IFI) : | O43: =IF(IF(OR(O27=0,O27="",O39="",O38=""),"",IF(AND(O27<>"",O27<>0,O27>=3000),IF(AND(ISNUMBER(O38/O39),O38<>"",O39<>""),O38/O39,""),IF(AND(R38=0,O38<>"",U38<>"",U38<>0,(U38/O39)>=0.7),AVERAGE(O38/O39,U38/O39),IF(AND(U38=0,O38<>"",R38<>"",R38<>0),AVERAGE(O38/O39,R38/O39),IF(AND(R38=0,O38<>"",U38=0),O38/O39,IF(AND(R38<>0,R38<>"",O38<>"",U38<>"",U38<>0),AVERAGE(O38/O39,U38/O39,R38/O39)))))))<=0,"S.O.",IF(OR(O27=0,O27="",O39="",O38=""),"",IF(AND(O27<>"",O27<>0,O27>=3000),IF(AND(ISNUMBER(O38/O39),O38<>"",O39<>""),O38/O39,""),IF(AND(R38=0,O38<>"",U38<>"",U38<>0),AVERAGE(O38/O39,U38/O39),IF(AND(U38=0,O38<>"",R38<>"",R38<>0),AVERAGE(O38/O39,R38/O39),IF(AND(R38=0,O38<>"",U38=0),O38/O39,IF(AND(R38<>0,R38<>"",O38<>"",U38<>"",U38<>0),AVERAGE(O38/O39,U38/O39,R38/O39)))))))) ->  | R43: =IF(OR(O27="",AS8=""),"","≤ ")&IF(OR(O27="",AS8=""),"",TEXT(ROUND(AG8,1),"0,0")) -> 
B45: 2.2 | C45: Consommation résidentielle estimée : | O45: =IF(OR(O35="",O24=""),"",O35*1000000/O24/IF(MOD(Identification!$E$52,4)=0,366,365)) ->  | P45: l/pers/d | R45: =IF(SUM(COUNTIF($AS$8:$AS$17,"Non")+COUNTIF($AS$8:$AS$17,"Oui"))<>$O$13,"","≤ "&IF($AS$18="Oui",$AC$6,IF($AS$18="Non",$AC$5,""))) ->  | S45: l/pers/d
B47: 2.3 | C47: Résultat de validité des données de l’audit de l’eau AWWA : | R47: ≥ 50
B49: SECTION 3 - COMMENTAIRES
B50: Commentaires de la municipalité, s'il y a lieu :
B52: Commentaires du MAMH, s'il y a lieu :
B55: SECTION 4 - VALIDATION
B56: Liste de validation
B57: Les cases identifiées par une bordure rouge sont remplies. | U57: =AB18 -> Non respecté
B58: Aucune case n'a de fond rouge. | U58: =AC18 -> Respecté
B59: ="RÉSEAU 2 : "&IF(O63="","",O63) -> RÉSEAU 2 :
B61: =$B$17 -> SECTION 1 - DISTRIBUTION D'EAU POTABLE
B63: =B19 -> 1.1 | C63: =$C$19 -> Nom du réseau de distribution :
B64: =B20 -> 1.2 | C64: =$C$20 -> Numéro du MELCC du réseau de distribution :
B66: =B22 -> 1.3 | C66: =$C$22 -> Nombre de logements résidentiels desservis et occupés de façon permanente : | P66: =$P$22 -> log | R66: =R22 -> Statistiques 2020
B67: =B23 -> 1.4 | C67: =$C$23 -> Personnes par logement : | O67: =R23 ->  | P67: =$P$23 -> pers/log | R67: =R23 ->  | S67: =$S$23 -> pers/log
B68: =B24 -> 1.5 | C68: =$C$24 -> Population résidentielle et permanente desservie par ce réseau de distribution : | O68: =IF(ISNUMBER(IF(AND(O66<>"",O67<>""),O67*O66,"")),IF(AND(O66<>"",O67<>""),O67*O66,""),"") ->  | P68: =$P$24 -> pers
B70: =B26 -> 1.6 | C70: =$C$26 -> Longueur de ce réseau de distribution : | P70: =$P$26 -> km
B71: =B27 -> 1.7 | C71: =$C$27 -> Nombre de branchements de service :
B72: =B28 -> 1.8 | C72: =$C$28 -> Longueur moyenne des branchements de service côté usager : | P72: =$P$28 -> m
B73: =B29 -> 1.9 | C73: =$C$29 -> Pression moyenne au point représentatif du réseau : | P73: =$P$29 -> mètres d'eau
B75: =B31 -> 1.10 | C75: L’ensemble des installations de production d’eau potable a fonctionné pendant au moins une journée à plus de 90 % de sa capacité maximale nominale :
B76: 1.11 | C76: Au moins deux avis de restriction d’utilisation d’eau ont été émis lors d’une sécheresse, au cours des 5 dernières années :
B77: 1.12 | C77: Des investissements, dont l’objectif est d’augmenter la capacité des installations de production d’eau potable d’un réseau, sont prévus dans les 10 prochaines années :
B79: =B35 -> 1.13 | C79: =$C$35 -> Consommation résidentielle estimée : | P79: =$P$35 -> ML/an | R79: =IF(OR(O66="",O79=""),"",(O79*1000)/O66) ->  | S79: =S35 -> m³/log/an
B80: =B36 -> 1.14 | C80: =$C$36 -> Eau distribuée : | P80: =$P$36 -> ML/an | R80: =IF(OR(O80="",O68=""),"",O80*1000000/O68/IF(MOD(Identification!$E$52,4)=0,366,365)) ->  | S80: l/pers/d
R81: =R37 -> Bilan 2019 | U81: =U37 -> Bilan 2018
B82: =B38 -> 1.15 | C82: =$C$38 -> Pertes d’eau réelles (PER) : | P82: =$P$38 -> ML/an | S82: =S38 -> ML/an | V82: =V38 -> ML/an
B83: =B39 -> 1.16 | C83: =$C$39 -> Pertes d’eau réelles inévitables (PERI) : | O83: =IF(COUNTA(O70:O73)<4,"",((18*O70+0.8*O71+25*O71*O72/1000)*O73*365/1000000)) ->  | P83: =$P$39 -> ML/an | R83: =IF(R82/$O83<0.7,0,R82) ->  | U83: =IF(U82/$O83<0.7,0,U82) -> 
B85: SECTION 2 - INDICATEURS DE PERFORMANCE
O86: =$O$42 -> Résultat | R86: =$R$42 -> Objectif
B87: 2.1 | C87: =C43 -> Indice de fuites dans les infrastructures (IFI) : | O87: =IF(IF(OR(O71=0,O71="",O83="",O82=""),"",IF(AND(O71<>"",O71<>0,O71>=3000),IF(AND(ISNUMBER(O82/O83),O82<>"",O83<>""),O82/O83,""),IF(AND(R82=0,O82<>"",U82<>"",U82<>0,(U82/O83)>=0.7),AVERAGE(O82/O83,U82/O83),IF(AND(U82=0,O82<>"",R82<>"",R82<>0),AVERAGE(O82/O83,R82/O83),IF(AND(R82=0,O82<>"",U82=0),O82/O83,IF(AND(R82<>0,R82<>"",O82<>"",U82<>"",U82<>0),AVERAGE(O82/O83,U82/O83,R82/O83)))))))<=0,"S.O.",IF(OR(O71=0,O71="",O83="",O82=""),"",IF(AND(O71<>"",O71<>0,O71>=3000),IF(AND(ISNUMBER(O82/O83),O82<>"",O83<>""),O82/O83,""),IF(AND(R82=0,O82<>"",U82<>"",U82<>0),AVERAGE(O82/O83,U82/O83),IF(AND(U82=0,O82<>"",R82<>"",R82<>0),AVERAGE(O82/O83,R82/O83),IF(AND(R82=0,O82<>"",U82=0),O82/O83,IF(AND(R82<>0,R82<>"",O82<>"",U82<>"",U82<>0),AVERAGE(O82/O83,U82/O83,R82/O83)))))))) ->  | R87: =IF(OR(O71="",AS9=""),"","≤ ")&IF(OR(O71="",AS9=""),"",TEXT(ROUND(AG9,1),"0,0")) -> 
B89: 2.2 | C89: =C45 -> Consommation résidentielle estimée : | O89: =IF(OR(O79="",O68=""),"",O79*1000000/O68/IF(MOD(Identification!$E$52,4)=0,366,365)) ->  | P89: l/pers/d | R89: =IF(SUM(COUNTIF($AS$8:$AS$17,"Non")+COUNTIF($AS$8:$AS$17,"Oui"))<>$O$13,"","≤ "&IF($AS$18="Oui",$AC$6,IF($AS$18="Non",$AC$5,""))) ->  | S89: =$S$45 -> l/pers/d
B91: 2.3 | C91: =C47 -> Résultat de validité des données de l’audit de l’eau AWWA : | R91: ≥ 50
B93: SECTION 3 - COMMENTAIRES
B94: =B50 -> Commentaires de la municipalité, s'il y a lieu :
B96: =B52 -> Commentaires du MAMH, s'il y a lieu :
B99: =B55 -> SECTION 4 - VALIDATION
B100: =B56 -> Liste de validation
B101: Les cases identifiées par une bordure rouge sont remplies. | U101: =U57 -> Non respecté
B102: Aucune case n'a de fond rouge. | U102: =U58 -> Respecté
B103: ="RÉSEAU 3 : "&IF(O107="","",O107) -> RÉSEAU 3 :
B105: SECTION 1 - DISTRIBUTION D'EAU POTABLE
B107: =B63 -> 1.1 | C107: =C63 -> Nom du réseau de distribution :
B108: =B64 -> 1.2 | C108: =C64 -> Numéro du MELCC du réseau de distribution :
B110: =B66 -> 1.3 | C110: Nombre de logements résidentiels desservis et occupés de façon permanente : | P110: =$P$22 -> log | R110: =R66 -> Statistiques 2020
B111: 1.4 | C111: Personnes par logement : | O111: =R23 ->  | P111: =$P$23 -> pers/log | R111: =R67 ->  | S111: =S67 -> pers/log
B112: 1.5 | C112: Population résidentielle et permanente desservie par ce réseau de distribution : | O112: =IF(ISNUMBER(IF(AND(O110<>"",O111<>""),O111*O110,"")),IF(AND(O110<>"",O111<>""),O111*O110,""),"") ->  | P112: =$P$24 -> pers
B114: =B70 -> 1.6 | C114: Longueur de ce réseau de distribution : | P114: =$P$26 -> km
B115: 1.7 | C115: Nombre de branchements de service :
B116: 1.8 | C116: Longueur moyenne des branchements de service côté usager : | P116: =$P$28 -> m
B117: 1.9 | C117: Pression moyenne au point représentatif du réseau : | P117: =$P$29 -> mètres d'eau
B119: =B75 -> 1.10 | C119: L’ensemble des installations de production d’eau potable a fonctionné pendant au moins une journée à plus de 90 % de sa capacité maximale nominale :
B120: 1.11 | C120: Au moins deux avis de restriction d’utilisation d’eau ont été émis lors d’une sécheresse, au cours des 5 dernières années :
B121: 1.12 | C121: Des investissements, dont l’objectif est d’augmenter la capacité des installations de production d’eau potable d’un réseau, sont prévus dans les 10 prochaines années :
B123: =B79 -> 1.13 | C123: =C79 -> Consommation résidentielle estimée : | P123: =$P$35 -> ML/an | R123: =IF(OR(O110="",O123=""),"",(O123*1000)/O110) ->  | S123: =S79 -> m³/log/an
B124: =B80 -> 1.14 | C124: =C80 -> Eau distribuée : | P124: =$P$36 -> ML/an | R124: =IF(OR(O124="",O112=""),"",O124*1000000/O112/IF(MOD(Identification!$E$52,4)=0,366,365)) ->  | S124: l/pers/d
R125: =R81 -> Bilan 2019 | U125: =U81 -> Bilan 2018
B126: =B82 -> 1.15 | C126: =C82 -> Pertes d’eau réelles (PER) : | P126: =$P$38 -> ML/an | S126: =S82 -> ML/an | V126: =V82 -> ML/an
B127: =B83 -> 1.16 | C127: =C83 -> Pertes d’eau réelles inévitables (PERI) : | O127: =IF(COUNTA(O114:O117)<4,"",((18*O114+0.8*O115+25*O115*O116/1000)*O117*365/1000000)) ->  | P127: =$P$39 -> ML/an | R127: =IF(R126/$O127<0.7,0,R126) ->  | U127: =IF(U126/$O127<0.7,0,U126) -> 
B129: SECTION 2 - INDICATEURS DE PERFORMANCE
O130: =$O$42 -> Résultat | R130: =R86 -> Objectif
B131: 2.1 | C131: =C87 -> Indice de fuites dans les infrastructures (IFI) : | O131: =IF(IF(OR(O115=0,O115="",O127="",O126=""),"",IF(AND(O115<>"",O115<>0,O115>=3000),IF(AND(ISNUMBER(O126/O127),O126<>"",O127<>""),O126/O127,""),IF(AND(R126=0,O126<>"",U126<>"",U126<>0,(U126/O127)>=0.7),AVERAGE(O126/O127,U126/O127),IF(AND(U126=0,O126<>"",R126<>"",R126<>0),AVERAGE(O126/O127,R126/O127),IF(AND(R126=0,O126<>"",U126=0),O126/O127,IF(AND(R126<>0,R126<>"",O126<>"",U126<>"",U126<>0),AVERAGE(O126/O127,U126/O127,R126/O127)))))))<=0,"S.O.",IF(OR(O115=0,O115="",O127="",O126=""),"",IF(AND(O115<>"",O115<>0,O115>=3000),IF(AND(ISNUMBER(O126/O127),O126<>"",O127<>""),O126/O127,""),IF(AND(R126=0,O126<>"",U126<>"",U126<>0),AVERAGE(O126/O127,U126/O127),IF(AND(U126=0,O126<>"",R126<>"",R126<>0),AVERAGE(O126/O127,R126/O127),IF(AND(R126=0,O126<>"",U126=0),O126/O127,IF(AND(R126<>0,R126<>"",O126<>"",U126<>"",U126<>0),AVERAGE(O126/O127,U126/O127,R126/O127)))))))) ->  | R131: =IF(OR(O115="",AS10=""),"","≤ ")&IF(OR(O115="",AS10=""),"",TEXT(ROUND(AG10,1),"0,0")) -> 
B133: 2.2 | C133: =C89 -> Consommation résidentielle estimée : | O133: =IF(OR(O123="",O112=""),"",O123*1000000/O112/IF(MOD(Identification!$E$52,4)=0,366,365)) ->  | P133: l/pers/d | R133: =IF(SUM(COUNTIF($AS$8:$AS$17,"Non")+COUNTIF($AS$8:$AS$17,"Oui"))<>$O$13,"","≤ "&IF($AS$18="Oui",$AC$6,IF($AS$18="Non",$AC$5,""))) ->  | S133: =S89 -> l/pers/d
B135: 2.3 | C135: =C91 -> Résultat de validité des données de l’audit de l’eau AWWA : | R135: ≥ 50
B137: SECTION 3 - COMMENTAIRES
B138: =B94 -> Commentaires de la municipalité, s'il y a lieu :
B140: =B96 -> Commentaires du MAMH, s'il y a lieu :
B143: =B99 -> SECTION 4 - VALIDATION
B144: =B100 -> Liste de validation
B145: Les cases identifiées par une bordure rouge sont remplies. | U145: =U101 -> Non respecté
B146: Aucune case n'a de fond rouge. | U146: =U102 -> Respecté
B147: ="RÉSEAU 4 : "&IF(O151="","",O151) -> RÉSEAU 4 :
B149: SECTION 1 - DISTRIBUTION D'EAU POTABLE
B151: =B107 -> 1.1 | C151: =C107 -> Nom du réseau de distribution :
B152: =B108 -> 1.2 | C152: =C108 -> Numéro du MELCC du réseau de distribution :
B154: =B110 -> 1.3 | C154: Nombre de logements résidentiels desservis et occupés de façon permanente : | P154: =P110 -> log | R154: =R110 -> Statistiques 2020
B155: 1.4 | C155: Personnes par logement : | O155: =R23 ->  | P155: =P111 -> pers/log | R155: =R111 ->  | S155: =S111 -> pers/log
B156: 1.5 | C156: Population résidentielle et permanente desservie par ce réseau de distribution : | O156: =IF(ISNUMBER(IF(AND(O154<>"",O155<>""),O155*O154,"")),IF(AND(O154<>"",O155<>""),O155*O154,""),"") ->  | P156: =P112 -> pers
B158: =B114 -> 1.6 | C158: Longueur de ce réseau de distribution : | P158: =P114 -> km
B159: 1.7 | C159: Nombre de branchements de service :
B160: 1.8 | C160: Longueur moyenne des branchements de service côté usager : | P160: =P116 -> m
B161: 1.9 | C161: Pression moyenne au point représentatif du réseau : | P161: =P117 -> mètres d'eau
B163: =B119 -> 1.10 | C163: L’ensemble des installations de production d’eau potable a fonctionné pendant au moins une journée à plus de 90 % de sa capacité maximale nominale :
B164: 1.11 | C164: Au moins deux avis de restriction d’utilisation d’eau ont été émis lors d’une sécheresse, au cours des 5 dernières années :
B165: 1.12 | C165: Des investissements, dont l’objectif est d’augmenter la capacité des installations de production d’eau potable d’un réseau, sont prévus dans les 10 prochaines années :
B167: =B123 -> 1.13 | C167: =C123 -> Consommation résidentielle estimée : | P167: =P123 -> ML/an | R167: =IF(OR(O154="",O167=""),"",(O167*1000)/O154) ->  | S167: =S123 -> m³/log/an
B168: =B124 -> 1.14 | C168: =C124 -> Eau distribuée : | P168: =P124 -> ML/an | R168: =IF(OR(O168="",O156=""),"",O168*1000000/O156/IF(MOD(Identification!$E$52,4)=0,366,365)) ->  | S168: l/pers/d
R169: =R125 -> Bilan 2019 | U169: =U125 -> Bilan 2018
B170: =B126 -> 1.15 | C170: =C126 -> Pertes d’eau réelles (PER) : | P170: =P126 -> ML/an | S170: =S126 -> ML/an | V170: =V126 -> ML/an
B171: =B127 -> 1.16 | C171: =C127 -> Pertes d’eau réelles inévitables (PERI) : | O171: =IF(COUNTA(O158:O161)<4,"",((18*O158+0.8*O159+25*O159*O160/1000)*O161*365/1000000)) ->  | P171: =P127 -> ML/an | R171: =IF(R170/$O171<0.7,0,R170) ->  | U171: =IF(U170/$O171<0.7,0,U170) -> 
B173: SECTION 2 - INDICATEURS DE PERFORMANCE
O174: =$O$42 -> Résultat | R174: =R130 -> Objectif
B175: 2.1 | C175: =C131 -> Indice de fuites dans les infrastructures (IFI) : | O175: =IF(IF(OR(O159=0,O159="",O171="",O170=""),"",IF(AND(O159<>"",O159<>0,O159>=3000),IF(AND(ISNUMBER(O170/O171),O170<>"",O171<>""),O170/O171,""),IF(AND(R170=0,O170<>"",U170<>"",U170<>0,(U170/O171)>=0.7),AVERAGE(O170/O171,U170/O171),IF(AND(U170=0,O170<>"",R170<>"",R170<>0),AVERAGE(O170/O171,R170/O171),IF(AND(R170=0,O170<>"",U170=0),O170/O171,IF(AND(R170<>0,R170<>"",O170<>"",U170<>"",U170<>0),AVERAGE(O170/O171,U170/O171,R170/O171)))))))<=0,"S.O.",IF(OR(O159=0,O159="",O171="",O170=""),"",IF(AND(O159<>"",O159<>0,O159>=3000),IF(AND(ISNUMBER(O170/O171),O170<>"",O171<>""),O170/O171,""),IF(AND(R170=0,O170<>"",U170<>"",U170<>0),AVERAGE(O170/O171,U170/O171),IF(AND(U170=0,O170<>"",R170<>"",R170<>0),AVERAGE(O170/O171,R170/O171),IF(AND(R170=0,O170<>"",U170=0),O170/O171,IF(AND(R170<>0,R170<>"",O170<>"",U170<>"",U170<>0),AVERAGE(O170/O171,U170/O171,R170/O171)))))))) ->  | R175: =IF(OR(O159="",AS11=""),"","≤ ")&IF(OR(O159="",AS11=""),"",TEXT(ROUND(AG11,1),"0,0")) -> 
B177: 2.2 | C177: =C133 -> Consommation résidentielle estimée : | O177: =IF(OR(O167="",O156=""),"",O167*1000000/O156/IF(MOD(Identification!$E$52,4)=0,366,365)) ->  | P177: l/pers/d | R177: =IF(SUM(COUNTIF($AS$8:$AS$17,"Non")+COUNTIF($AS$8:$AS$17,"Oui"))<>$O$13,"","≤ "&IF($AS$18="Oui",$AC$6,IF($AS$18="Non",$AC$5,""))) ->  | S177: =S133 -> l/pers/d
B179: 2.3 | C179: =C135 -> Résultat de validité des données de l’audit de l’eau AWWA : | R179: ≥ 50
B181: SECTION 3 - COMMENTAIRES
B182: =B138 -> Commentaires de la municipalité, s'il y a lieu :
B184: =B140 -> Commentaires du MAMH, s'il y a lieu :
B187: SECTION 4 -VALIDATION
B188: =B144 -> Liste de validation
B189: Les cases identifiées par une bordure rouge sont remplies. | U189: =U145 -> Non respecté
B190: Aucune case n'a de fond rouge. | U190: =U146 -> Respecté
B191: ="RÉSEAU 5 : "&IF(O195="","",O195) -> RÉSEAU 5 :
B193: =B149 -> SECTION 1 - DISTRIBUTION D'EAU POTABLE
B195: =B151 -> 1.1 | C195: =C151 -> Nom du réseau de distribution :
B196: =B152 -> 1.2 | C196: =C152 -> Numéro du MELCC du réseau de distribution :
B198: =B154 -> 1.3 | C198: Nombre de logements résidentiels desservis et occupés de façon permanente : | P198: =P154 -> log | R198: =R154 -> Statistiques 2020
B199: 1.4 | C199: Personnes par logement : | O199: =R23 ->  | P199: =P155 -> pers/log | R199: =R155 ->  | S199: =S155 -> pers/log
B200: 1.5 | C200: Population résidentielle et permanente desservie par ce réseau de distribution : | O200: =IF(ISNUMBER(IF(AND(O198<>"",O199<>""),O199*O198,"")),IF(AND(O198<>"",O199<>""),O199*O198,""),"") ->  | P200: =P156 -> pers
B202: =B158 -> 1.6 | C202: Longueur de ce réseau de distribution : | P202: =P158 -> km
B203: 1.7 | C203: Nombre de branchements de service :
B204: 1.8 | C204: Longueur moyenne des branchements de service côté usager : | P204: =P160 -> m
B205: 1.9 | C205: Pression moyenne au point représentatif du réseau : | P205: =P161 -> mètres d'eau
B207: =B163 -> 1.10 | C207: L’ensemble des installations de production d’eau potable a fonctionné pendant au moins une journée à plus de 90 % de sa capacité maximale nominale :
B208: 1.11 | C208: Au moins deux avis de restriction d’utilisation d’eau ont été émis lors d’une sécheresse, au cours des 5 dernières années :
B209: 1.12 | C209: Des investissements, dont l’objectif est d’augmenter la capacité des installations de production d’eau potable d’un réseau, sont prévus dans les 10 prochaines années :
B211: =B167 -> 1.13 | C211: =C167 -> Consommation résidentielle estimée : | P211: =P167 -> ML/an | R211: =IF(OR(O198="",O211=""),"",(O211*1000)/O198) ->  | S211: =S167 -> m³/log/an
B212: =B168 -> 1.14 | C212: =C168 -> Eau distribuée : | P212: =P168 -> ML/an | R212: =IF(OR(O212="",O200=""),"",O212*1000000/O200/IF(MOD(Identification!$E$52,4)=0,366,365)) ->  | S212: l/pers/d
R213: =R169 -> Bilan 2019 | U213: =U169 -> Bilan 2018
B214: =B170 -> 1.15 | C214: =C170 -> Pertes d’eau réelles (PER) : | P214: =P170 -> ML/an | S214: =S170 -> ML/an | V214: =V170 -> ML/an
B215: =B171 -> 1.16 | C215: =C171 -> Pertes d’eau réelles inévitables (PERI) : | O215: =IF(COUNTA(O202:O205)<4,"",((18*O202+0.8*O203+25*O203*O204/1000)*O205*365/1000000)) ->  | P215: =P171 -> ML/an | R215: =IF(R214/$O215<0.7,0,R214) ->  | U215: =IF(U214/$O215<0.7,0,U214) -> 
B217: =B173 -> SECTION 2 - INDICATEURS DE PERFORMANCE
O218: =$O$42 -> Résultat | R218: =R174 -> Objectif
B219: 2.1 | C219: =C175 -> Indice de fuites dans les infrastructures (IFI) : | O219: =IF(IF(OR(O203=0,O203="",O215="",O214=""),"",IF(AND(O203<>"",O203<>0,O203>=3000),IF(AND(ISNUMBER(O214/O215),O214<>"",O215<>""),O214/O215,""),IF(AND(R214=0,O214<>"",U214<>"",U214<>0,(U214/O215)>=0.7),AVERAGE(O214/O215,U214/O215),IF(AND(U214=0,O214<>"",R214<>"",R214<>0),AVERAGE(O214/O215,R214/O215),IF(AND(R214=0,O214<>"",U214=0),O214/O215,IF(AND(R214<>0,R214<>"",O214<>"",U214<>"",U214<>0),AVERAGE(O214/O215,U214/O215,R214/O215)))))))<=0,"S.O.",IF(OR(O203=0,O203="",O215="",O214=""),"",IF(AND(O203<>"",O203<>0,O203>=3000),IF(AND(ISNUMBER(O214/O215),O214<>"",O215<>""),O214/O215,""),IF(AND(R214=0,O214<>"",U214<>"",U214<>0),AVERAGE(O214/O215,U214/O215),IF(AND(U214=0,O214<>"",R214<>"",R214<>0),AVERAGE(O214/O215,R214/O215),IF(AND(R214=0,O214<>"",U214=0),O214/O215,IF(AND(R214<>0,R214<>"",O214<>"",U214<>"",U214<>0),AVERAGE(O214/O215,U214/O215,R214/O215)))))))) ->  | R219: =IF(OR(O203="",AS12=""),"","≤ ")&IF(OR(O203="",AS12=""),"",TEXT(ROUND(AG12,1),"0,0")) -> 
B221: 2.2 | C221: =C177 -> Consommation résidentielle estimée : | O221: =IF(OR(O211="",O200=""),"",O211*1000000/O200/IF(MOD(Identification!$E$52,4)=0,366,365)) ->  | P221: l/pers/d | R221: =IF(SUM(COUNTIF($AS$8:$AS$17,"Non")+COUNTIF($AS$8:$AS$17,"Oui"))<>$O$13,"","≤ "&IF($AS$18="Oui",$AC$6,IF($AS$18="Non",$AC$5,""))) ->  | S221: =S177 -> l/pers/d
B223: 2.3 | C223: =C179 -> Résultat de validité des données de l’audit de l’eau AWWA : | R223: ≥ 50
B225: =B181 -> SECTION 3 - COMMENTAIRES
B226: =B182 -> Commentaires de la municipalité, s'il y a lieu :
B228: =B184 -> Commentaires du MAMH, s'il y a lieu :
B231: =B187 -> SECTION 4 -VALIDATION
B232: =B188 -> Liste de validation
B233: Les cases identifiées par une bordure rouge sont remplies. | U233: =U189 -> Non respecté
B234: Aucune case n'a de fond rouge. | U234: =U190 -> Respecté
B235: ="RÉSEAU 6 : "&IF(O239="","",O239) -> RÉSEAU 6 :
B237: SECTION 1 - DISTRIBUTION D'EAU POTABLE
B239: =B195 -> 1.1 | C239: =C195 -> Nom du réseau de distribution :
B240: =B196 -> 1.2 | C240: =C196 -> Numéro du MELCC du réseau de distribution :
B242: =B198 -> 1.3 | C242: Nombre de logements résidentiels desservis et occupés de façon permanente : | P242: =P198 -> log | R242: =R198 -> Statistiques 2020
B243: 1.4 | C243: Personnes par logement : | O243: =R23 ->  | P243: =P199 -> pers/log | R243: =R199 ->  | S243: =S199 -> pers/log
B244: 1.5 | C244: Population résidentielle et permanente desservie par ce réseau de distribution : | O244: =IF(ISNUMBER(IF(AND(O242<>"",O243<>""),O243*O242,"")),IF(AND(O242<>"",O243<>""),O243*O242,""),"") ->  | P244: =P200 -> pers
B246: =B202 -> 1.6 | C246: Longueur de ce réseau de distribution : | P246: =P202 -> km
B247: 1.7 | C247: Nombre de branchements de service :
B248: 1.8 | C248: Longueur moyenne des branchements de service côté usager : | P248: =P204 -> m
B249: 1.9 | C249: Pression moyenne au point représentatif du réseau : | P249: =P205 -> mètres d'eau
B251: =B207 -> 1.10 | C251: L’ensemble des installations de production d’eau potable a fonctionné pendant au moins une journée à plus de 90 % de sa capacité maximale nominale :
B252: 1.11 | C252: Au moins deux avis de restriction d’utilisation d’eau ont été émis lors d’une sécheresse, au cours des 5 dernières années :
B253: 1.12 | C253: Des investissements, dont l’objectif est d’augmenter la capacité des installations de production d’eau potable d’un réseau, sont prévus dans les 10 prochaines années :
B255: =B211 -> 1.13 | C255: =C211 -> Consommation résidentielle estimée : | P255: =P211 -> ML/an | R255: =IF(OR(O242="",O255=""),"",(O255*1000)/O242) ->  | S255: =S211 -> m³/log/an
B256: =B212 -> 1.14 | C256: =C212 -> Eau distribuée : | P256: =P212 -> ML/an | R256: =IF(OR(O256="",O244=""),"",O256*1000000/O244/IF(MOD(Identification!$E$52,4)=0,366,365)) ->  | S256: l/pers/d
R257: =R213 -> Bilan 2019 | U257: =U213 -> Bilan 2018
B258: =B214 -> 1.15 | C258: =C214 -> Pertes d’eau réelles (PER) : | P258: =P214 -> ML/an | S258: =S214 -> ML/an | V258: =V214 -> ML/an
B259: =B215 -> 1.16 | C259: =C215 -> Pertes d’eau réelles inévitables (PERI) : | O259: =IF(COUNTA(O246:O249)<4,"",((18*O246+0.8*O247+25*O247*O248/1000)*O249*365/1000000)) ->  | P259: =P215 -> ML/an | R259: =IF(R258/$O259<0.7,0,R258) ->  | U259: =IF(U258/$O259<0.7,0,U258) -> 
B261: SECTION 2 - INDICATEURS DE PERFORMANCE
O262: =$O$42 -> Résultat | R262: =R218 -> Objectif
B263: 2.1 | C263: =C219 -> Indice de fuites dans les infrastructures (IFI) : | O263: =IF(IF(OR(O247=0,O247="",O259="",O258=""),"",IF(AND(O247<>"",O247<>0,O247>=3000),IF(AND(ISNUMBER(O258/O259),O258<>"",O259<>""),O258/O259,""),IF(AND(R258=0,O258<>"",U258<>"",U258<>0,(U258/O259)>=0.7),AVERAGE(O258/O259,U258/O259),IF(AND(U258=0,O258<>"",R258<>"",R258<>0),AVERAGE(O258/O259,R258/O259),IF(AND(R258=0,O258<>"",U258=0),O258/O259,IF(AND(R258<>0,R258<>"",O258<>"",U258<>"",U258<>0),AVERAGE(O258/O259,U258/O259,R258/O259)))))))<=0,"S.O.",IF(OR(O247=0,O247="",O259="",O258=""),"",IF(AND(O247<>"",O247<>0,O247>=3000),IF(AND(ISNUMBER(O258/O259),O258<>"",O259<>""),O258/O259,""),IF(AND(R258=0,O258<>"",U258<>"",U258<>0),AVERAGE(O258/O259,U258/O259),IF(AND(U258=0,O258<>"",R258<>"",R258<>0),AVERAGE(O258/O259,R258/O259),IF(AND(R258=0,O258<>"",U258=0),O258/O259,IF(AND(R258<>0,R258<>"",O258<>"",U258<>"",U258<>0),AVERAGE(O258/O259,U258/O259,R258/O259)))))))) ->  | R263: =IF(OR(O247="",AS13=""),"","≤ ")&IF(OR(O247="",AS13=""),"",TEXT(ROUND(AG13,1),"0,0")) -> 
B265: 2.2 | C265: =C221 -> Consommation résidentielle estimée : | O265: =IF(OR(O255="",O244=""),"",O255*1000000/O244/IF(MOD(Identification!$E$52,4)=0,366,365)) ->  | P265: l/pers/d | R265: =IF(SUM(COUNTIF($AS$8:$AS$17,"Non")+COUNTIF($AS$8:$AS$17,"Oui"))<>$O$13,"","≤ "&IF($AS$18="Oui",$AC$6,IF($AS$18="Non",$AC$5,""))) ->  | S265: =S221 -> l/pers/d
B267: 2.3 | C267: =C223 -> Résultat de validité des données de l’audit de l’eau AWWA : | R267: ≥ 50
B269: SECTION 3 - COMMENTAIRES
B270: =B226 -> Commentaires de la municipalité, s'il y a lieu :
B272: =B228 -> Commentaires du MAMH, s'il y a lieu :
B275: SECTION 4 -VALIDATION
B276: =B232 -> Liste de validation
B277: Les cases identifiées par une bordure rouge sont remplies. | U277: =U233 -> Non respecté
... 125 more rows

Sheet Compilateur (hidden)
A1: Include on Chart | B1: Nom de la municipalité | C1: Ville | D1: Province | E1: Pays | F1: Nom du répondant | G1: Courriel | H1: Téléphone | I1: Année du rapport | J1: CY/FY | K1: Date de début | L1: Date de préparation de l'audit | M1: Unités | N1: PWS/OtherID | O1: Volume From Own Sources | P1: Volume From Own Sources MMEA | Q1: Water Imported | R1: Water Imported MMEA | S1: Water Exported | T1: Water Exported MMEA | U1: Water Supplied | V1: Billed Metered | W1: Billed Unmetered | X1: Unbilled Metered | Y1: Unbilled Unmetered | Z1: Unbilled Unmetered Default Used | AA1: Authorized Consumption | AB1: Water Losses | AC1: Unauthorized Consumption | AD1: Unauthorized Consumption Default Used | AE1: Customer Metering Inaccuracies | AF1: Systematic Data Handling Errors | AG1: Systematic Data Handling Errors Default Used | AH1: Apparent Losses | AI1: Real Losses | AJ1: Water Losses2 | AK1: Non Revenue Water | AL1: Length of Mains | AM1: Number of Active and Inactive Service Connections | AN1: Service Connection Density | AO1: Customer meters located at the Curbstop/ property line | AP1: Average length of customer service line | AQ1: Average Operating Pressure | AR1: Total Annual Cost of Operating Water System | AS1: Customer Retail Unit Cost | AT1: Customer Retail Units | AU1: Variable Production Cost | AV1: Unavoidable Annual Real Losses (UARL) | AW1: Annual Cost of Apparent Losses | AX1: Annual Cost of Real Losses | AY1: Value Applied to Real Losses (VPC / CRUC) | AZ1: Non-Revenue Water as % by Volume of Water Supplied | BA1: Non-Revenue Water as % by Cost of Operating System | BB1: Apparent Losses per service connection per day | BC1: Real Losses per service connection per day | BD1: Real Losses per length of main per day | BE1: Real Losses per service connection per day per unit pressure | BF1: Current Annual Real Losses (CARL) | BG1: Infrastructure Leakage Index (ILI) | BH1: Water Audit Data Validity Score | BI1: Priority Area #1 | BJ1: Priority Area #2 | BK1: Priority Area #3 | BL1: Grading: Volume From Own Sources | BM1: Grading: Volume From Own Sources MMEA | BN1: Grading: Water Imported | BO1: Grading: Water Imported MMEA | BP1: Grading: Water Exported | BQ1: Grading: Water Exported MMEA | BR1: Grading: Billed Metered | BS1: Grading: Billed Unmetered | BT1: Grading: Unbilled Metered | BU1: Grading: Unbilled Unmetered | BV1: Grading: Unauthorized Consumption | BW1: Grading: Customer Metering Inaccuracies | BX1: Grading: Systematic Data Handling Errors | BY1: Grading: Length of Mains | BZ1: Grading: No. of Active and Inactive Service Connections | CA1: Grading: Average length of customer service line | CB1: Grading: Average Operating Pressure | CC1: Grading: Total Annual Cost of Operating Water System | CD1: Grading: Customer Retail Unit Cost | CE1: Grading: Variable Production Cost | CF1: General Comments | CG1: FileName | CH1: Original Version | CI1: Poste | CJ1: Date de fin | CK1: Score de validité | CL1: Numéro MELCC

Sheet État & Plan d'action
P1: Nombre de logements desservis | Q1: Nombre minimal de logements à équiper de compteurs de façon aléatoire | R1: Marge d’erreur maximale admise (%) | S1: Listes déroulante
B2: =Identification!B2 -> Année du bilan : 2020 | M2: =Identification!J2 ->  | P2: Moins de 100 log | Q2: 10 | R2: 35 | S2: Liste_1.1.1a | T2: Liste_1.1.1b | U2: Liste_1.1.2a | V2: Liste_1.1.2b | W2: Liste_1.2a | X2: Liste_1.2b | Y2: Liste_1.3.1a | Z2: Liste_1.3.1b | AA2: Liste_1.3.2 | AB2: Liste_1.4.1a | AC2: Liste_1.4.1b | AD2: Liste_2.1.2a | AE2: Liste_2.1.2b | AF2: Liste_2.2.2a | AG2: Liste_2.2.2b | AH2: Liste_2.3.1a | AI2: Liste_2.3.1b | AJ2: Liste_2.3.2a | AK2: Liste_2.3.2b | AL2: Liste_3a | AM2: Liste_3b | AN2: Liste_3aa | AO2: Liste_3bb | AP2: Liste 4.2.1a | AQ2: Liste 4.2.1b | AR2: Liste_4.2.2a | AS2: Liste_4.2.2b | AT2: Liste_4.2.3a | AU2: Liste_4.2.3b | AV2: Liste_4.2.4a | AW2: Liste_4.2.4b | AX2: Liste_4.2.5a | AY2: Liste_4.2.5b | AZ2: Suivi compteurs
B3: =Identification!B3 -> Bilan 2020 de la Stratégie municipale d’économie d’eau potable | P3: 100 à 999 log | Q3: 20 | R3: 25
P4: 1 000 à 9 999 log | Q4: 60 | R4: 15 | S4: En cours | T4: Augmentation ≥ 5 % prévue | U4: Déjà réalisée | V4: Prévue | W4: Ne s'applique pas | X4: Ne s'applique pas | Y4: Non réalisée | Z4: Déjà réalisée | AA4: Prévue | AB4: Ne s'applique pas | AC4: Ne s'applique pas | AD4: Non réalisée | AE4: Non prévue | AF4: Pas de directive | AG4: Pas de directive | AH4: Non réalisée | AI4: Non prévue | AJ4: Non réalisée | AK4: Non prévue | AL4: Ne s'applique pas | AM4: Ne s'applique pas | AN4: Non réalisée | AO4: Non prévue | AP4: Non réalisée | AQ4: Non prévue | AR4: Ne s'applique pas | AS4: Ne s'applique pas | AT4: Ne s'applique pas | AU4: Ne s'applique pas | AV4: Ne s'applique pas | AW4: Ne s'applique pas | AX4: Ne s'applique pas | AY4: Ne s'applique pas | AZ4: Installation facultative
P5: 10 000 log et plus | Q5: 380 | R5: 6 | S5: Déjà réalisée | T5: Atteindre un résultat ≥ 50 % | W5: Pas de fuite et débordement | X5: Pas de fuite et débordement | Y5: En cours | AB5: Non réalisée | AC5: Non prévue | AD5: En cours | AE5: Prévue | AF5: Directive mise en place | AG5: Mettre en place une directive | AH5: SRP non rentables | AI5: Prévue | AJ5: SRP non rentables | AK5: Débuter les travaux | AL5: Non réalisée | AM5: Non prévue | AN5: En cours | AO5: Prévue | AP5: Installation débutée | AQ5: Débuter l'installation | AR5: Non réalisée | AS5: Non prévue | AT5: Données non relevées | AU5: Prévue | AV5: Non réalisée | AW5: Non prévue | AX5: Données non relevées | AY5: Prévue | AZ5: Auncun avancement
T6: Déjà réalisée | W6: Fuites et débordements constatés | X6: Non prévue | Y6: Déjà réalisée | AB6: En cours | AC6: Prévue | AD6: Déjà réalisée | AE6: Déjà réalisée | AF6: Délais respectés | AG6: Réduction ≥ 1 jour prévue | AH6: SRP rentables | AI6: Déjà réalisée | AJ6: SRP rentables | AK6: Réaliser 50 % des travaux | AL6: En cours | AM6: Prévue | AN6: Déjà réalisée | AO6: Déjà réalisée | AP6: 50 % des compteurs installés | AQ6: Installer 50 % des compteurs | AR6: Installation débutée | AS6: Débuter l'installation | AT6: Données relevées | AU6: Non prévue | AV6: Travaux débutés | AW6: Débuter les travaux | AX6: Données relevées | AY6: Non prévue | AZ6: Installation progressive
B7: ÉTAT & PLAN D'ACTION | W7: Directive mise en place | X7: Mettre en place les directives | AB7: Déjà réalisée | AC7: Déjà réalisée | AG7: Respecter les délais | AJ7: Travaux débutés | AK7: Terminer l'installation des SRP | AL7: Déjà réalisée | AM7: Déjà réalisée | AP7: Installation terminée | AQ7: Terminer l'installation | AR7: 50 % des compteurs installés | AS7: Installer 50 % des compteurs | AV7: 50% des travaux réalisés | AW7: Réaliser 50 % des travaux | AZ7: Installation terminée
W8: Travaux débutés | X8: Débuter les travaux | AJ8: 50% des travaux réalisés | AQ8: Installation terminée | AR8: Installation terminée | AS8: Terminer l'installation | AV8: Travaux terminés | AW8: Terminer les travaux
B9: Le guide L'économie d'eau potable et les municipalités de Réseau Environnement est une bonne référence pour remplir cette feuille : | W9: 50% des travaux réalisés | X9: Réaliser 50 % des travaux | Y9: Rapport | AC9: ="l’installation de compteurs d’eau dans tous les immeubles non résidentiels (Industriels, commerciaux, institutionnels, mixtes ciblés et municipaux) et d'un échantillon de "&K180&" compteurs d'eau dans le secteur résidentiel est requise d'ici le "&TEXT(E201,"[$-F800]jjjj, mmmm jj, aaaa")&"." -> l’installation de compteurs d’eau dans tous les immeubles non résidentiels (Industriels, commerciaux, institutionnels, mixtes ciblés et municipaux) et d'un échantillon de compteurs d'eau dans le secteur résidentiel est requise d'ici le 0 janvier 1900. | AJ9: SRP en place | AS9: Installation terminée | AW9: Travaux terminés
B10: Guide de L'économie d'eau potable et les municipalités, Réseau environnement, 2018 | W10: Fuite et débordement éliminés | X10: Éliminer fuites et débordements | Y10: Cette action doit être réalisée d'ici le 1er septembre 2021. | Z10: Action non requise puisqu'il n'y a aucun immeuble non résidentiel équipé de compteur d'eau. | AA10: Action non requise puisqu'il n'y a pas de fuites et débordements constatés aux réservoirs. | AB10: Action non requise puisque les délais de réparation des fuites sont respectés. | AC10: ="Étant donné que la valeur d'au moins un des indicateurs de performance dépasse l’objectif, "&AC9 -> Étant donné que la valeur d'au moins un des indicateurs de performance dépasse l’objectif, l’installation de compteurs d’eau dans tous les immeubles non résidentiels (Industriels, commerciaux, institutionnels, mixtes ciblés et municipaux) et d'un échantillon de compteurs d'eau dans le secteur résidentiel est requise d'ici le 0 janvier 1900. | AD10: Félicitations pour votre saine gestion de ce réseau! | AE10: L'objectif de pertes d'eau de ce réseau n'est pas atteint. | AF10: La municipalité doit réaliser un contrôle actif des fuites sur 200 % de la longueur équivalente des réseaux où l'objectif des pertes d'eau n'a pas été atteint, d'ici le 1er septembre 2022.";"Le contrôle actif des fuites est facultatif.") | AG10: Action facultative puisque l'objectif de pertes d'eau est atteint dans tous les réseaux de distribution d'eau potable. | AH10: Action réalisée. La mise en place de SRP est rentable.
S11: Bilan précédent RDF? | T11: Bilan précédent conso dépassée? | Y11: Action réalisée. | Z11: Cette action doit être réalisée d'ici le 1er septembre 2023. | AA11: Cette action doit être réalisée d'ici le 1er septembre 2023. | AB11: Action facultative puisque l'objectif de pertes d'eau est atteint dans tous les réseaux de distribution d'eau potable. | AC11: ="Si la municipalité dépasse un des objectifs au bilan 2021, l’installation de compteurs d’eau dans tous les immeubles non résidentiels (Industriels, commerciaux, institutionnels, mixtes ciblés et municipaux) et d'un échantillon de "&K180&" compteurs d'eau dans le secteur résidentiel sera requise progressivement d'ici le 1er septembre 2025." -> Si la municipalité dépasse un des objectifs au bilan 2021, l’installation de compteurs d’eau dans tous les immeubles non résidentiels (Industriels, commerciaux, institutionnels, mixtes ciblés et municipaux) et d'un échantillon de compteurs d'eau dans le secteur résidentiel sera requise progressivement d'ici le 1er septembre 2025. | AD11: Nous vous invitons à suivre de près les fluctuations décelées par l'enregistrement des données en continu des débitmètres installés sur le réseau de distribution. | AE11: Pour ce réseau, il est recommandé de mettre en place un programme de contrôle actif des fuites sur 200 % de sa longueur équivalente et d'écouter un échantillon de robinets d'arrêt accessibles. | AH11: Action réalisée. La mise en place de SRP n'est pas rentable.
B12: SECTION 1 - ACTIONS À RÉALISER | S12: =IF(AND(VLOOKUP(codegeo,Statistiques!B10:P11174,10,FALSE)>VLOOKUP(codegeo,Statistiques!B10:P11174,11,FALSE),VLOOKUP(codegeo,Statistiques!B10:P11174,9,FALSE)=1),"Oui","Non") ->  | T12: =IF(AND(VLOOKUP(codegeo,Statistiques!B10:P11174,12,FALSE)>VLOOKUP(codegeo,Statistiques!B10:P11174,13,FALSE)),"Oui","Non") ->  | Z12: Action réalisée. | AA12: Action réalisée. | AB12: Cette action doit être réalisée d'ici le 1er septembre 2022. | AC12: L'installation de compteurs d'eau dans le secteur non résidentiel et d'un échantillon de compteurs dans le secteur résidentiel est terminée. | AH12: Au Bilan 2021, si l'objectif des pertes d'eau n'est pas atteint dans tous les réseaux de distribution d'eau potable et si la pression moyenne du PRZ est supérieure à 60 m, réaliser une analyse de rentabilité concernant la mise en place d’un SRP d'ici le 1er septembre 2023.
M13: ↑ Haut de page | AB13: Action réalisée. | AH13: Au Bilan 2021, si l'objectif des pertes d'eau n'est pas atteint dans tous les réseaux de distribution d'eau potable et si la pression moyenne du PRZ est supérieure à 60 m, mettre en place des SRP d'ici le 1er septembre 2025 si cela est rentable.
B14: 1.1 | C14: Assurer annuellement la validité des données de l’audit de l’eau AWWA. | K14: Bilan 2020 | M14: D'ici le 1er septembre 2022 | S14: Cellules avec fond orange
B15: er1. | C15: Atteindre un résultat de validité des données supérieur à 50 % pour tous les audits de l'eau de l'AWWA d'ici le 1er septembre 2022. Si le résultat est inférieur à 50 %, une augmentation d'au moins 5 % par année est requise. | S15: IFI | T15: Cible IFI | U15: Objectif résidentiel atteint? | V15: Objectif PE atteint? | W15: Nbre de logements | X15: Nbre de branchements | Y15: Nbre de robinets pour échantillonnage | Z15: Respect de tous les objectifs de 2014 à 2017 | AA15: Respect des pertes d'eau en 2017 | AB15: Longueur totale des réseaux | AC15: longueur de réseau à ausculté | AD15: Pression min | AE15: LV partie 1
B16: 2. | C16: Transmettre les volumes relevés d'eau consommée ainsi que le(s) rapport(s) de vérification pour le(s) débitmètre(s) en incluant les volumes d’eau produits, importés et exportés par mois et par débitmètre, au MAMH. | S16: ='Audit de l''eau'!AF18 ->  | T16: ='Audit de l''eau'!AF19 ->  | U16: ='Audit de l''eau'!BA18 ->  | V16: ='Audit de l''eau'!BB18 -> Oui | W16: ='Audit de l''eau'!AK18 -> 0 | X16: ='Audit de l''eau'!AO18 -> 0 | Y16: =SUM(Y17:Y26) -> 10 | Z16: =VLOOKUP(codegeo,Statistiques!$B$10:$U$1117,10,FALSE) ->  | AA16: =VLOOKUP(codegeo,Statistiques!$B$10:$V$1117,11,FALSE) ->  | AB16: ='Audit de l''eau'!AN18 ->  | AC16: =SUMIF('Audit de l''eau'!BB8:BB17,"Non",'Audit de l''eau'!AN8:AN17) -> 0 | AE16: =IF(AND('Audit de l''eau'!$O$13>9,COUNTA(K31:K35,M31:M35,K41:K45,M41:M45,K51:K55,M51:M55,K61:K65,M61:M65,K71:K75,M71:M75,K81:K85,M81:M85,K91:K95,M91:M95,K101:K105,M101:M105,K111:K115,M111:M115,K121:K125,M121:M125)<>100),"Non respecté",IF(AND('Audit de l''eau'!$O$13>8,COUNTA(K31:K35,M31:M35,K41:K45,M41:M45,K51:K55,M51:M55,K61:K65,M61:M65,K71:K75,M71:M75,K81:K85,M81:M85,K91:K95,M91:M95,K101:K105,M101:M105,K111:K115,M111:M115)<>90),"Non respecté",IF(AND('Audit de l''eau'!$O$13>7,COUNTA(K31:K35,M31:M35,K41:K45,M41:M45,K51:K55,M51:M55,K61:K65,M61:M65,K71:K75,M71:M75,K81:K85,M81:M85,K91:K95,M91:M95,K101:K105,M101:M105)<>80),"Non respecté",IF(AND('Audit de l''eau'!$O$13>6,COUNTA(K31:K35,M31:M35,K41:K45,M41:M45,K51:K55,M51:M55,K61:K65,M61:M65,K71:K75,M71:M75,K81:K85,M81:M85,K91:K95,M91:M95)<>70),"Non respecté",IF(AND('Audit de l''eau'!$O$13>5,COUNTA(K31:K35,M31:M35,K41:K45,M41:M45,K51:K55,M51:M55,K61:K65,M61:M65,K71:K75,M71:M75,K81:K85,M81:M85)<>60),"Non respecté",IF(AND('Audit de l''eau'!$O$13>4,COUNTA(K31:K35,M31:M35,K41:K45,M41:M45,K51:K55,M51:M55,K61:K65,M61:M65,K71:K75,M71:M75)<>50),"Non respecté",IF(AND('Audit de l''eau'!$O$13>3,COUNTA(K31:K35,M31:M35,K41:K45,M41:M45,K51:K55,M51:M55,K61:K65,M61:M65)<>40),"Non respecté",IF(AND('Audit de l''eau'!$O$13>2,COUNTA(K31:K35,M31:M35,K41:K45,M41:M45,K51:K55,M51:M55)<>30),"Non respecté",IF(AND('Audit de l''eau'!$O$13>1,COUNTA(K31:K35,M31:M35,K41:K45,M41:M45)<>20),"Non respecté",IF(AND('Audit de l''eau'!$O$13>0,COUNTA(K31:K35,M31:M35)<>10),"Non respecté","Respecté")))))))))) -> Non respecté
T17: =IF(AND($V$16="non",$F$141>20),TRUE,FALSE) -> FALSE | V17: ='Audit de l''eau'!BB8 ->  | W17: Réseau 1 | X17: ='Audit de l''eau'!AO8 -> 0 | Y17: =IF(OR(X17="",V17="oui"),"",IF(X17<100,10,IF(AND(X17<10000,X17>=100),10+90*(X17/10000),IF(X17>=10000,100)))) -> 10 | Z17: ='Audit de l''eau'!AR8 ->  | AA17: =IF(AND(V17="non",Z17>60),"non","oui") -> oui
B18: 1.2 | C18: Éliminer les fuites et les débordements constatés aux réservoirs. Mettre en place une directive pour les éliminer d'ici le 1er septembre 2023. | V18: ='Audit de l''eau'!BB9 ->  | W18: Réseau 2 | X18: ='Audit de l''eau'!AO9 ->  | Y18: =IF(OR(X18="",V18="oui"),"",IF(X18<100,10,IF(AND(X18<10000,X18>=100),10+90*(X18/10000),IF(X18>=10000,100)))) ->  | Z18: ='Audit de l''eau'!AR9 ->  | AA18: =IF(AND(V18="non",Z18>60),"non","oui") -> oui
B19: 1.3 | C19: Mettre à jour la réglementation municipale sur l'utilisation de l'eau et présenter le rapport annuel analysé par le MAMH au conseil municipal. | V19: ='Audit de l''eau'!BB10 ->  | W19: Réseau 3 | X19: ='Audit de l''eau'!AO10 ->  | Z19: ='Audit de l''eau'!AR10 ->  | AA19: oui
B20: er1. | C20: Mettre à jour la réglementation municipale concernant les systèmes de climatisation sans boucle de recirculation, les urinoirs à réservoir de chasse automatique, l’arrosage, les piscines, les spas et le délai de réparation des tuyaux privés d’approvisionnement défectueux d'ici le 1er septembre 2021. | V20: ='Audit de l''eau'!BB11 ->  | W20: Réseau 4 | X20: ='Audit de l''eau'!AO11 ->  | Z20: ='Audit de l''eau'!AR11 ->  | AA20: oui
B21: 2. | C21: Présenter annuellement le rapport du Bilan au conseil municipal. | V21: ='Audit de l''eau'!BB12 ->  | W21: Réseau 5 | X21: ='Audit de l''eau'!AO12 ->  | Z21: ='Audit de l''eau'!AR12 ->  | AA21: oui
V22: ='Audit de l''eau'!BB13 ->  | W22: Réseau 6 | X22: ='Audit de l''eau'!AO13 ->  | Z22: ='Audit de l''eau'!AR13 ->  | AA22: oui
B23: 1.4 er | C23: Pour les municipalités qui installent ou qui ont installé des compteurs d’eau dans les immeubles non résidentiels, inclure et mettre à jour une forme de tarification volumétrique dans la réglementation municipale sur le financement des services d’eau d'ici le 1er septembre 2023. | V23: ='Audit de l''eau'!BB14 ->  | W23: Réseau 7 | X23: ='Audit de l''eau'!AO14 ->  | Z23: ='Audit de l''eau'!AR14 ->  | AA23: oui
V24: ='Audit de l''eau'!BB15 ->  | W24: Réseau 8 | X24: ='Audit de l''eau'!AO15 ->  | Z24: ='Audit de l''eau'!AR15 ->  | AA24: oui
B25: SECTION 2 - ACTIONS SUPPLÉMENTAIRES À RÉALISER SI L'OBJECTIF DES PERTES D'EAU N'EST PAS ATTEINT | V25: ='Audit de l''eau'!BB16 ->  | W25: Réseau 9 | X25: ='Audit de l''eau'!AO16 ->  | Z25: ='Audit de l''eau'!AR16 ->  | AA25: oui
M26: ↑ Haut de page | V26: ='Audit de l''eau'!BB17 ->  | W26: Réseau 10 | X26: ='Audit de l''eau'!AO17 ->  | Z26: ='Audit de l''eau'!AR17 ->  | AA26: oui
B27: 2.1 | C27: Effectuer un contrôle actif des fuites incluant la localisation précise de celles-ci. | AA27: =IF(COUNTIF(AA17:AA26,"Non")>0,"Non","Oui") -> Oui
B28: 1. | C28: Si l'objectif des pertes d'eau n'est pas atteint pour un réseau au Bilan 2020, réaliser un contrôle actif des fuites sur 200 % de la longueur équivalente de ce réseau d'ici le 1er septembre 2022. Pour chacune des options, inscrire la longueur (kilomètre) où un contrôle actif des fuites a été réalisé en 2020 et prévu en 2021. Pour les options 1, 3 et 5, chaque kilomètre de réseau où ces options ont été mises en place, compte pour deux kilomètres de la longueur totale du réseau où le contrôle des pertes d’eau doit être réalisé. | K28: Pour la section 2.1, veuillez inscire des longueurs de réseau où effectuer un contrôle actif des pertes d'eau.
C30: ='Audit de l''eau'!B15 -> RÉSEAU 1 : | F30: =IF('Audit de l''eau'!AH8="Oui","Contrôle actif des fuites : Requis","Contrôle actif des fuites : Facultatif") -> Contrôle actif des fuites : Facultatif | H30: ="Longueur du réseau : "&TEXT('Audit de l''eau'!AN8,"0,000")&" km" -> Longueur du réseau : 0,000 km | K30: =K14 -> Bilan 2020 | M30: Plan d'action 2021
C31: Option 1 | D31: Mettre en place des secteurs de suivi de la distribution.
C32: Option 2 | D32: Écouter à tous les poteaux d’incendie.
C33: Option 3 | D33: Écouter les poteaux d’incendie, vannes et robinets d’arrêt accessibles.
C34: Option 4 | D34: Procéder à la mise en place temporaire d’enregistreurs de bruits.
C35: Option 5 | D35: Procéder à la mise en place permanente d’enregistreurs de bruits et assurer un suivi quotidien.
I37: Longueur équivalente : | K37: =IF(COUNTA(K31:K35)=0,"",(K31*2+K32+K33*2+K34+K35*2)) ->  | M37: =IF(COUNTA(M31:M35)=0,"",(M31*2+M32+M33*2+M34+M35*2)) -> 
I38: Pourcentage équivalent : | K38: =IFERROR(IF(COUNTA(K31:K35)=0,"",K37/'Audit de l''eau'!$AN$8),"") ->  | M38: =IFERROR(IF(COUNTA(M31:M35)=0,"",M37/'Audit de l''eau'!$AN$8),"") -> 
C40: ='Audit de l''eau'!B59 -> RÉSEAU 2 : | F40: =IF('Audit de l''eau'!AH9="Oui","Contrôle actif des fuites : Requis","Contrôle actif des fuites : Facultatif") -> Contrôle actif des fuites : Facultatif | H40: ="Longueur du réseau : "&TEXT('Audit de l''eau'!AN9,"0,000")&" km" -> Longueur du réseau : km | K40: =K30 -> Bilan 2020 | M40: =M30 -> Plan d'action 2021
C41: Option 1 | D41: =D31 -> Mettre en place des secteurs de suivi de la distribution.
C42: Option 2 | D42: =D32 -> Écouter à tous les poteaux d’incendie.
C43: Option 3 | D43: Écouter les poteaux d’incendie, vannes et robinets d’arrêt accessibles.
C44: Option 4 | D44: =D34 -> Procéder à la mise en place temporaire d’enregistreurs de bruits.
C45: Option 5 | D45: Procéder à la mise en place permanente d’enregistreurs de bruits et assurer un suivi quotidien.
I47: Longueur équivalente : | K47: =IF(COUNTA(K41:K45)=0,"",(K41*2+K42+K43*2+K44+K45*2)) ->  | M47: =IF(COUNTA(M41:M45)=0,"",(M41*2+M42+M43*2+M44+M45*2)) -> 
I48: Pourcentage équivalent : | K48: =IFERROR(IF(COUNTA(K41:K45)=0,"",K47/'Audit de l''eau'!$AN$9),"") ->  | M48: =IFERROR(IF(COUNTA(M41:M45)=0,"",M47/'Audit de l''eau'!$AN$9),"") -> 
C50: ='Audit de l''eau'!B103 -> RÉSEAU 3 : | F50: =IF('Audit de l''eau'!AH10="Oui","Contrôle actif des fuites : Requis","Contrôle actif des fuites : Facultatif") -> Contrôle actif des fuites : Facultatif | H50: ="Longueur du réseau : "&TEXT('Audit de l''eau'!AN10,"0,000")&" km" -> Longueur du réseau : km | K50: =K40 -> Bilan 2020 | M50: =M40 -> Plan d'action 2021
C51: Option 1 | D51: =D41 -> Mettre en place des secteurs de suivi de la distribution.
C52: Option 2 | D52: =D42 -> Écouter à tous les poteaux d’incendie.
C53: Option 3 | D53: Écouter les poteaux d’incendie, vannes et robinets d’arrêt accessibles.
C54: Option 4 | D54: Procéder à la mise en place temporaire d’enregistreurs de bruits.
C55: Option 5 | D55: Procéder à la mise en place permanente d’enregistreurs de bruits et assurer un suivi quotidien.
I57: Longueur équivalente : | K57: =IF(COUNTA(K51:K55)=0,"",(K51*2+K52+K53*2+K54+K55*2)) ->  | M57: =IF(COUNTA(M51:M55)=0,"",(M51*2+M52+M53*2+M54+M55*2)) -> 
I58: Pourcentage équivalent : | K58: =IFERROR(IF(COUNTA(K51:K55)=0,"",K57/'Audit de l''eau'!$AN$10),"") ->  | M58: =IFERROR(IF(COUNTA(M51:M55)=0,"",M57/'Audit de l''eau'!$AN$10),"") -> 
C60: ='Audit de l''eau'!B147 -> RÉSEAU 4 : | F60: =IF('Audit de l''eau'!AH11="Oui","Contrôle actif des fuites : Requis","Contrôle actif des fuites : Facultatif") -> Contrôle actif des fuites : Facultatif | H60: ="Longueur du réseau : "&TEXT('Audit de l''eau'!AN11,"0,000")&" km" -> Longueur du réseau : km | K60: =K50 -> Bilan 2020 | M60: =M50 -> Plan d'action 2021
C61: Option 1 | D61: =D51 -> Mettre en place des secteurs de suivi de la distribution.
C62: Option 2 | D62: =D52 -> Écouter à tous les poteaux d’incendie.
C63: Option 3 | D63: Écouter les poteaux d’incendie, vannes et robinets d’arrêt accessibles.
C64: Option 4 | D64: Procéder à la mise en place temporaire d’enregistreurs de bruits.
C65: Option 5 | D65: Procéder à la mise en place permanente d’enregistreurs de bruits et assurer un suivi quotidien.
I67: Longueur équivalente : | K67: =IF(COUNTA(K61:K65)=0,"",(K61*2+K62+K63*2+K64+K65*2)) ->  | M67: =IF(COUNTA(M61:M65)=0,"",(M61*2+M62+M63*2+M64+M65*2)) -> 
I68: Pourcentage équivalent : | K68: =IFERROR(IF(COUNTA(K61:K65)=0,"",K67/'Audit de l''eau'!$AN$11),"") ->  | M68: =IFERROR(IF(COUNTA(M61:M65)=0,"",M67/'Audit de l''eau'!$AN$11),"") -> 
C70: ='Audit de l''eau'!B191 -> RÉSEAU 5 : | F70: =IF('Audit de l''eau'!AH12="Oui","Contrôle actif des fuites : Requis","Contrôle actif des fuites : Facultatif") -> Contrôle actif des fuites : Facultatif | H70: ="Longueur du réseau : "&TEXT('Audit de l''eau'!AN12,"0,000")&" km" -> Longueur du réseau : km | K70: =K60 -> Bilan 2020 | M70: =M60 -> Plan d'action 2021
C71: Option 1 | D71: =D61 -> Mettre en place des secteurs de suivi de la distribution.
C72: Option 2 | D72: =D62 -> Écouter à tous les poteaux d’incendie.
C73: Option 3 | D73: Écouter les poteaux d’incendie, vannes et robinets d’arrêt accessibles.
C74: Option 4 | D74: Procéder à la mise en place temporaire d’enregistreurs de bruits.
C75: Option 5 | D75: Procéder à la mise en place permanente d’enregistreurs de bruits et assurer un suivi quotidien.
I77: Longueur équivalente : | K77: =IF(COUNTA(K71:K75)=0,"",(K71*2+K72+K73*2+K74+K75*2)) ->  | M77: =IF(COUNTA(M71:M75)=0,"",(M71*2+M72+M73*2+M74+M75*2)) -> 
I78: Pourcentage équivalent : | K78: =IFERROR(IF(COUNTA(K71:K75)=0,"",K77/'Audit de l''eau'!$AN$12),"") ->  | M78: =IFERROR(IF(COUNTA(M71:M75)=0,"",M77/'Audit de l''eau'!$AN$12),"") -> 
C80: ='Audit de l''eau'!B235 -> RÉSEAU 6 : | F80: =IF('Audit de l''eau'!AH13="Oui","Contrôle actif des fuites : Requis","Contrôle actif des fuites : Facultatif") -> Contrôle actif des fuites : Facultatif | H80: ="Longueur du réseau : "&TEXT('Audit de l''eau'!AN13,"0,000")&" km" -> Longueur du réseau : km | K80: =K70 -> Bilan 2020 | M80: =M70 -> Plan d'action 2021
C81: Option 1 | D81: =D71 -> Mettre en place des secteurs de suivi de la distribution.
C82: Option 2 | D82: =D72 -> Écouter à tous les poteaux d’incendie.
C83: Option 3 | D83: Écouter les poteaux d’incendie, vannes et robinets d’arrêt accessibles.
C84: Option 4 | D84: Procéder à la mise en place temporaire d’enregistreurs de bruits.
C85: Option 5 | D85: Procéder à la mise en place permanente d’enregistreurs de bruits et assurer un suivi quotidien.
I87: Longueur équivalente : | K87: =IF(COUNTA(K81:K85)=0,"",(K81*2+K82+K83*2+K84+K85*2)) ->  | M87: =IF(COUNTA(M81:M85)=0,"",(M81*2+M82+M83*2+M84+M85*2)) -> 
I88: Pourcentage équivalent : | K88: =IFERROR(IF(COUNTA(K81:K85)=0,"",K87/'Audit de l''eau'!$AN$13),"") ->  | M88: =IFERROR(IF(COUNTA(M81:M85)=0,"",M87/'Audit de l''eau'!$AN$13),"") -> 
C90: ='Audit de l''eau'!B279 -> RÉSEAU 7 : | F90: =IF('Audit de l''eau'!AH14="Oui","Contrôle actif des fuites : Requis","Contrôle actif des fuites : Facultatif") -> Contrôle actif des fuites : Facultatif | H90: ="Longueur du réseau : "&TEXT('Audit de l''eau'!AN14,"0,000")&" km" -> Longueur du réseau : km | K90: =K80 -> Bilan 2020 | M90: =M80 -> Plan d'action 2021
C91: Option 1 | D91: =D81 -> Mettre en place des secteurs de suivi de la distribution.
C92: Option 2 | D92: =D82 -> Écouter à tous les poteaux d’incendie.
C93: Option 3 | D93: Écouter les poteaux d’incendie, vannes et robinets d’arrêt accessibles.
C94: Option 4 | D94: Procéder à la mise en place temporaire d’enregistreurs de bruits.
C95: Option 5 | D95: Procéder à la mise en place permanente d’enregistreurs de bruits et assurer un suivi quotidien.
I97: Longueur équivalente : | K97: =IF(COUNTA(K91:K95)=0,"",(K91*2+K92+K93*2+K94+K95*2)) ->  | M97: =IF(COUNTA(M91:M95)=0,"",(M91*2+M92+M93*2+M94+M95*2)) -> 
I98: Pourcentage équivalent : | K98: =IFERROR(IF(COUNTA(K91:K95)=0,"",K97/'Audit de l''eau'!$AN$14),"") ->  | M98: =IFERROR(IF(COUNTA(M91:M95)=0,"",M97/'Audit de l''eau'!$AN$14),"") -> 
C100: ='Audit de l''eau'!B323 -> RÉSEAU 8 : | F100: =IF('Audit de l''eau'!AH15="Oui","Contrôle actif des fuites : Requis","Contrôle actif des fuites : Facultatif") -> Contrôle actif des fuites : Facultatif | H100: ="Longueur du réseau : "&TEXT('Audit de l''eau'!AN15,"0,000")&" km" -> Longueur du réseau : km | K100: =K90 -> Bilan 2020 | M100: =M90 -> Plan d'action 2021
C101: Option 1 | D101: =D91 -> Mettre en place des secteurs de suivi de la distribution.
C102: Option 2 | D102: =D92 -> Écouter à tous les poteaux d’incendie.
C103: Option 3 | D103: Écouter les poteaux d’incendie, vannes et robinets d’arrêt accessibles.
C104: Option 4 | D104: Procéder à la mise en place temporaire d’enregistreurs de bruits.
C105: Option 5 | D105: Procéder à la mise en place permanente d’enregistreurs de bruits et assurer un suivi quotidien.
I107: Longueur équivalente : | K107: =IF(COUNTA(K101:K105)=0,"",(K101*2+K102+K103*2+K104+K105*2)) ->  | M107: =IF(COUNTA(M101:M105)=0,"",(M101*2+M102+M103*2+M104+M105*2)) -> 
I108: Pourcentage équivalent : | K108: =IFERROR(IF(COUNTA(K101:K105)=0,"",K107/'Audit de l''eau'!$AN$15),"") ->  | M108: =IFERROR(IF(COUNTA(M101:M105)=0,"",M107/'Audit de l''eau'!$AN$15),"") -> 
C110: ='Audit de l''eau'!B367 -> RÉSEAU 9 : | F110: =IF('Audit de l''eau'!AH16="Oui","Contrôle actif des fuites : Requis","Contrôle actif des fuites : Facultatif") -> Contrôle actif des fuites : Facultatif | H110: ="Longueur du réseau : "&TEXT('Audit de l''eau'!AN16,"0,000")&" km" -> Longueur du réseau : km | K110: =K100 -> Bilan 2020 | M110: =M100 -> Plan d'action 2021
C111: Option 1 | D111: =D101 -> Mettre en place des secteurs de suivi de la distribution.
C112: Option 2 | D112: =D102 -> Écouter à tous les poteaux d’incendie.
C113: Option 3 | D113: Écouter les poteaux d’incendie, vannes et robinets d’arrêt accessibles.
C114: Option 4 | D114: Procéder à la mise en place temporaire d’enregistreurs de bruits.
C115: Option 5 | D115: Procéder à la mise en place permanente d’enregistreurs de bruits et assurer un suivi quotidien.
I117: Longueur équivalente : | K117: =IF(COUNTA(K111:K115)=0,"",(K111*2+K112+K113*2+K114+K115*2)) ->  | M117: =IF(COUNTA(M111:M115)=0,"",(M111*2+M112+M113*2+M114+M115*2)) -> 
I118: Pourcentage équivalent : | K118: =IFERROR(IF(COUNTA(K111:K115)=0,"",K117/'Audit de l''eau'!$AN$16),"") ->  | M118: =IFERROR(IF(COUNTA(M111:M115)=0,"",M117/'Audit de l''eau'!$AN$16),"") -> 
C120: ='Audit de l''eau'!B411 -> RÉSEAU 10 : | F120: =IF('Audit de l''eau'!AH17="Oui","Contrôle actif des fuites : Requis","Contrôle actif des fuites : Facultatif") -> Contrôle actif des fuites : Facultatif | H120: ="Longueur du réseau : "&TEXT('Audit de l''eau'!AN17,"0,000")&" km" -> Longueur du réseau : km | K120: =K110 -> Bilan 2020 | M120: =M110 -> Plan d'action 2021
C121: Option 1 | D121: =D111 -> Mettre en place des secteurs de suivi de la distribution.
C122: Option 2 | D122: =D112 -> Écouter à tous les poteaux d’incendie.
C123: Option 3 | D123: Écouter les poteaux d’incendie, vannes et robinets d’arrêt accessibles.
C124: Option 4 | D124: Procéder à la mise en place temporaire d’enregistreurs de bruits.
C125: Option 5 | D125: Procéder à la mise en place permanente d’enregistreurs de bruits et assurer un suivi quotidien.
I127: Longueur équivalente : | K127: =IF(COUNTA(K121:K125)=0,"",(K121*2+K122+K123*2+K124+K125*2)) ->  | M127: =IF(COUNTA(M121:M125)=0,"",(M121*2+M122+M123*2+M124+M125*2)) -> 
I128: Pourcentage équivalent : | K128: =IFERROR(IF(COUNTA(K121:K125)=0,"",K127/'Audit de l''eau'!$AN$17),"") ->  | M128: =IFERROR(IF(COUNTA(M121:M125)=0,"",M127/'Audit de l''eau'!$AN$17),"") -> 
K130: =K30 -> Bilan 2020 | M130: D'ici le 1er septembre 2022
B131: 2. | C131: Si l'objectif des pertes d'eau n'est pas atteint au Bilan 2020, réaliser un contrôle actif des fuites par l’intermédiaire d’une écoute sur un échantillon de robinets d’arrêt accessibles d'ici le 1er septembre 2022.
C133: Nombre minimal de robinets d'arrêt accessibles à écouter pour réaliser un contrôle actif des fuites : | K133: =IF(X16=0,"",Y16) -> 
B135: 2.2 | C135: Optimiser le temps de réparation de fuites.
B136: 1. | C136: Nombre de fuites réparées et les délais moyens entre la localisation et la réparation des fuites.
E138: Nombre de réparations en 2020 | F138: Délai moyen entre la détection et la réparation des fuites (jours estimés) | G138: Fréquence de réparation | I138: Valeur de comparaison
C139: Conduites | G139: =IF(AND(E139=0,E139<>""),"Aucune réparation en 2020.",IF(AND('Audit de l''eau'!AN18=0,'Audit de l''eau'!O13=1),"La longueur totale du réseau de distribution est nulle.",IF(AND('Audit de l''eau'!AN18=0,'Audit de l''eau'!O13>1),"La longueur totale des réseaux de distribution est nulle.",IF(OR(E139="",'Audit de l''eau'!AN18="",'Audit de l''eau'!AN18=0,ISERROR(E139*100/'Audit de l''eau'!AN18)),"",IF(E139=0,0,E139*100/'Audit de l''eau'!AN18))))) ->  | I139: 13
C140: Branchements de service du côté public | G140: =IF(AND(E140<>"",E140=0),"Aucune réparation en 2020",IF(OR(E140="",'Audit de l''eau'!AO18="",'Audit de l''eau'!AO18=0,ISERROR(E140*1000/'Audit de l''eau'!AO18)),"",IF(E140=0,0,E140*1000/'Audit de l''eau'!AO18))) ->  | I140: 3
C141: Branchements de service du côté privé | G141: =IF(AND(E141<>"",E141=0),"Aucune réparation en 2020",IF(OR(E141="",'Audit de l''eau'!AO18="",'Audit de l''eau'!AO18=0,ISERROR(E141*1000/'Audit de l''eau'!AO18)),"",IF(E141=0,0,E141*1000/'Audit de l''eau'!AO18))) ->  | I141: 1.5
C142: Total | E142: =IF(COUNTA(E139:E141)>0,SUM(E139:E141),"") -> 
B143: 2. | C143: Si l'objectif des pertes d'eau n'est pas atteint au Bilan 2020, réduire les délais de réparation de fuites à un maximum de 5 jours du côté municipal et de 20 jours du côté privé. Mettre en place une directive pour les réduire d'ici le 1er septembre 2022. Dans le cas où les délais moyens maximaux sont dépassés, mentionner dans la directive qu’il sera prévu de réduire les délais moyens d’au moins une journée par année. | K143: =K130 -> Bilan 2020 | M143: D'ici le 1er septembre 2022
B146: 2.3 | C146: Gestion de la pression.
B147: er1. | C147: Si l'objectif des pertes d'eau n'est pas atteint au Bilan 2021, réaliser une analyse de rentabilité concernant la mise en place d’un secteur de régulation de pression (SRP) d'ici le 1er septembre 2023 si la pression moyenne du point représentatif de zone est supérieure à 60 m (85 psi; 588 kPa).
B148: er2. er | C148: Si l'objectif des pertes d'eau n'est pas atteint au Bilan 2021, mettre en place des SRP si cela est rentable, d'ici le 1er septembre 2025. Avoir débuté les travaux d'ici le 1er septembre 2023. Avoir réalisé 50 % des travaux d'ici le 1er septembre 2024.
B150: SECTION 3 - ACTIONS SUPPLÉMENTAIRES À RÉALISER SI L'OBJECTIF DE CONSOMMATION RÉSIDENTIELLE N'EST PAS ATTEINT
M151: ↑ Haut de page
B152: er3.1er | C152: Si l'objectif de consommation résidentielle n'est pas atteint au Bilan 2020, sensibiliser annuellement les citoyens à la valeur de l’eau par au moins quatre des options suivantes d'ici le 1er septembre 2022. | M152: D'ici le 1er septembre 2022
C153: =IFERROR(IF('Audit de l''eau'!AV20>'Audit de l''eau'!AT19,"Mettre en place 4 actions pour sensibiliser les citoyens d'ici le 1er septembre 2022 : Requis","Mettre en place 4 actions pour sensibiliser les citoyens : Facultatif"),"Actions à mettre en place pour sensibiliser les citoyens à la valeur de l'eau") -> Actions à mettre en place pour sensibiliser les citoyens à la valeur de l'eau | K153: =K143 -> Bilan 2020
C154: Option 1 | D154: Participer au programme éducatif Fantastik'eau ou à un programme équivalent.
C155: Option 2 | D155: Participer au programme de sensibilisation Municipalité Écon’eau de Réseau Environnement, à un programme équivalent ou à une campagne de sensibilisation citoyenne.
C156: Option 3 | D156: Offrir des incitatifs financiers pour l’installation d’équipements certifiés WaterSense.
C157: Option 4 | D157: Offrir des audits de consommation d’eau à l’intérieur ou à l’extérieur des immeubles résidentiels.
C158: Option 5 | D158: Appliquer annuellement la réglementation sur l’utilisation de l’eau par un système progressif de sensibilisation, d’avertissement et d’infraction.
C159: Option 6 | D159: Rendre visibles les tarifications et taxes pour les services d’eau (ex. : site Web, document annexe à l’avis d’imposition, etc.).
C160: Option 7 | D160: Adopter ou mettre à jour la réglementation municipale sur le financement des services d’eau en incluant une forme de tarification volumétrique.
C161: Option 8 | D161: Installer des compteurs d’eau dans au moins 10 % des immeubles résidentiels, jusqu’à concurrence d’au moins 1 000 immeubles résidentiels pour améliorer l’estimation de la consommation résidentielle.
C162: Option 9 | D162: Au besoin, entrer une action.
B164: er3.2 er | C164: Si l'objectif de consommation résidentielle n'est pas atteint au Bilan 2020, montrer annuellement l’exemple en tant que municipalité en mettant en place au moins quatre des options suivantes d'ici le 1er septembre 2022. | M164: D'ici le 1er septembre 2022
C165: =IFERROR(IF('Audit de l''eau'!AV20>'Audit de l''eau'!AT19,"Mettre en place 4 actions pour montrer l'exemple en tant que municipalité d'ici le 1er septembre 2022: Requis","Mettre en place 4 actions pour montrer l'exemple en tant que municipalité : Facultatif"),"Actions à mettre en place pour montrer l'exemple en tant que municipalité") -> Actions à mettre en place pour montrer l'exemple en tant que municipalité | K165: =K153 -> Bilan 2020
C166: Option 1 | D166: Installer des points d’alimentation en eau brute pour des usages municipaux (nettoyage de rue et arrosage).
C167: Option 2 | D167: Mettre en place une directive sur les bonnes pratiques d’arrosage recommandées par Québec Vert, la communauté du végétal et du paysage.
C168: Option 3 | D168: Mettre en place une directive pour remplacer les toilettes, urinoirs et robinets de salle de bain par des équipements certifiés WaterSense dans les immeubles municipaux.
C169: Option 4 | D169: Mettre en place une directive pour signaler et réparer rapidement les fuites d’eau dans les immeubles municipaux.
C170: Option 5 | D170: Mettre en place une directive pour optimiser la consommation d’eau des jeux d’eau, pataugeoires et piscines.
C171: Option 6 | D171: Mettre en place une directive pour optimiser les pratiques de rinçage du réseau en favorisant le rinçage unidirectionnel au rinçage conventionnel.
C172: Option 7 | D172: Mettre en place une directive pour éliminer ou optimiser les purges permanentes sur le réseau (les purges incluent celles pour contrer le gel, celles assurant une bonne qualité de l’eau ainsi que les fontaines publiques connectées directement sur le réseau).
C173: Option 8 | D173: Mettre en place une réserve financière dédiée aux infrastructures d’eau.
C174: Option 9 | D174: Au besoin, entrer une action.
B176: SECTION 4 - ACTIONS SUPPLÉMENTAIRES À RÉALISER SI LES OBJECTIFS DES PERTES D'EAU OU DE CONSOMMATION RÉSIDENTIELLE NE SONT PAS ATTEINTS
M177: ↑ Haut de page
B178: 4.1 | C178: Compteurs d'eau à la consommation dans les secteurs résidentiel et non résidentiel.
B180: Nombre minimal de compteurs d'eau à installer pour estimer la consommation du secteur résidentiel par échantillonnage représentatif : | K180: =IF(OR(W16="",W16=0),"",IF(W16<10,W16,IF(W16<100,Q2,IF(AND(W16>=100,W16<1000),Q3,IF(AND(W16>=1000,W16<10000),Q4,IF(W16>=10000,Q5)))))) -> 
C182: Nombre de branchements de service | E182: Équipés de compteurs et relevés | F182: Équipés de compteurs et non relevés | G182: Sans compteurs | H182: Inactifs | I182: Total
C183: Non résidentiels | I183: =IF(AND(E183="",F183="",G183="",H183=""),"",H183+G183+F183+E183) -> 
C184: Résidentiels | I184: =IF(AND(E184="",F184="",G184="",H184=""),"",H184+G184+F184+E184) -> 
B186: 4.2 | C186: Mesurer la consommation des immeubles non résidentiels et estimer la consommation résidentielle. | K186: =K165 -> Bilan 2020 | M186: D'ici le 1er septembre 2022
B187: 1. | C187: Installer des compteurs d'eau dans tous les immeubles non résidentiels.
B188: 2. | C188: Installer des compteurs d'eau dans un échantillon d'immeubles résidentiels pour estimer la consommation résidentielle.
B189: 3. | C189: Mettre en place des secteurs de suivi de la consommation (SSC) pour estimer la consommation résidentielle.
B191: SECTION 5 - COMMENTAIRES DE LA MUNICIPALITÉ
M192: ↑ Haut de page
B193: Commentaires de la municipalité, s'il y a lieu :
B196: SECTION 6 - VALIDATION
M197: ↑ Haut de page
B198: Commentaires du MAMH, s'il y a lieu :
B200: Suivi de l'installation des compteurs d'eau
D201: Date limite pour terminer l'installation :
D202: Secteur résidentiel :
D203: Secteur non résidentiel :
B205: Liste de validation
B206: Les cases identifiées par une bordure rouge sont remplies. | M206: =IF(AND(E139<>"",E139<>0,COUNTA(F139)<>1),"Non respecté",IF(AND(E140<>"",E140<>0,COUNTA(F140)<>1),"Non respecté",IF(AND(E141<>"",E141<>0,COUNTA(F141)<>1),"Non respecté",IF(AE16="Non respecté","Non respecté",IF(AND(OR(K174<>"",M174<>""),D174="Au besoin, entrer une action."),"Non respecté",IF(AND(OR(K162<>"",M162<>""),D162="Au besoin, entrer une action."),"Non respecté",IF(AND(OR(K162="",M162=""),D162<>"Au besoin, entrer une action."),"Non respecté",IF(AND(OR(K174="",M174=""),D174<>"Au besoin, entrer une action."),"Non respecté",IF(COUNTA(K15:K16,M15:M16,K18,M18,K20:K21,M20:M21,K23,M23,K131,M131,E139:E141,K144,M144,K147:K148,M147:M148,K154:K161,M154:M161,K166:K173,M166:M173,E183:H184,K187:K189,M187:M189)=69,"Respecté","Non respecté"))))))))) -> Non respecté

Sheet Coût
B2: =Identification!B2 -> Année du bilan : 2020 | O2: =Identification!J2 -> 
B3: ='État & Plan d''action'!B3:M6 -> Bilan 2020 de la Stratégie municipale d’économie d’eau potable
B7: COÛT
B9: Cette feuille est à remplir en collaboration avec le service des finances ou la direction générale de la municipalité. Tous les montants à inscrire sont en dollars pour l'année 2020.
B13: SECTION 1 - COÛT DE FONCTIONNEMENT DES SERVICES D'EAU DE L'ANNÉE 2020
O14: ↑ Haut de page
G15: Eau potable | H15: Eaux usées et pluviales | I15: Total
B16: 1.1 | C16: Charges avant amortissement [$] | I16: =IF(AND(G16="",H16=""),"",SUM(G16:H16)) -> 
B17: 1.2 | C17: Frais de financement [$]
B18: 1.3 | C18: Remboursement de la dette [$ estimé]
B19: 1.4 | C19: Frais d'administration générale [$ estimé]
B20: 1.5 | C20: Total des coûts de fonctionnement des services d'eau [$ estimé] | G20: =IF(COUNTA(G16:G19)=0,"",SUM(G16:G19)) ->  | H20: =IF(COUNTA(H16:H19)=0,"",SUM(H16:H19)) ->  | I20: =IF(AND(G20="",H20=""),"",ROUND(SUM(G20:H20),0)) -> 
B22: SECTION 2 - REVENUS AFFECTÉS AUX SERVICES D'EAU DE L'ANNÉE 2020
O23: ↑ Haut de page
G24: Eau potable | H24: Eaux usées et pluviales | I24: Total
B25: 2.1 | C25: Tarification volumétrique [$] | I25: =IF(AND(G25="",H25=""),"",SUM(G25:H25)) -> 
B26: 2.2 | C26: Tarification non volumétrique [$] | I26: =IF(AND(G26="",H26=""),"",SUM(G26:H26)) -> 
B27: 2.3 | C27: Services rendus [$]
B28: 2.4 | C28: Transfert du gouvernement du Québec [$]
B29: 2.5 | C29: Taxe foncière sur la valeur pour les services d'eau [$]
B30: 2.6 | C30: Excédents de fonctionnement affectés, réserves financières et fonds réservés - portion pour les services d'eau [$]
B31: 2.7 | C31: Total des revenus affectés aux services d'eau [$] | G31: =IF(AND(G25="",G26="",G27="",G28="",G29="",G30=""),"",SUM(G25:G30)) ->  | H31: =IF(AND(H25="",H26="",H27="",H28="",H29="",H30=""),"",SUM(H25:H30)) ->  | I31: =IF(AND(G31="",H31=""),"",ROUND(SUM(G31:H31),0)) -> 
B33: 2.8 | C33: Excédent entre les revenus et le coût de fonctionnement [$ estimé] : | I33: =IF(OR(I31="",I20=""),"",IF(I31-I20>=0,I31-I20,0)) -> 
B35: 2.9 | C35: Excédent pour la réserve financière dédiée aux services d'eau [$] :
B37: 2.10 | C37: ="Solde de la réserve financière dédiée aux infrastructures d'eau à la fin de l'année "&Identification!$E$52&" [$] :" -> Solde de la réserve financière dédiée aux infrastructures d'eau à la fin de l'année 2020 [$] :
B39: SECTION 3 - SOURCES DE FINANCEMENT POUR LES INVESTISSEMENTS EN INFRASTRUCTURES D'EAU POTABLE, DES EAUX USÉES ET DES EAUX PLUVIALES
O40: ↑ Haut de page
B42: Maintien et rattrapage | D42: 2020 | E42: 2021 | F42: 2022 | G42: 2023 | H42: 2024 | I42: 2025 | J42: 2026 | K42: 2027 | L42: 2028 | M42: 2029 | N42: 2030 | O42: Total 2021-2030
D43: Investissements réels | E43: Investissements prévus
B44: 3.1 | C44: Subventions confirmées [$] | O44: =IF(AND(E44="",I44="",G44="",H44="",J44="",K44="",L44="",M44="",N44="",F44=""),"",SUM(E44:N44)) -> 
B45: 3.2 | C45: Emprunts [$ estimé]
B46: 3.3 | C46: Paiement comptant [$ estimé]
B47: 3.4 | C47: Total | D47: =IF(AND(D44="",D45="",D46=""),"",SUM(D44:D46)) ->  | E47: =IF(AND(E44="",E45="",E46=""),"",SUM(E44:E46)) ->  | F47: =IF(AND(F44="",F45="",F46=""),"",SUM(F44:F46)) -> 
B49: Amélioration de service | D49: 2020 | E49: 2021 | F49: 2022 | G49: 2023 | H49: 2024 | I49: 2025 | J49: 2026 | K49: 2027 | L49: 2028 | M49: 2029 | N49: 2030 | O49: Total 2021-2030
D50: Investissements réels | E50: Investissements prévus
B51: 3.5 | C51: Subventions confirmées [$] | O51: =IF(AND(E51="",I51="",G51="",H51="",J51="",K51="",L51="",M51="",N51="",F51=""),"",SUM(E51:N51)) -> 
B52: 3.6 | C52: Emprunts [$ estimé]
B53: 3.7 | C53: Paiement comptant [$ estimé]
B54: 3.8 | C54: Promoteurs et taxes sectorielles [$ estimé] | O54: =IF(AND(E54="",I54="",G54="",H54="",J54="",K54="",L54="",M54="",N54="",F54=""),"",SUM(E54:N54)) -> 
B55: 3.9 | C55: Total | D55: =IF(AND(D51="",D52="",D53="",D54),"",SUM(D51:D54)) ->  | E55: =IF(AND(E51="",E52="",E53="",E54),"",SUM(E51:E54)) -> 
B57: Agrandissement et nouvelles infrastructures | D57: 2020 | E57: 2021 | F57: 2022 | G57: 2023 | H57: 2024 | I57: 2025 | J57: 2026 | K57: 2027 | L57: 2028 | M57: 2029 | N57: 2030 | O57: Total 2021-2030
D58: Investissements réels | E58: Investissements prévus
B59: 3.10 | C59: Subventions confirmées [$] | O59: =IF(AND(E59="",I59="",G59="",H59="",J59="",K59="",L59="",M59="",N59="",F59=""),"",SUM(E59:N59)) -> 
B60: 3.11 | C60: Emprunts [$ estimé] | O60: =IF(AND(E60="",I60="",G60="",H60="",J60="",K60="",L60="",M60="",N60="",F60=""),"",SUM(E60:N60)) -> 
B61: 3.12 | C61: Paiement comptant [$ estimé] | O61: =IF(AND(E61="",I61="",G61="",H61="",J61="",K61="",L61="",M61="",N61="",F61=""),"",SUM(E61:N61)) -> 
B62: 3.13 | C62: Promoteurs et taxes sectorielles [$ estimé] | O62: =IF(AND(E62="",I62="",G62="",H62="",J62="",K62="",L62="",M62="",N62="",F62=""),"",SUM(E62:N62)) -> 
B63: 3.14 | C63: Total | D63: =IF(AND(D59="",D60="",D61="",D62=""),"",SUM(D59:D62)) ->  | E63: =IF(AND(E59="",E60="",E61="",E62=""),"",SUM(E59:E62)) ->  | O63: =IF(AND(E63="",I63="",G63="",H63="",J63="",K63="",L63="",M63="",N63="",F63=""),"",SUM(E63:N63)) -> 
B65: 3.15 | C65: Total | D65: =IF(AND(D47="",D55="",D63=""),"",SUM(D47,D55,D63)) ->  | E65: =IF(AND(E47="",E55="",E63=""),"",SUM(E47,E55,E63)) ->  | O65: =IF(AND(E65="",I65="",G65="",H65="",J65="",K65="",L65="",M65="",N65="",F65=""),"",SUM(E65:N65)) -> 
B67: SECTION 4 - COMMENTAIRES DE LA MUNICIPALITÉ
O68: ↑ Haut de page
B69: Commentaires de la municipalité, s'il y a lieu :
B72: SECTION 5 - VALIDATION
O73: ↑ Haut de page
B74: Commentaires du MAMH, s'il y a lieu :
B77: Liste de validation
B78: Les cases identifiées par une bordure rouge sont remplies. | N78: =IF(COUNTA(G16:H19,G25:H30,I35,I37,D44:N46,D51:N54,D59:N62)<>143,"Non respecté","Respecté") -> Non respecté

Sheet Rapport
B6: =Coût!B3 -> Bilan 2020 de la Stratégie municipale d’économie d’eau potable
B9: RAPPORT 2020 SUR LA GESTION DE L'EAU POTABLE
B15: POUR PRÉSENTATION AU CONSEIL MUNICIPAL
B16: =IF(codegeo="","",IF(VLOOKUP(codegeo,BD_STAT,4,FALSE)="Ville","De la ville de",IF(VLOOKUP(codegeo,BD_STAT,4,FALSE)="Municipalité","De la municipalité de",IF(VLOOKUP(codegeo,BD_STAT,4,FALSE)="Paroisse","De la paroisse de",IF(VLOOKUP(codegeo,BD_STAT,4,FALSE)="Village","Du village de",IF(VLOOKUP(codegeo,BD_STAT,4,FALSE)="Canton","Du canton de",IF(VLOOKUP(codegeo,BD_STAT,4,FALSE)="Cantons unis","Des cantons unis de",IF(VLOOKUP(codegeo,BD_STAT,4,FALSE)="Cité","De la cité de")))))))) -> 
B17: =IF(codegeo="","",UPPER(Identification!D55)) -> 
B18: ="Code géographique : "&codegeo -> Code géographique :
B20: ="Région administrative : "&Identification!D58 -> Région administrative :
B22: Complété par
B23: =IF(AND(Identification!D62="",Identification!D63=""),"",Identification!D62&" "&Identification!D63) -> 
B24: Approuvé par le ministère des Affaires municipales et de l'Habitation
B25: le
B26: =IF(Identification!E87="","",Identification!E87) -> 
B28: Mesures et recommandations
C30: Présentation des mesures liées à la Stratégie québécoise d'économie d'eau potable (Stratégie) à mettre en place par la municipalité ainsi que les recommandations pour améliorer la qualité de ses indicateurs de performances.
C31: Pour toute aide supplémentaire, communiquez avec l'équipe de la Stratégie : | K31: Coordonnées de l'équipe de soutien technique de la Stratégie
C32: Pour plus d'information sur la Stratégie, consultez le site Web : | I32: Site web de la Stratégie
C34: Réglementation municipale
D35: Mettre à jour la réglementation municipale sur l'utilisation de l'eau concernant les systèmes de climatisation sans boucle de recirculation, les urinoirs à réservoir de chasse automatique, l’arrosage, les piscines, les spas et le délai de réparation des tuyaux privés d’approvisionnement défectueux de façon similaire au modèle fourni par le MAMH sur le site Web de la Stratégie, d'ici le 1er septembre 2021. | M35: =IF('État & Plan d''action'!K20="","",IF('État & Plan d''action'!K20="Déjà réalisée",'État & Plan d''action'!Y11,'État & Plan d''action'!Y10)) -> 
D36: Pour les municipalités qui installent ou qui ont installé des compteurs d’eau dans les immeubles non résidentiels, inclure et mettre à jour une forme de tarification volumétrique dans la réglementation municipale sur le financement des services d’eau, d'ici le 1er septembre 2023. | M36: =IF('État & Plan d''action'!K23="","",IF('État & Plan d''action'!K23="Ne s'applique pas","Action non requise.",IF(SUM('État & Plan d''action'!E183:F183)=0,'État & Plan d''action'!Z10,IF('État & Plan d''action'!K23="Déjà réalisée",'État & Plan d''action'!Z12,'État & Plan d''action'!Z11)))) -> 
C38: Contrôle actif des pertes d'eau
D39: Mettre en place une directive pour éliminer les fuites et les débordements constatés aux réservoirs, d'ici le 1er septembre 2023. | M39: =IF('État & Plan d''action'!K18="Ne s'applique pas","Action non requise.",IF('État & Plan d''action'!K18="Pas de fuite et débordement",'État & Plan d''action'!AA10,IF('État & Plan d''action'!K18="Fuite et débordement éliminés",'État & Plan d''action'!AA12,'État & Plan d''action'!AA11))) -> Cette action doit être réalisée d'ici le 1er septembre 2023.
D40: Réaliser un contrôle actif des fuites sur 200 % de la longueur équivalente des réseaux où l'objectif de pertes d'eau n'est pas atteint, d'ici le 1er septembre 2022. | M40: =IF('Audit de l''eau'!AH18="oui","La municipalité doit réaliser un contrôle actif des fuites sur 200 % de la longueur équivalente des réseaux où l'objectif des pertes d'eau n'a pas été atteint, d'ici le 1er septembre 2022.","Le contrôle actif des fuites est facultatif.") -> Le contrôle actif des fuites est facultatif.
D41: Mettre en place une directive pour réduire les délais de réparation des fuites à un maximum de 5 jours du côté municipal et de 20 jours du côté privé, d'ici le 1er septembre 2022. | M41: =IF('État & Plan d''action'!K144="Délais respectés",'État & Plan d''action'!AB10,IF('État & Plan d''action'!K144="Directive mise en place",'État & Plan d''action'!AB13,IF(AND('État & Plan d''action'!V16="oui",'État & Plan d''action'!K144='État & Plan d''action'!AF4),'État & Plan d''action'!AB11,'État & Plan d''action'!AB12))) -> Cette action doit être réalisée d'ici le 1er septembre 2022.
D42: Réaliser un contrôle actif des fuites par l’intermédiaire d’une écoute sur un échantillon de robinets d’arrêt accessibles d'ici le 1er septembre 2022. | M42: =IF('État & Plan d''action'!M131="Déjà réalisée",'État & Plan d''action'!AB13,IF('État & Plan d''action'!V16="oui",'État & Plan d''action'!AG10,'État & Plan d''action'!AB12)) -> Action facultative puisque l'objectif de pertes d'eau est atteint dans tous les réseaux de distribution d'eau potable.
D43: Au Bilan 2021, si la pression moyenne du point représentatif de zone (PRZ) est supérieure à 60 m (85 psi; 588 kPa), réaliser une analyse de rentabilité concernant la mise en place d’un secteur de régulation de pression (SRP), d'ici le 1er septembre 2023. | M43: =IF('État & Plan d''action'!K147='État & Plan d''action'!AJ5,'État & Plan d''action'!AH11,IF('État & Plan d''action'!K147='État & Plan d''action'!AJ6,'État & Plan d''action'!AH10,'État & Plan d''action'!AH12)) -> Au Bilan 2021, si l'objectif des pertes d'eau n'est pas atteint dans tous les réseaux de distribution d'eau potable et si la pression moyenne du PRZ est supérieure à 60 m, réaliser une analyse de rentabilité concernant la mise en place d’un SRP d'ici le 1er septembre 2023.
D44: Si cela est rentable, mettre en place des SRP, d'ici le 1er septembre 2025. | M44: =IF('État & Plan d''action'!K147='État & Plan d''action'!AJ5,'État & Plan d''action'!AH11,IF('État & Plan d''action'!K147='État & Plan d''action'!AJ6,'État & Plan d''action'!AH10,IF('État & Plan d''action'!K148='État & Plan d''action'!AJ9,"Action réalisée. SRP mis en place.",'État & Plan d''action'!AH13))) -> Au Bilan 2021, si l'objectif des pertes d'eau n'est pas atteint dans tous les réseaux de distribution d'eau potable et si la pression moyenne du PRZ est supérieure à 60 m, mettre en place des SRP d'ici le 1er septembre 2025 si cela est rentable.
C46: Installation de compteurs d'eau
D47: =IF('État & Plan d''action'!E201="Installation terminée",'État & Plan d''action'!AC12,IF(OR('État & Plan d''action'!E201="Pas de date limite",'État & Plan d''action'!E201=""),'État & Plan d''action'!AC11,'État & Plan d''action'!AC10)) -> Si la municipalité dépasse un des objectifs au bilan 2021, l’installation de compteurs d’eau dans tous les immeubles non résidentiels (Industriels, commerciaux, institutionnels, mixtes ciblés et municipaux) et d'un échantillon de compteurs d'eau dans le secteur résidentiel sera requise progressivement d'ici le 1er septembre 2025. | M47: Secteur résidentiel
M48: =IF('État & Plan d''action'!E202="","",'État & Plan d''action'!E202) -> 
M49: Secteur non résidentiel
M50: =IF('État & Plan d''action'!E203="","",'État & Plan d''action'!E203) -> 
D51: Relever les compteurs d'eau. | M51: L'installation des compteurs d'eau doit être accompagnée d'une relève de ceux-ci. Il faut relever les données de compteurs d'eau au moins une fois par année, idéalement en début d'année civile.
C53: =IF('Audit de l''eau'!O13=1,"Précision des données de l'audit de l'eau de l'AWWA","Précision des données des audits de l'eau de l'AWWA") -> Précision des données de l'audit de l'eau de l'AWWA
D54: Atteindre un résultat de validité des données supérieur à 50 % pour tous les audits de l'eau de l'AWWA d'ici le 1er septembre 2022. Si le résultat est inférieur à 50 %, une augmentation d'au moins 5 % par année est requise. | M54: =IF('État & Plan d''action'!K15="Déjà réalisée",'État & Plan d''action'!Z12,'État & Plan d''action'!AB12) -> Cette action doit être réalisée d'ici le 1er septembre 2022.
C56: Commentaires généraux
B59: Audit de l'eau
B61: Indicateurs de performance par réseau de disribution
C63: ="Résultats pour le réseau 1 : "&'Audit de l''eau'!O19 -> Résultats pour le réseau 1 : | J63: Résultat 2020 | M63: Objectif 2020
C64: Indice de fuites dans les infrastructures : | J64: ='Audit de l''eau'!O43 ->  | M64: ='Audit de l''eau'!R43 ->  | O64: =IF(J64="","",IF(J64>(RIGHT(M64,3)*1),'État & Plan d''action'!$AE$10,'État & Plan d''action'!$AD$10)) -> 
C65: Résultat de validité des données : | J65: =IF('Audit de l''eau'!O47="","",'Audit de l''eau'!O47) ->  | M65: ≥ 50 | O65: =IF(J64="","",IF(J64>(RIGHT(M64,3)*1),'État & Plan d''action'!$AE$11,'État & Plan d''action'!$AD$11)) -> 
C66: Pression moyenne du réseau : | J66: ='Audit de l''eau'!AR8 -> 
C68: ="Résultats pour le réseau 2 : "&'Audit de l''eau'!O63 -> Résultats pour le réseau 2 : | J68: Résultat 2020 | M68: Objectif 2020
C69: Indice de fuites dans les infrastructures : | J69: ='Audit de l''eau'!O87 ->  | M69: ='Audit de l''eau'!R87 ->  | O69: =IF(J69="","",IF(J69>(RIGHT(M69,3)*1),'État & Plan d''action'!$AE$10,'État & Plan d''action'!$AD$10)) -> 
C70: Résultat de validité des données : | J70: ='Audit de l''eau'!O91 -> 0 | M70: ≥ 50 | O70: =IF(J69="","",IF(J69>(RIGHT(M69,3)*1),'État & Plan d''action'!$AE$11,'État & Plan d''action'!$AD$11)) -> 
C71: Pression moyenne du réseau : | J71: ='Audit de l''eau'!AR9 -> 
C73: ="Résultats pour le réseau 3 : "&'Audit de l''eau'!O107 -> Résultats pour le réseau 3 : | J73: Résultat 2020 | M73: Objectif 2020
C74: Indice de fuites dans les infrastructures : | J74: ='Audit de l''eau'!O131 ->  | M74: ='Audit de l''eau'!R131 ->  | O74: =IF(J74="","",IF(J74>(RIGHT(M74,3)*1),'État & Plan d''action'!$AE$10,'État & Plan d''action'!$AD$10)) -> 
C75: Résultat de validité des données : | J75: ='Audit de l''eau'!O135 -> 0 | M75: ≥ 50 | O75: =IF(J74="","",IF(J74>(RIGHT(M74,3)*1),'État & Plan d''action'!$AE$11,'État & Plan d''action'!$AD$11)) -> 
C76: Pression moyenne du réseau : | J76: ='Audit de l''eau'!AR10 -> 
C78: ="Résultats pour le réseau 4 : "&'Audit de l''eau'!O151 -> Résultats pour le réseau 4 : | J78: Résultat 2020 | M78: Objectif 2020
C79: Indice de fuites dans les infrastructures : | J79: ='Audit de l''eau'!O175 ->  | M79: ='Audit de l''eau'!R175 ->  | O79: =IF(J79="","",IF(J79>(RIGHT(M79,3)*1),'État & Plan d''action'!$AE$10,'État & Plan d''action'!$AD$10)) -> 
C80: Résultat de validité des données : | J80: ='Audit de l''eau'!O179 -> 0 | M80: ≥ 50 | O80: =IF(J79="","",IF(J79>(RIGHT(M79,3)*1),'État & Plan d''action'!$AE$11,'État & Plan d''action'!$AD$11)) -> 
C81: Pression moyenne du réseau : | J81: ='Audit de l''eau'!AR11 -> 
C83: ="Résultats pour le réseau 5 : "&'Audit de l''eau'!O195 -> Résultats pour le réseau 5 : | J83: Résultat 2020 | M83: Objectif 2020
C84: Indice de fuites dans les infrastructures : | J84: ='Audit de l''eau'!O219 ->  | M84: ='Audit de l''eau'!R219 ->  | O84: =IF(J84="","",IF(J84>(RIGHT(M84,3)*1),'État & Plan d''action'!$AE$10,'État & Plan d''action'!$AD$10)) -> 
C85: Résultat de validité des données : | J85: ='Audit de l''eau'!O223 -> 0 | M85: ≥ 50 | O85: =IF(J84="","",IF(J84>(RIGHT(M84,3)*1),'État & Plan d''action'!$AE$11,'État & Plan d''action'!$AD$11)) -> 
C86: Pression moyenne du réseau : | J86: ='Audit de l''eau'!AR12 -> 
C88: ="Résultats pour le réseau 6 : "&'Audit de l''eau'!O239 -> Résultats pour le réseau 6 : | J88: Résultat 2020 | M88: Objectif 2020
C89: Indice de fuites dans les infrastructures : | J89: ='Audit de l''eau'!O263 ->  | M89: ='Audit de l''eau'!R263 ->  | O89: =IF(J89="","",IF(J89>(RIGHT(M89,3)*1),'État & Plan d''action'!$AE$10,'État & Plan d''action'!$AD$10)) -> 
C90: Résultat de validité des données : | J90: ='Audit de l''eau'!O267 -> 0 | M90: ≥ 50 | O90: =IF(J89="","",IF(J89>(RIGHT(M89,3)*1),'État & Plan d''action'!$AE$11,'État & Plan d''action'!$AD$11)) -> 
C91: Pression moyenne du réseau : | J91: ='Audit de l''eau'!AR13 -> 
C93: ="Résultats pour le réseau 7 : "&'Audit de l''eau'!O283 -> Résultats pour le réseau 7 : | J93: Résultat 2020 | M93: Objectif 2020
C94: Indice de fuites dans les infrastructures : | J94: ='Audit de l''eau'!O307 ->  | M94: ='Audit de l''eau'!R307 ->  | O94: =IF(J94="","",IF(J94>(RIGHT(M94,3)*1),'État & Plan d''action'!$AE$10,'État & Plan d''action'!$AD$10)) -> 
C95: Résultat de validité des données : | J95: ='Audit de l''eau'!O311 -> 0 | M95: ≥ 50 | O95: =IF(J94="","",IF(J94>(RIGHT(M94,3)*1),'État & Plan d''action'!$AE$11,'État & Plan d''action'!$AD$11)) -> 
C96: Pression moyenne du réseau : | J96: ='Audit de l''eau'!AR14 -> 
C98: ="Résultats pour le réseau 8 : "&'Audit de l''eau'!O327 -> Résultats pour le réseau 8 : | J98: Résultat 2020 | M98: Objectif 2020
C99: Indice de fuites dans les infrastructures : | J99: ='Audit de l''eau'!O351 ->  | M99: ='Audit de l''eau'!R351 ->  | O99: =IF(J99="","",IF(J99>(RIGHT(M99,3)*1),'État & Plan d''action'!$AE$10,'État & Plan d''action'!$AD$10)) -> 
C100: Résultat de validité des données : | J100: ='Audit de l''eau'!O355 -> 0 | M100: ≥ 50 | O100: =IF(J99="","",IF(J99>(RIGHT(M99,3)*1),'État & Plan d''action'!$AE$11,'État & Plan d''action'!$AD$11)) -> 
C101: Pression moyenne du réseau : | J101: ='Audit de l''eau'!AR15 -> 
C103: ="Résultats pour le réseau 9 : "&'Audit de l''eau'!O371 -> Résultats pour le réseau 9 : | J103: Résultat 2020 | M103: Objectif 2020
C104: Indice de fuites dans les infrastructures : | J104: ='Audit de l''eau'!O395 ->  | M104: ='Audit de l''eau'!R395 ->  | O104: =IF(J104="","",IF(J104>(RIGHT(M104,3)*1),'État & Plan d''action'!$AE$10,'État & Plan d''action'!$AD$10)) -> 
C105: Résultat de validité des données : | J105: ='Audit de l''eau'!O399 -> 0 | M105: ≥ 50 | O105: =IF(J104="","",IF(J104>(RIGHT(M104,3)*1),'État & Plan d''action'!$AE$11,'État & Plan d''action'!$AD$11)) -> 
C106: Pression moyenne du réseau : | J106: ='Audit de l''eau'!AR16 -> 
C108: ="Résultats pour le réseau 10 : "&'Audit de l''eau'!O415 -> Résultats pour le réseau 10 : | J108: Résultat 2020 | M108: Objectif 2020 | O108: =IF(J109="","",IF(J109>(RIGHT(M109,3)*1),'État & Plan d''action'!$AE$10,'État & Plan d''action'!$AD$10)) -> 
C109: Indice de fuites dans les infrastructures : | J109: ='Audit de l''eau'!O439 ->  | M109: ='Audit de l''eau'!R439 ->  | O109: =IF(J109="","",IF(J109>(RIGHT(M109,3)*1),'État & Plan d''action'!$AE$11,'État & Plan d''action'!$AD$11)) -> 
C110: Résultat de validité des données : | J110: ='Audit de l''eau'!O443 -> 0 | M110: ≥ 50
C111: Pression moyenne du réseau : | J111: ='Audit de l''eau'!AR17 -> 
B113: Indicateurs de performance pour l'ensemble de la municipalité
C115: Résultats pour l'ensemble de la municipalité | J115: Résultat 2020 | M115: Objectif 2020
C116: Indice de fuites dans les infrastructures (IFI) : | J116: =IFERROR(IF(OR('Audit de l''eau'!AB18="Non respecté",'Audit de l''eau'!AC18="Non respecté"),"",'Audit de l''eau'!AF18),"") ->  | M116: =IFERROR("≤ "&TEXT(ROUND('Audit de l''eau'!AF19,1),"0,0"),"") -> 
C117: Consommation résidentielle estimée : | J117: =IFERROR(IF(OR('Audit de l''eau'!AB18="Non respecté",'Audit de l''eau'!AC18="Non respecté"),"",IF(OR('Audit de l''eau'!O13=0,'Audit de l''eau'!O13=""),"",ROUND(IF(OR('Audit de l''eau'!AY18="",'Audit de l''eau'!AM18="",'Audit de l''eau'!AY18=0,'Audit de l''eau'!AM18=0),"",'Audit de l''eau'!AY18/'Audit de l''eau'!AM18),0))),"") ->  | M117: =IF(OR('Audit de l''eau'!O13="",'Audit de l''eau'!O13=0),"",'Audit de l''eau'!R45)&" L/pers/d" -> L/pers/d
C118: Quantité d'eau distribuée : | J118: =IFERROR(IF(OR('Audit de l''eau'!AB18="Non respecté",'Audit de l''eau'!AC18="Non respecté"),"",ROUND(IF(OR('Audit de l''eau'!AZ18=0,'Audit de l''eau'!AZ18="",'Audit de l''eau'!AM18=0,'Audit de l''eau'!AM18=""),"",'Audit de l''eau'!AZ18/'Audit de l''eau'!AM18),0)),"") -> 
D122: 2018 | E122: 2019 | F122: 2020
C123: IFI | D123: =IFERROR(VLOOKUP(codegeo,Statistiques,16,FALSE),"Non disponible") -> Non disponible | E123: =IFERROR(VLOOKUP(codegeo,Statistiques,10,FALSE),"Non disponible") -> Non disponible | F123: =IFERROR(IF(J116="",#N/A,J116),"Non disponible") -> Non disponible
D124: =D122-0.5 -> 2017.5 | E124: =D124+2 -> 2019.5 | F124: =E124+2 -> 2021.5
C125: Cosommation résidentielle | D125: =IFERROR(VLOOKUP(codegeo,Statistiques,17,FALSE),"Non disponible") -> Non disponible | E125: =IFERROR(VLOOKUP(codegeo,Statistiques,12,FALSE),"Non disponible") -> Non disponible | F125: =IFERROR(IF(J117="",#N/A,J117),"Non disponible") -> Non disponible
C126: Pression moyenne | D126: =IF(VLOOKUP(codegeo,Statistiques,18,FALSE)="","",VLOOKUP(codegeo,Statistiques,18,FALSE)) ->  | E126: =IF(VLOOKUP(codegeo,Statistiques,14,FALSE)="","",VLOOKUP(codegeo,Statistiques,14,FALSE)) ->  | F126: =IFERROR(IF(OR('Audit de l''eau'!AB18="Non respecté",'Audit de l''eau'!AC18="Non respecté"),"",'Audit de l''eau'!AR18),"") -> 
D127: 2011 | E127: 2012 | F127: 2013 | G127: 2014 | H127: 2015 | I127: 2016 | J127: 2017 | K127: 2018 | L127: 2019 | M127: 2020
C128: Quantité d'eau distribuée | D128: =IFERROR(VLOOKUP(codegeo,Statistiques,34,FALSE),"Non disponible") -> Non disponible | E128: =IFERROR(VLOOKUP(codegeo,Statistiques,32,FALSE),"Non disponible") -> Non disponible | F128: =IFERROR(VLOOKUP(codegeo,Statistiques,30,FALSE),"Non disponible") -> Non disponible | G128: =IFERROR(VLOOKUP(codegeo,Statistiques,28,FALSE),"Non disponible") -> Non disponible | H128: =IFERROR(VLOOKUP(codegeo,Statistiques,26,FALSE),"Non disponible") -> Non disponible | I128: =IFERROR(VLOOKUP(codegeo,Statistiques,24,FALSE),"Non disponible") -> Non disponible | J128: =IFERROR(VLOOKUP(codegeo,Statistiques,22,FALSE),"Non disponible") -> Non disponible | K128: =IFERROR(VLOOKUP(codegeo,Statistiques,19,FALSE),"Non disponible") -> Non disponible | L128: =IFERROR(VLOOKUP(codegeo,Statistiques,15,FALSE),"Non disponible") -> Non disponible | M128: =IF(J118="","Non disponible",J118) -> Non disponible
C129: ="Objectif 2025 pour la municipalité : "&D129 -> Objectif 2025 pour la municipalité : ND | D129: =IFERROR('Audit de l''eau'!AT19,"ND") -> ND | E129: =D129 -> ND | F129: =E129 -> ND | G129: ND
B140: ÉTAT & PLAN D'ACTION
B142: ='État & Plan d''action'!B12 -> SECTION 1 - ACTIONS À RÉALISER
B144: 1.1 | C144: ='État & Plan d''action'!C14 -> Assurer annuellement la validité des données de l’audit de l’eau AWWA. | Q144: Bilan 2020 | S144: D'ici le 1er septembre 2022
B145: 1. er | C145: Atteindre un résultat de validité des données supérieur à 50 % pour tous les audits de l'eau de l'AWWA d'ici le 1er septembre 2022. Si le résultat est inférieur à 50 %, une augmentation d'au moins 5 % par année est requise. | Q145: =IF(OR('État & Plan d''action'!K15="",ISERROR('État & Plan d''action'!K15="")),"",'État & Plan d''action'!K15) ->  | S145: =IF(OR('État & Plan d''action'!M15="",ISERROR('État & Plan d''action'!M15="")),"",'État & Plan d''action'!M15) -> 
B146: 2. | C146: ='État & Plan d''action'!C16:I16 -> Transmettre les volumes relevés d'eau consommée ainsi que le(s) rapport(s) de vérification pour le(s) débitmètre(s) en incluant les volumes d’eau produits, importés et exportés par mois et par débitmètre, au MAMH. | Q146: =IF(OR('État & Plan d''action'!K16="",ISERROR('État & Plan d''action'!K16="")),"",'État & Plan d''action'!K16) ->  | S146: =IF(OR('État & Plan d''action'!M16="",ISERROR('État & Plan d''action'!M16="")),"",'État & Plan d''action'!M16) -> 
B148: r1.2 | C148: Éliminer les fuites et les débordements constatés aux réservoirs d'ici le 1er septembre 2023. | Q148: =IF(OR('État & Plan d''action'!K18="",ISERROR('État & Plan d''action'!K18="")),"",'État & Plan d''action'!K18) ->  | S148: =IF(OR('État & Plan d''action'!M18="",ISERROR('État & Plan d''action'!M18="")),"",'État & Plan d''action'!M18) -> 
B150: 1.3 | C150: Éliminer les fuites et les débordements constatés aux réservoirs. Mettre en place une directive pour les éliminer d'ici le 1er septembre 2023.
B151: 1. | C151: Mettre à jour la réglementation municipale concernant les systèmes de climatisation sans boucle de recirculation, les urinoirs à réservoir de chasse automatique, l’arrosage, les piscines, les spas et le délai de réparation des tuyaux privés d’approvisionnement défectueux d'ici le 1er septembre 2021. | Q151: =IF(OR('État & Plan d''action'!K20="",ISERROR('État & Plan d''action'!K20="")),"",'État & Plan d''action'!K20) ->  | S151: =IF(OR('État & Plan d''action'!M20="",ISERROR('État & Plan d''action'!M20="")),"",'État & Plan d''action'!M20) -> 
B152: 2. | C152: ='État & Plan d''action'!C21:I21 -> Présenter annuellement le rapport du Bilan au conseil municipal. | Q152: =IF(OR('État & Plan d''action'!K21="",ISERROR('État & Plan d''action'!K21="")),"",'État & Plan d''action'!K21) ->  | S152: =IF(OR('État & Plan d''action'!M21="",ISERROR('État & Plan d''action'!M21="")),"",'État & Plan d''action'!M21) -> 
B154: 1.4 r | C154: Pour les municipalités qui installent ou qui ont installé des compteurs d’eau dans les immeubles non résidentiels, inclure et mettre à jour une forme de tarification volumétrique dans la réglementation municipale d'ici le 1er septembre 2023. | Q154: =IF(OR('État & Plan d''action'!K23="",ISERROR('État & Plan d''action'!K23="")),"",'État & Plan d''action'!K23) ->  | S154: =IF(OR('État & Plan d''action'!M23="",ISERROR('État & Plan d''action'!M23="")),"",'État & Plan d''action'!M23) -> 
B156: ='État & Plan d''action'!B25 -> SECTION 2 - ACTIONS SUPPLÉMENTAIRES À RÉALISER SI L'OBJECTIF DES PERTES D'EAU N'EST PAS ATTEINT
B158: ='État & Plan d''action'!B27 -> 2.1 | C158: Effectuer un contrôle actif des fuites incluant la localisation précise de celles-ci.
B159: 1. | C159: Si l'objectif des pertes d'eau n'est pas atteint pour un réseau au Bilan 2020, réaliser un contrôle actif des fuites sur 200 % de la longueur équivalente de ce réseau d'ici le 1er septembre 2022. Pour chacune des options, inscrire la longueur (kilomètre) où un contrôle actif des fuites a été réalisé en 2020 et prévu en 2021. Pour les options 1, 3 et 5, chaque kilomètre de réseau où ces options ont été mises en place, compte pour deux kilomètres de la longueur totale du réseau où le contrôle des pertes d’eau doit être réalisé.
C160: ='État & Plan d''action'!C30:E30 -> RÉSEAU 1 : | H160: ='État & Plan d''action'!F30 -> Contrôle actif des fuites : Facultatif | O160: ='État & Plan d''action'!H30 -> Longueur du réseau : 0,000 km | Q160: Bilan 2020 | S160: Plan d'action 2021
C161: Option 1 | E161: Mettre en place des secteurs de suivi de la distribution. | Q161: =IF('État & Plan d''action'!K31="","",'État & Plan d''action'!K31) ->  | S161: =IF('État & Plan d''action'!M31="","",'État & Plan d''action'!M31) -> 
C162: Option 2 | E162: Écouter à tous les poteaux d’incendie. | F162: Écouter à tous les poteaux d’incendie. | Q162: =IF('État & Plan d''action'!K32="","",'État & Plan d''action'!K32) ->  | S162: =IF('État & Plan d''action'!M32="","",'État & Plan d''action'!M32) -> 
C163: Option 3 | E163: Écouter les poteaux d’incendie, vannes et robinets d’arrêt accessibles. | F163: Écouter les poteaux d’incendie, vannes et robinets d’arrêt accessibles. | Q163: =IF('État & Plan d''action'!K33="","",'État & Plan d''action'!K33) ->  | S163: =IF('État & Plan d''action'!M33="","",'État & Plan d''action'!M33) -> 
C164: Option 4 | E164: Procéder à la mise en place temporaire d’enregistreurs de bruits. | F164: Procéder à la mise en place temporaire d’enregistreurs de bruits. | Q164: =IF('État & Plan d''action'!K34="","",'État & Plan d''action'!K34) ->  | S164: =IF('État & Plan d''action'!M34="","",'État & Plan d''action'!M34) -> 
C165: Option 5 | E165: Procéder à la mise en place permanente d’enregistreurs de bruits et assurer un suivi quotidien. | F165: Procéder à la mise en place permanente d’enregistreurs de bruits et assurer un suivi quotidien. | Q165: =IF('État & Plan d''action'!K35="","",'État & Plan d''action'!K35) ->  | S165: =IF('État & Plan d''action'!M35="","",'État & Plan d''action'!M35) -> 
O167: Longueur équivalente : | Q167: =IF('État & Plan d''action'!K37="","",'État & Plan d''action'!K37) ->  | S167: =IF('État & Plan d''action'!M37="","",'État & Plan d''action'!M37) -> 
O168: Pourcentage équivalent : | Q168: =IF('État & Plan d''action'!K38="","",'État & Plan d''action'!K38) ->  | S168: =IF('État & Plan d''action'!M38="","",'État & Plan d''action'!M38) -> 
C170: ='État & Plan d''action'!C40:E40 -> RÉSEAU 2 : | H170: ='État & Plan d''action'!F40 -> Contrôle actif des fuites : Facultatif | O170: ='État & Plan d''action'!H40 -> Longueur du réseau : km | Q170: =Q160 -> Bilan 2020 | S170: Plan d'action 2021
C171: Option 1 | E171: Mettre en place des secteurs de suivi de la distribution. | Q171: =IF('État & Plan d''action'!K41="","",'État & Plan d''action'!K41) ->  | S171: =IF('État & Plan d''action'!M41="","",'État & Plan d''action'!M41) -> 
C172: Option 2 | E172: Écouter à tous les poteaux d’incendie. | F172: Écouter à tous les poteaux d’incendie. | Q172: =IF('État & Plan d''action'!K42="","",'État & Plan d''action'!K42) ->  | S172: =IF('État & Plan d''action'!M42="","",'État & Plan d''action'!M42) -> 
C173: Option 3 | E173: Écouter les poteaux d’incendie, vannes et robinets d’arrêt accessibles. | F173: Écouter les poteaux d’incendie, vannes et robinets d’arrêt accessibles. | Q173: =IF('État & Plan d''action'!K43="","",'État & Plan d''action'!K43) ->  | S173: =IF('État & Plan d''action'!M43="","",'État & Plan d''action'!M43) -> 
C174: Option 4 | E174: Procéder à la mise en place temporaire d’enregistreurs de bruits. | F174: Procéder à la mise en place temporaire d’enregistreurs de bruits. | Q174: =IF('État & Plan d''action'!K44="","",'État & Plan d''action'!K44) ->  | S174: =IF('État & Plan d''action'!M44="","",'État & Plan d''action'!M44) -> 
C175: Option 5 | E175: Procéder à la mise en place permanente d’enregistreurs de bruits et assurer un suivi quotidien. | F175: Procéder à la mise en place permanente d’enregistreurs de bruits et assurer un suivi quotidien. | Q175: =IF('État & Plan d''action'!K45="","",'État & Plan d''action'!K45) ->  | S175: =IF('État & Plan d''action'!M45="","",'État & Plan d''action'!M45) -> 
O177: Longueur équivalente : | Q177: =IF('État & Plan d''action'!K47="","",'État & Plan d''action'!K47) ->  | S177: =IF('État & Plan d''action'!M47="","",'État & Plan d''action'!M47) -> 
O178: Pourcentage équivalent : | Q178: =IF('État & Plan d''action'!K48="","",'État & Plan d''action'!K48) ->  | S178: =IF('État & Plan d''action'!M48="","",'État & Plan d''action'!M48) -> 
C180: ='État & Plan d''action'!C50:E50 -> RÉSEAU 3 : | H180: ='État & Plan d''action'!F50 -> Contrôle actif des fuites : Facultatif | O180: ='État & Plan d''action'!H50 -> Longueur du réseau : km | Q180: =Q170 -> Bilan 2020 | S180: Plan d'action 2021
C181: Option 1 | E181: Mettre en place des secteurs de suivi de la distribution. | Q181: =IF('État & Plan d''action'!K51="","",'État & Plan d''action'!K51) ->  | S181: =IF('État & Plan d''action'!M51="","",'État & Plan d''action'!M51) -> 
C182: Option 2 | E182: Écouter à tous les poteaux d’incendie. | F182: Écouter à tous les poteaux d’incendie. | Q182: =IF('État & Plan d''action'!K52="","",'État & Plan d''action'!K52) ->  | S182: =IF('État & Plan d''action'!M52="","",'État & Plan d''action'!M52) -> 
C183: Option 3 | E183: Écouter les poteaux d’incendie, vannes et robinets d’arrêt accessibles. | F183: Écouter les poteaux d’incendie, vannes et robinets d’arrêt accessibles. | Q183: =IF('État & Plan d''action'!K53="","",'État & Plan d''action'!K53) ->  | S183: =IF('État & Plan d''action'!M53="","",'État & Plan d''action'!M53) -> 
C184: Option 4 | E184: Procéder à la mise en place temporaire d’enregistreurs de bruits. | F184: Procéder à la mise en place temporaire d’enregistreurs de bruits. | Q184: =IF('État & Plan d''action'!K54="","",'État & Plan d''action'!K54) ->  | S184: =IF('État & Plan d''action'!M54="","",'État & Plan d''action'!M54) -> 
C185: Option 5 | E185: Procéder à la mise en place permanente d’enregistreurs de bruits et assurer un suivi quotidien. | F185: Procéder à la mise en place permanente d’enregistreurs de bruits et assurer un suivi quotidien. | Q185: =IF('État & Plan d''action'!K55="","",'État & Plan d''action'!K55) ->  | S185: =IF('État & Plan d''action'!M55="","",'État & Plan d''action'!M55) -> 
O187: Longueur équivalente : | Q187: =IF('État & Plan d''action'!K57="","",'État & Plan d''action'!K57) ->  | S187: =IF('État & Plan d''action'!M57="","",'État & Plan d''action'!M57) -> 
O188: Pourcentage équivalent : | Q188: =IF('État & Plan d''action'!K58="","",'État & Plan d''action'!K58) ->  | S188: =IF('État & Plan d''action'!M58="","",'État & Plan d''action'!M58) -> 
C190: ='État & Plan d''action'!C60:E60 -> RÉSEAU 4 : | H190: ='État & Plan d''action'!F60 -> Contrôle actif des fuites : Facultatif | O190: ='État & Plan d''action'!H60 -> Longueur du réseau : km | Q190: =Q180 -> Bilan 2020 | S190: Plan d'action 2021
C191: Option 1 | E191: Mettre en place des secteurs de suivi de la distribution. | Q191: =IF('État & Plan d''action'!K61="","",'État & Plan d''action'!K61) ->  | S191: =IF('État & Plan d''action'!M61="","",'État & Plan d''action'!M61) -> 
C192: Option 2 | E192: Écouter à tous les poteaux d’incendie. | F192: Écouter à tous les poteaux d’incendie. | Q192: =IF('État & Plan d''action'!K62="","",'État & Plan d''action'!K62) ->  | S192: =IF('État & Plan d''action'!M62="","",'État & Plan d''action'!M62) -> 
C193: Option 3 | E193: Écouter les poteaux d’incendie, vannes et robinets d’arrêt accessibles. | F193: Écouter les poteaux d’incendie, vannes et robinets d’arrêt accessibles. | Q193: =IF('État & Plan d''action'!K63="","",'État & Plan d''action'!K63) ->  | S193: =IF('État & Plan d''action'!M63="","",'État & Plan d''action'!M63) -> 
C194: Option 4 | E194: Procéder à la mise en place temporaire d’enregistreurs de bruits. | F194: Procéder à la mise en place temporaire d’enregistreurs de bruits. | Q194: =IF('État & Plan d''action'!K64="","",'État & Plan d''action'!K64) ->  | S194: =IF('État & Plan d''action'!M64="","",'État & Plan d''action'!M64) -> 
C195: Option 5 | E195: Procéder à la mise en place permanente d’enregistreurs de bruits et assurer un suivi quotidien. | F195: Procéder à la mise en place permanente d’enregistreurs de bruits et assurer un suivi quotidien. | Q195: =IF('État & Plan d''action'!K65="","",'État & Plan d''action'!K65) ->  | S195: =IF('État & Plan d''action'!M65="","",'État & Plan d''action'!M65) -> 
O197: Longueur équivalente : | Q197: =IF('État & Plan d''action'!K67="","",'État & Plan d''action'!K67) ->  | S197: =IF('État & Plan d''action'!M67="","",'État & Plan d''action'!M67) -> 
O198: Pourcentage équivalent : | Q198: =IF('État & Plan d''action'!K68="","",'État & Plan d''action'!K68) ->  | S198: =IF('État & Plan d''action'!M68="","",'État & Plan d''action'!M68) -> 
C200: ='État & Plan d''action'!C70:E70 -> RÉSEAU 5 : | H200: ='État & Plan d''action'!F70 -> Contrôle actif des fuites : Facultatif | O200: ='État & Plan d''action'!H70 -> Longueur du réseau : km | Q200: =Q190 -> Bilan 2020 | S200: Plan d'action 2021
C201: Option 1 | E201: Mettre en place des secteurs de suivi de la distribution. | Q201: =IF('État & Plan d''action'!K71="","",'État & Plan d''action'!K71) ->  | S201: =IF('État & Plan d''action'!M71="","",'État & Plan d''action'!M71) -> 
C202: Option 2 | E202: Écouter à tous les poteaux d’incendie. | F202: Écouter à tous les poteaux d’incendie. | Q202: =IF('État & Plan d''action'!K72="","",'État & Plan d''action'!K72) ->  | S202: =IF('État & Plan d''action'!M72="","",'État & Plan d''action'!M72) -> 
C203: Option 3 | E203: Écouter les poteaux d’incendie, vannes et robinets d’arrêt accessibles. | F203: Écouter les poteaux d’incendie, vannes et robinets d’arrêt accessibles. | Q203: =IF('État & Plan d''action'!K73="","",'État & Plan d''action'!K73) ->  | S203: =IF('État & Plan d''action'!M73="","",'État & Plan d''action'!M73) -> 
C204: Option 4 | E204: Procéder à la mise en place temporaire d’enregistreurs de bruits. | F204: Procéder à la mise en place temporaire d’enregistreurs de bruits. | Q204: =IF('État & Plan d''action'!K74="","",'État & Plan d''action'!K74) ->  | S204: =IF('État & Plan d''action'!M74="","",'État & Plan d''action'!M74) -> 
C205: Option 5 | E205: Procéder à la mise en place permanente d’enregistreurs de bruits et assurer un suivi quotidien. | F205: Procéder à la mise en place permanente d’enregistreurs de bruits et assurer un suivi quotidien. | Q205: =IF('État & Plan d''action'!K75="","",'État & Plan d''action'!K75) ->  | S205: =IF('État & Plan d''action'!M75="","",'État & Plan d''action'!M75) -> 
O207: Longueur équivalente : | Q207: =IF('État & Plan d''action'!K77="","",'État & Plan d''action'!K77) ->  | S207: =IF('État & Plan d''action'!M77="","",'État & Plan d''action'!M77) -> 
O208: Pourcentage équivalent : | Q208: =IF('État & Plan d''action'!K78="","",'État & Plan d''action'!K78) ->  | S208: =IF('État & Plan d''action'!M78="","",'État & Plan d''action'!M78) -> 
C210: ='État & Plan d''action'!C80:E80 -> RÉSEAU 6 : | H210: ='État & Plan d''action'!F80 -> Contrôle actif des fuites : Facultatif | O210: ='État & Plan d''action'!H80 -> Longueur du réseau : km | Q210: =Q200 -> Bilan 2020 | S210: Plan d'action 2021
C211: Option 1 | E211: Mettre en place des secteurs de suivi de la distribution. | Q211: =IF('État & Plan d''action'!K81="","",'État & Plan d''action'!K81) ->  | S211: =IF('État & Plan d''action'!M81="","",'État & Plan d''action'!M81) -> 
C212: Option 2 | E212: Écouter à tous les poteaux d’incendie. | F212: Écouter à tous les poteaux d’incendie. | Q212: =IF('État & Plan d''action'!K82="","",'État & Plan d''action'!K82) ->  | S212: =IF('État & Plan d''action'!M82="","",'État & Plan d''action'!M82) -> 
C213: Option 3 | E213: Écouter les poteaux d’incendie, vannes et robinets d’arrêt accessibles. | F213: Écouter les poteaux d’incendie, vannes et robinets d’arrêt accessibles. | Q213: =IF('État & Plan d''action'!K83="","",'État & Plan d''action'!K83) ->  | S213: =IF('État & Plan d''action'!M83="","",'État & Plan d''action'!M83) -> 
C214: Option 4 | E214: Procéder à la mise en place temporaire d’enregistreurs de bruits. | F214: Procéder à la mise en place temporaire d’enregistreurs de bruits. | Q214: =IF('État & Plan d''action'!K84="","",'État & Plan d''action'!K84) ->  | S214: =IF('État & Plan d''action'!M84="","",'État & Plan d''action'!M84) -> 
C215: Option 5 | E215: Procéder à la mise en place permanente d’enregistreurs de bruits et assurer un suivi quotidien. | F215: Procéder à la mise en place permanente d’enregistreurs de bruits et assurer un suivi quotidien. | Q215: =IF('État & Plan d''action'!K85="","",'État & Plan d''action'!K85) ->  | S215: =IF('État & Plan d''action'!M85="","",'État & Plan d''action'!M85) -> 
O217: Longueur équivalente : | Q217: =IF('État & Plan d''action'!K87="","",'État & Plan d''action'!K87) ->  | S217: =IF('État & Plan d''action'!M87="","",'État & Plan d''action'!M87) -> 
O218: Pourcentage équivalent : | Q218: =IF('État & Plan d''action'!K88="","",'État & Plan d''action'!K88) ->  | S218: =IF('État & Plan d''action'!M88="","",'État & Plan d''action'!M88) -> 
C220: ='État & Plan d''action'!C90:E90 -> RÉSEAU 7 : | H220: ='État & Plan d''action'!F90 -> Contrôle actif des fuites : Facultatif | O220: ='État & Plan d''action'!H90 -> Longueur du réseau : km | Q220: =Q210 -> Bilan 2020 | S220: Plan d'action 2021
C221: Option 1 | E221: Mettre en place des secteurs de suivi de la distribution. | Q221: =IF('État & Plan d''action'!K91="","",'État & Plan d''action'!K91) ->  | S221: =IF('État & Plan d''action'!M91="","",'État & Plan d''action'!M91) -> 
C222: Option 2 | E222: Écouter à tous les poteaux d’incendie. | F222: Écouter à tous les poteaux d’incendie. | Q222: =IF('État & Plan d''action'!K92="","",'État & Plan d''action'!K92) ->  | S222: =IF('État & Plan d''action'!M92="","",'État & Plan d''action'!M92) -> 
C223: Option 3 | E223: Écouter les poteaux d’incendie, vannes et robinets d’arrêt accessibles. | F223: Écouter les poteaux d’incendie, vannes et robinets d’arrêt accessibles. | Q223: =IF('État & Plan d''action'!K93="","",'État & Plan d''action'!K93) ->  | S223: =IF('État & Plan d''action'!M93="","",'État & Plan d''action'!M93) -> 
C224: Option 4 | E224: Procéder à la mise en place temporaire d’enregistreurs de bruits. | F224: Procéder à la mise en place temporaire d’enregistreurs de bruits. | Q224: =IF('État & Plan d''action'!K94="","",'État & Plan d''action'!K94) ->  | S224: =IF('État & Plan d''action'!M94="","",'État & Plan d''action'!M94) -> 
C225: Option 5 | E225: Procéder à la mise en place permanente d’enregistreurs de bruits et assurer un suivi quotidien. | F225: Procéder à la mise en place permanente d’enregistreurs de bruits et assurer un suivi quotidien. | Q225: =IF('État & Plan d''action'!K95="","",'État & Plan d''action'!K95) ->  | S225: =IF('État & Plan d''action'!M95="","",'État & Plan d''action'!M95) -> 
O227: Longueur équivalente : | Q227: =IF('État & Plan d''action'!K97="","",'État & Plan d''action'!K97) ->  | S227: =IF('État & Plan d''action'!M97="","",'État & Plan d''action'!M97) -> 
O228: Pourcentage équivalent : | Q228: =IF('État & Plan d''action'!K98="","",'État & Plan d''action'!K98) ->  | S228: =IF('État & Plan d''action'!M98="","",'État & Plan d''action'!M98) -> 
C230: ='État & Plan d''action'!C100:E100 -> RÉSEAU 8 : | H230: ='État & Plan d''action'!F100 -> Contrôle actif des fuites : Facultatif | O230: ='État & Plan d''action'!H100 -> Longueur du réseau : km | Q230: =Q220 -> Bilan 2020 | S230: Plan d'action 2021
C231: Option 1 | E231: Mettre en place des secteurs de suivi de la distribution. | Q231: =IF('État & Plan d''action'!K101="","",'État & Plan d''action'!K101) ->  | S231: =IF('État & Plan d''action'!M101="","",'État & Plan d''action'!M101) -> 
C232: Option 2 | E232: Écouter à tous les poteaux d’incendie. | F232: Écouter à tous les poteaux d’incendie. | Q232: =IF('État & Plan d''action'!K102="","",'État & Plan d''action'!K102) ->  | S232: =IF('État & Plan d''action'!M102="","",'État & Plan d''action'!M102) -> 
C233: Option 3 | E233: Écouter les poteaux d’incendie, vannes et robinets d’arrêt accessibles. | F233: Écouter les poteaux d’incendie, vannes et robinets d’arrêt accessibles. | Q233: =IF('État & Plan d''action'!K103="","",'État & Plan d''action'!K103) ->  | S233: =IF('État & Plan d''action'!M103="","",'État & Plan d''action'!M103) -> 
C234: Option 4 | E234: Procéder à la mise en place temporaire d’enregistreurs de bruits. | F234: Procéder à la mise en place temporaire d’enregistreurs de bruits. | Q234: =IF('État & Plan d''action'!K104="","",'État & Plan d''action'!K104) ->  | S234: =IF('État & Plan d''action'!M104="","",'État & Plan d''action'!M104) -> 
C235: Option 5 | E235: Procéder à la mise en place permanente d’enregistreurs de bruits et assurer un suivi quotidien. | F235: Procéder à la mise en place permanente d’enregistreurs de bruits et assurer un suivi quotidien. | Q235: =IF('État & Plan d''action'!K105="","",'État & Plan d''action'!K105) ->  | S235: =IF('État & Plan d''action'!M105="","",'État & Plan d''action'!M105) -> 
S236: =IF('État & Plan d''action'!M106="","",'État & Plan d''action'!M106) -> 
O237: Longueur équivalente : | Q237: =IF('État & Plan d''action'!K107="","",'État & Plan d''action'!K107) ->  | S237: =IF('État & Plan d''action'!M107="","",'État & Plan d''action'!M107) -> 
O238: Pourcentage équivalent : | Q238: =IF('État & Plan d''action'!K108="","",'État & Plan d''action'!K108) ->  | S238: =IF('État & Plan d''action'!M108="","",'État & Plan d''action'!M108) -> 
C240: ='État & Plan d''action'!C110:E110 -> RÉSEAU 9 : | H240: ='État & Plan d''action'!F110 -> Contrôle actif des fuites : Facultatif | O240: ='État & Plan d''action'!H110 -> Longueur du réseau : km | Q240: =Q230 -> Bilan 2020 | S240: Plan d'action 2021
C241: Option 1 | E241: Mettre en place des secteurs de suivi de la distribution. | Q241: =IF('État & Plan d''action'!K111="","",'État & Plan d''action'!K111) ->  | S241: =IF('État & Plan d''action'!M111="","",'État & Plan d''action'!M111) -> 
C242: Option 2 | E242: Écouter à tous les poteaux d’incendie. | F242: Écouter à tous les poteaux d’incendie. | Q242: =IF('État & Plan d''action'!K112="","",'État & Plan d''action'!K112) ->  | S242: =IF('État & Plan d''action'!M112="","",'État & Plan d''action'!M112) -> 
C243: Option 3 | E243: Écouter les poteaux d’incendie, vannes et robinets d’arrêt accessibles. | F243: Écouter les poteaux d’incendie, vannes et robinets d’arrêt accessibles. | Q243: =IF('État & Plan d''action'!K113="","",'État & Plan d''action'!K113) ->  | S243: =IF('État & Plan d''action'!M113="","",'État & Plan d''action'!M113) -> 
C244: Option 4 | E244: Procéder à la mise en place temporaire d’enregistreurs de bruits. | F244: Procéder à la mise en place temporaire d’enregistreurs de bruits. | Q244: =IF('État & Plan d''action'!K114="","",'État & Plan d''action'!K114) ->  | S244: =IF('État & Plan d''action'!M114="","",'État & Plan d''action'!M114) -> 
C245: Option 5 | E245: Procéder à la mise en place permanente d’enregistreurs de bruits et assurer un suivi quotidien. | F245: Procéder à la mise en place permanente d’enregistreurs de bruits et assurer un suivi quotidien. | Q245: =IF('État & Plan d''action'!K115="","",'État & Plan d''action'!K115) ->  | S245: =IF('État & Plan d''action'!M115="","",'État & Plan d''action'!M115) -> 
O247: Longueur équivalente : | Q247: =IF('État & Plan d''action'!K117="","",'État & Plan d''action'!K117) ->  | S247: =IF('État & Plan d''action'!M117="","",'État & Plan d''action'!M117) -> 
O248: Pourcentage équivalent : | Q248: =IF('État & Plan d''action'!K118="","",'État & Plan d''action'!K118) ->  | S248: =IF('État & Plan d''action'!M118="","",'État & Plan d''action'!M118) -> 
C250: ='État & Plan d''action'!C120:E120 -> RÉSEAU 10 : | H250: ='État & Plan d''action'!F120 -> Contrôle actif des fuites : Facultatif | O250: ='État & Plan d''action'!H120 -> Longueur du réseau : km | Q250: =Q240 -> Bilan 2020 | S250: Plan d'action 2021
C251: Option 1 | E251: Mettre en place des secteurs de suivi de la distribution. | Q251: =IF('État & Plan d''action'!K121="","",'État & Plan d''action'!K121) ->  | S251: =IF('État & Plan d''action'!M121="","",'État & Plan d''action'!M121) -> 
C252: Option 2 | E252: Écouter à tous les poteaux d’incendie. | F252: Écouter à tous les poteaux d’incendie. | Q252: =IF('État & Plan d''action'!K122="","",'État & Plan d''action'!K122) ->  | S252: =IF('État & Plan d''action'!M122="","",'État & Plan d''action'!M122) -> 
C253: Option 3 | E253: Écouter les poteaux d’incendie, vannes et robinets d’arrêt accessibles. | F253: Écouter les poteaux d’incendie, vannes et robinets d’arrêt accessibles. | Q253: =IF('État & Plan d''action'!K123="","",'État & Plan d''action'!K123) ->  | S253: =IF('État & Plan d''action'!M123="","",'État & Plan d''action'!M123) -> 
C254: Option 4 | E254: Procéder à la mise en place temporaire d’enregistreurs de bruits. | F254: Procéder à la mise en place temporaire d’enregistreurs de bruits. | Q254: =IF('État & Plan d''action'!K124="","",'État & Plan d''action'!K124) ->  | S254: =IF('État & Plan d''action'!M124="","",'État & Plan d''action'!M124) -> 
C255: Option 5 | E255: Procéder à la mise en place permanente d’enregistreurs de bruits et assurer un suivi quotidien. | F255: Procéder à la mise en place permanente d’enregistreurs de bruits et assurer un suivi quotidien. | Q255: =IF('État & Plan d''action'!K125="","",'État & Plan d''action'!K125) ->  | S255: =IF('État & Plan d''action'!M125="","",'État & Plan d''action'!M125) -> 
O257: Longueur équivalente : | Q257: =IF('État & Plan d''action'!K127="","",'État & Plan d''action'!K127) ->  | S257: =IF('État & Plan d''action'!M127="","",'État & Plan d''action'!M127) -> 
O258: Pourcentage équivalent : | Q258: =IF('État & Plan d''action'!K128="","",'État & Plan d''action'!K128) ->  | S258: =IF('État & Plan d''action'!M128="","",'État & Plan d''action'!M128) -> 
Q260: Bilan 2020 | S260: D'ici le 1er septembre 2022
B261: 2. er | C261: Si l'objectif des pertes d'eau n'est pas atteint au Bilan 2020, réaliser un contrôle actif des fuites par l’intermédiaire d’une écoute sur un échantillon de robinets d’arrêt accessibles d'ici le 1er septembre 2022. | Q261: =IF(OR('État & Plan d''action'!K131="",ISERROR('État & Plan d''action'!K131="")),"",'État & Plan d''action'!K131) ->  | S261: =IF(OR('État & Plan d''action'!M131="",ISERROR('État & Plan d''action'!M131="")),"",'État & Plan d''action'!M131) -> 
C263: Nombre minimal de robinets d'arrêt accessibles à écouter pour réaliser un contrôle actif des fuites : | Q263: ='État & Plan d''action'!K133 -> 
B265: ='État & Plan d''action'!B135 -> 2.2 | C265: ='État & Plan d''action'!C135 -> Optimiser le temps de réparation de fuites.
B266: 1. | C266: ='État & Plan d''action'!C136 -> Nombre de fuites réparées et les délais moyens entre la localisation et la réparation des fuites.
F268: Nombre de réparations en 2020 | H268: Délai moyen entre la détection et la réparation des fuites (jours estimés) | K268: Fréquence de réparation | N268: Valeur de comparaison
C269: Conduites | F269: =IF(OR(ISERROR('État & Plan d''action'!E139),'État & Plan d''action'!E139=""),"",'État & Plan d''action'!E139) ->  | H269: =IF(OR(ISERROR('État & Plan d''action'!F139),'État & Plan d''action'!F139=""),"",'État & Plan d''action'!F139) ->  | K269: =IF(OR(ISERROR('État & Plan d''action'!G139),'État & Plan d''action'!G139=""),"",'État & Plan d''action'!G139) ->  | N269: =IF(OR(ISERROR('État & Plan d''action'!I139),'État & Plan d''action'!I139=""),"",'État & Plan d''action'!I139) -> 13
C270: Branchements de service du côté public | F270: =IF(OR(ISERROR('État & Plan d''action'!E140),'État & Plan d''action'!E140=""),"",'État & Plan d''action'!E140) ->  | H270: =IF(OR(ISERROR('État & Plan d''action'!F140),'État & Plan d''action'!F140=""),"",'État & Plan d''action'!F140) ->  | K270: =IF(OR(ISERROR('État & Plan d''action'!G140),'État & Plan d''action'!G140=""),"",'État & Plan d''action'!G140) ->  | N270: =IF(OR(ISERROR('État & Plan d''action'!I140),'État & Plan d''action'!I140=""),"",'État & Plan d''action'!I140) -> 3
C271: Branchements de service du côté privé | F271: =IF(OR(ISERROR('État & Plan d''action'!E141),'État & Plan d''action'!E141=""),"",'État & Plan d''action'!E141) ->  | H271: =IF(OR(ISERROR('État & Plan d''action'!F141),'État & Plan d''action'!F141=""),"",'État & Plan d''action'!F141) ->  | K271: =IF(OR(ISERROR('État & Plan d''action'!G141),'État & Plan d''action'!G141=""),"",'État & Plan d''action'!G141) ->  | N271: =IF(OR(ISERROR('État & Plan d''action'!I141),'État & Plan d''action'!I141=""),"",'État & Plan d''action'!I141) -> 1.5
C272: Total | F272: =IF(OR(ISERROR('État & Plan d''action'!E142),'État & Plan d''action'!E142=""),"",'État & Plan d''action'!E142) -> 
C273: Si l'objectif des pertes d'eau n'est pas atteint au Bilan 2020, réduire les délais de réparation de fuites à un maximum de 5 jours du côté municipal et de 20 jours du côté privé. Mettre en place une directive pour les réduire d'ici le 1er septembre 2022. Dans le cas où les délais moyens maximaux sont dépassés, mentionner dans la directive qu’il sera prévu de réduire les délais moyens d’au moins une journée par année. | Q273: =Q260 -> Bilan 2020 | S273: D'ici le 1er septembre 2022
B274: 2. er | Q274: =IF(OR('État & Plan d''action'!K144="",ISERROR('État & Plan d''action'!K144="")),"",'État & Plan d''action'!K144) ->  | S274: =IF(OR('État & Plan d''action'!M144="",ISERROR('État & Plan d''action'!M144="")),"",'État & Plan d''action'!M144) -> 
B276: ='État & Plan d''action'!B146 -> 2.3 | C276: ='État & Plan d''action'!C146 -> Gestion de la pression. | Q276: =Q273 -> Bilan 2020 | S276: D'ici le 1er septembre 2022
B277: 1. er | C277: Si l'objectif des pertes d'eau n'est pas atteint au Bilan 2021, réalisez une analyse de rentabilité concernant la mise en place d’un secteur de régulation de pression (SRP) d'ici le 1er septembre 2023 si la pression moyenne du point représentatif de zone est supérieure à 60 m (85 psi; 588 kPa). | Q277: =IF(OR('État & Plan d''action'!K147="",ISERROR('État & Plan d''action'!K147="")),"",'État & Plan d''action'!K147) ->  | S277: =IF(OR('État & Plan d''action'!M147="",ISERROR('État & Plan d''action'!M147="")),"",'État & Plan d''action'!M147) -> 
B278: er2. er | C278: Si l'objectif des pertes d'eau n'est pas atteint au Bilan 2021, mettez en place des SRP si cela est rentable d'ici le 1er septembre 2025. Avoir débuté les travaux d'ici le 1er septembre 2023. Avoir réalisé 50 % des travaux d'ici le 1er septembre 2024. | Q278: =IF(OR('État & Plan d''action'!K148="",ISERROR('État & Plan d''action'!K148="")),"",'État & Plan d''action'!K148) ->  | S278: =IF(OR('État & Plan d''action'!M148="",ISERROR('État & Plan d''action'!M148="")),"",'État & Plan d''action'!M148) -> 
B280: ='État & Plan d''action'!B150 -> SECTION 3 - ACTIONS SUPPLÉMENTAIRES À RÉALISER SI L'OBJECTIF DE CONSOMMATION RÉSIDENTIELLE N'EST PAS ATTEINT | C280: ='État & Plan d''action'!C150 -> 0 | D280: ='État & Plan d''action'!D150 -> 0 | F280: ='État & Plan d''action'!E150 -> 0 | M280: ='État & Plan d''action'!F150 -> 0 | O280: ='État & Plan d''action'!G150 -> 0 | Q280: ='État & Plan d''action'!H150 -> 0 | S280: ='État & Plan d''action'!I150 -> 0 | T280: ='État & Plan d''action'!J150 -> 0
... 80 more rows

Sheet Aide
B2: =Identification!B2 -> Année du bilan : 2020 | W2: =Identification!J2 ->  | Z2: Liste_Débits | AA2: Conversion | AB2: Liste_Pression | AC2: Conversion | AD2: Liste_Volume | AE2: Conversion | AF2: Liste_Distance | AG2: Conversion
B3: =Rapport!B6 -> Bilan 2020 de la Stratégie municipale d’économie d’eau potable
Z4: Litres par seconde (L/s) | AA4: 1000 | AB4: Atmosphère (atm) | AC4: 1 | AD4: Litres (L) | AE4: 1000 | AF4: Mètres (m) | AG4: 1
Z5: Litres par minute (L/min) | AA5: 60000 | AB5: Kilopascals (kPa) | AC5: 101.32501 | AD5: Mégalitres (ML) | AE5: 0.001 | AF5: Kilomètres (km) | AG5: =AG4/1000 -> 0.001
W6: 2021-04-19 | Z6: Mètres cubes par seconde (m³/s) | AA6: 1 | AB6: Livres par pouce carré (psi) | AC6: 14.69595025 | AD6: Mètres cubes (m³) | AE6: 1 | AF6: Pieds (pi) | AG6: 3.28084
B7: AIDE DU BILAN ANNUEL DE LA STRATÉGIE MUNICIPALE D’ÉCONOMIE D’EAU POTABLE | Z7: Mètres cubes par jour (m³/d) | AA7: 86400 | AB7: Mètres d'eau (m d'eau) | AC7: 10.33227555 | AD7: Gallons US (GAL US) | AE7: 264.172 | AF7: Miles (mi) | AG7: 0.000621371
Z8: Mètres cubes par année (m³/an) | AA8: 31536000 | AB8: Millimètres de mercure (mm Hg) | AC8: 759.999952 | AD8: Mega Gallons US (MGAL US) | AE8: 0.000264172 | AF8: Verges (yd) | AG8: 1.09361
B9: IDENTIFICATION | Z9: Gallons US par minute (GAL US/min) | AA9: 15850.32314 | AB9: Pouces de mercure (po Hg) | AC9: 29.9212583 | AD9: Gallons impériaux (GAL IMP) | AE9: 219.969
W10: Retour à l'onglet Identification | Z10: Gallons US par année (GAL US/an) | AA10: 8330929843 | AB10: Pouces d'eau (po d'eau) | AC10: 406.7825046 | AD10: Mega Gallons impériaux (MGAL IMP) | AE10: 0.000219969
B11: =Identification!B9 -> SECTION 1 - PRÉSENTATION DU BILAN ANNUEL DE LA STRATÉGIE MUNICIPALE D'ÉCONOMIE D'EAU POTABLE | Z11: Mega Gallons US par minute (MGAL US/min) | AA11: =AA9/1000000 -> 0.01585032314 | AD11: Acre-pieds (AP) | AE11: 0.000810714
Z12: Mega Gallons US par année (MGAL US/an) | AA12: =AA10/1000000 -> 8330.929843 | AD12: Pieds cubes (pi³) | AE12: 35.3147
B13: Instructions | Z13: Gallons impériaux par minute (GAL IMP/min) | AA13: 13198.1549
B14: • | C14: Lisez attentivement la section avant de commencer à remplir le formulaire. | Z14: Gallons impériaux par année (GAL IMP/an) | AA14: 6936950214
Z15: Mega Gallons impériaux par minute (MGAL IMP/min) | AA15: 0.0131981549
B16: =Identification!B50 -> SECTION 2 - IDENTIFICATION DU RÉPONDANT PRINCIPAL | Z16: Mega Gallons impériaux par année (MGAL IMP/an) | AA16: 6936.950214
Z17: Acre-pieds par année (AP/min) | AA17: 0.04864286409
B18: Article 2.1 : Année du présent bilan | Z18: Acre-pieds par année (AP/an) | AA18: 25566.68937
B19: Remarque
B20: • | C20: L'année visée par le présent bilan est inscrite automatiquement.
B22: Article 2.2 : Identification de la municipalité
B23: Instructions
B24: • | C24: Choisissez le nom de la municipalité dans la liste déroulante des municipalités ou écrivez directement le nom de la municipalité.
B25: Remarques
B26: • | C26: Le numéro et le nom de la région administrative correspondant à la municipalité apparaissent automatiquement.
B27: • | C27: Les municipalités ayant le même nom sont différenciées par une lettre ou un chiffre entre parenthèses qui désigne le type de municipalité (ex. : « P » pour paroisse) ou tout simplement le numéro de la région administrative (ex. : « 14 » pour Lanaudière).
B28: • | C28: Si le nom de la municipalité ne se retrouve pas dans cette liste, veuillez communiquer avec l'équipe de soutien technique de la Stratégie par téléphone au 514-873-3335 ou à l'adresse courriel EAUtrement@mamh.gouv.qc.ca.
B30: Article 2.3 : Identification des répondants principaux
B31: Instructions
B32: • | C32: Inscrivez les coordonnées du répondant principal.
B33: • | C33: Au besoin, inscrivez les coordonnées des autres répondants (employés municipaux et/ou consultants externes) qui participent à la complétion du Bilan.
B35: =Identification!B69 -> SECTION 3 - IMPORTATION DES DONNÉES
B37: Article 3.1 : Importation des données des audits de l'eau AWWA
B38: Utilité
B39: • | C39: L'importation des données des audits de l'eau de l'American Water Works Association (AWWA) permet de rassembler automatiquement les données des audits de l'eau AWWA préalablement complétés par la municipalité, dans le présent formulaire. L'importation des données permet de réduire les manipulations puisque l'information utile des audits de l'eau AWWA de la municipalité est automatiquement retranscrite.
B40: Information importée à l'onglet « Audit de l'eau »
B41: • | C41: Article A : Nombre de réseaux de distribution dans la municipalité
B42: • | C42: Article 1.1 : Nom du réseau
B43: • | C43: Article 1.2 : Numéro du MELCC du réseau de distribution
B44: • | C44: Article 1.6 : Longueur de ce réseau de distribution
B45: • | C45: Article 1.7 : Nombre de branchements de service
B46: • | C46: Article 1.8 : Longueur moyenne des branchements de service côté usager
B47: • | C47: Article 1.9 : Pression moyenne au point représentatif du réseau
B48: • | C48: Article 1.14 : Eau distribuée
B49: • | C49: Article 1.15 : Pertes d’eau réelles (PER)
B50: • | C50: Article 2.3 : Résultat de validité de données
B51: Instructions
B52: • | C52: Avant d'exécuter le processus de compilation, les fichiers des audits de l'eau AWWA devront être classés dans le même dossier.
B53: • | C53: Pour exécuter le processus de compilation des audits de l'eau AWWA, appuyez sur le bouton « Importation - Audits AWWA ».
B54: • | C54: Vous aurez à sélectionner un dossier contenant des audits de l'eau AWWA à importer. À noter qu'il est normal de ne pas voir les fichiers présents dans le dossier.
B55: • | C55: Une fois le dossier sélectionné, le processus ne prendra que quelques secondes pour se compléter.
B56: Remarques
B57: • | C57: Le mode « macro » devra être activé pour pouvoir exécuter la compilation. Si vous avez de la difficulté à activer le mode « macro », veuillez contacter l'équipe de soutien technique de la Stratégie par téléphone au
C58: (514) 873-3335 ou à l'adresse courriel | G58: EAUtrement@mamh.gouv.qc.ca.
B59: • | C59: Avant d'exécuter le processus de compilation, il est recommandé de classer les fichiers d'audit de l'eau que vous souhaitez compiler dans un seul dossier.
B60: • | C60: Le processus de compilation sera exécuté même si d'autres documents sont dans le dossier sélectionné. Les fichiers n'étant pas des audits de l'eau ne seront pas importés même s'ils sont dans le même dossier que vos audits de l'eau.
B61: • | C61: Une fenêtre de dialogue avec la liste des fichiers non importés s'affichera, s'il y a lieu.
B62: • | C62: Lors de l'exécution du processus de compilation, ne manipulez aucun document Excel.
B63: • | C63: Lors de l'exécution du processus de compilation, il est recommandé d'éviter d'ouvrir ou d'utiliser d'autres programmes sur votre ordinateur. Cela améliorera les performances du compilateur et évitera des erreurs.
B64: • | C64: Si votre version Excel ne supporte pas le mode « macro », il est possible de remplir le bilan manuellement en remplissant les cases avec une bordure rouge.
B66: Article 3.2 : Importation des données de l'outil d'évaluation des besoins d'investissement (BI)
B67: Utilité
B68: • | C68: L'importation des données de l'outil BI permet de rassembler automatiquement les données de l'outil BI préalablement complété par la municipalité, dans le présent formulaire. L'importation des données permet de réduire les manipulations puisque l'information utile de l'outil BI de la municipalité est automatiquement retranscrite.
B69: Information importée à l'onglet « Rapport »
B70: • | C70: Tableau 6.1 : Besoins d'investissement pour les infrastructures d'eau
B71: Instructions
B72: • | C72: Pour exécuter le processus de compilation de l'Outil BI, appuyez sur le bouton « Importation - Outil BI ».
B73: • | C73: Vous aurez à sélectionner un fichier à importer étant un Outil BI. Notez que si le fichier que vous avez sélectionné n'est pas un Outil BI, une boîte de dialogue s'affichera pour vous informer de l'erreur et vous n'aurez qu'à relancer le processus en choisissant un bon fichier.
B74: • | C74: Une fois le fichier sélectionné, le processus ne prendra que quelques secondes pour se compléter.
B75: Remarques
B76: • | C76: Le mode « macro » devra être activé pour pouvoir exécuter la compilation. Si vous avez de la difficulté à activer le mode « macro », veuillez contacter l'équipe de soutien technique de la Stratégie par téléphone au
C77: (514) 873-3335 ou à l'adresse courriel | G77: EAUtrement@mamh.gouv.qc.ca.
B78: • | C78: Si le fichier que vous avez sélectionné n'est pas un outil BI, une boîte de dialogue s'affichera pour vous informer de l'erreur. Vous n'aurez qu'à relancer le processus en choisissant un bon fichier.
B79: • | C79: Lors de l'exécution du processus de compilation, ne manipulez aucun document Excel.
B80: • | C80: Lors de l'exécution du processus de compilation, il est recommandé d'éviter d'ouvrir ou d'utiliser d'autres programmes sur votre ordinateur. Cela améliorera les performances du compilateur et évitera des erreurs.
B81: • | C81: Si votre version Excel ne supporte pas le mode « macro », il est possible de remplir le bilan manuellement en remplissant les cases avec une bordure rouge.
B83: AUDIT DE L'EAU
W84: Retour à l'onglet Audit de l'eau
B85: Article A : Nombre de réseaux de distribution dans la municipalité
B86: Utilité
B87: • | C87: Il est essentiel de connaître le nombre de réseaux de distribution d’eau potable distincts sur le territoire de la municipalité, car les informations demandées dans ce Formulaire sont séparées pour chaque réseau de distribution d'eau potable.
B88: Instructions
B89: • | C89: Indiquer le nombre de réseaux de distribution distincts (indépendants) d'eau potable sur le territoire de la municipalité. Ce nombre exclut les réseaux de distribution privés. Par exemple, une municipalité ayant un réseau de distribution d'eau potable dans un certain secteur de son territoire et un réseau de distribution d'eau potable dans un autre secteur de son territoire. Si ces réseaux sont non communicants, le répondant doit entrer deux réseaux d'eau potable distincts.
B91: SECTION 1 - DISTRIBUTION D'EAU POTABLE
B93: Article 1.1 : Nom du réseau de distribution
B94: Utilité
B95: • | C95: L'identification de chaque réseau de distribution sert à faire la distinction entre les différents réseaux de distribution de la municipalité.
B96: Instructions
B97: • | C97: Le nom du réseau de distribution est automatiquement importé de l'audit de l'eau AWWA. Si vous n'avez pas encore importé les données de l'audit AWWA, référez vous à la section 3 de l'onglet Identification.
B99: Article 1.2 : Numéro du MELCC du réseau de distribution
B100: Utilité
B101: • | C101: Il s'agit du numéro spécifié au registre du ministère de l'Environnement et de la Lutte contre les changements climatiques (MELCC).
B102: Instructions
B103: • | C103: Le numéro du MELCC du réseau de distribution est automatiquement importé à partir du nom du fichier de l'audit de l'eau AWWA. Si vous n'avez pas encore importé les données de l'audit AWWA, référez vous à la section 3 de l'onglet Identification.
B105: Définitions
B106: Article 1.3 : Nombre de logements résidentiels desservis et occupés de façon permanente
B107: • | C107: Indiquez le nombre réel de logements résidentiels occupés de façon permanente et desservis toute l'année par ce réseau de distribution.
B108: • | C108: Consultez le logiciel qui compile l’information des fiches de propriétés pour déterminer le nombre de logements desservis par le réseau de distribution. Les fiches de propriétés à consulter sont :
C109: a. | D109: le bloc 77 indique si l’immeuble est desservi par un réseau d’aqueduc;
C110: b. | D110: la case N indique le nombre de logements de l’immeuble.
B111: • | C111: Le nombre de personnes par logement est calculé automatiquement en tenant compte de la population permanente totale de la municipalité et du nombre de logements résidentiels et imposables au provincial.
B113: Article 1.4 : Personnes par logement
B114: • | C114: Conserver la valeur du nombre de personnes par logement provenant des Statistiques 2020 ou justifier une entrée différente à la section « Commentaires de la municipalité ». Les afflux saisonniers et les consommations équivalentes des usagers majeurs sont exclus de cette valeur. Toutefois, il est pertinent d'indiquer, à la section « Commentaires de la municipalité », une remarque s'il y a des consommations anormales qui expliqueraient une quantité d'eau distribuée élevée.
B116: Affichage
B117: • | C117: L'affichage de la case du nombre de personnes par logement devient orange si la valeur entrée est différente de celle dans la colonne des statistiques.
B119: Article 1.5 : Population
B120: • | C120: Le nombre de personnes desservies par le réseau de distribution est calculé automatiquement en multipliant le nombre de logements occupés de façon permanente par la population moyenne par logement.
B121: • | C121: La population desservie pour chaque réseau de distribution sert au calcul de la consommation résidentielle estimée dans un réseau de distribution et de la quantité d'eau distribuée par personne dans un réseau de distribution.
B123: Article 1.6 : Longueur de ce réseau de distribution (Lm)
B124: Utilité
B125: • | C125: La longueur du réseau de distribution, le nombre de branchements de service, la longueur moyenne des branchements de service côté usager et la pression moyenne au point représentatif du réseau servent à calculer les pertes d'eau réelles inévitables du réseau de distribution.
B126: Définitions
B127: • | C127: La longueur de ce réseau de distribution est automatiquement importée de l'audit de l'eau AWWA. Si vous n'avez pas encore importé les données de l'audit AWWA, référez vous à la section 3 de l'onglet Identification.
B128: • | C128: Indiquez la longueur totale de ce réseau de distribution en kilomètres [km] :
C129: a. | D129: en incluant la longueur de toutes les conduites raccordant les stations de pompage, les installations de rechloration et les installations de réserve en réseau;
C130: b. | D130: en incluant la longueur de tous les branchements des poteaux d'incendie;
C131: c. | D131: en excluant la longueur de tous les branchements de service d'eau et les conduites d'eau brute vers l'installation de production.
B133: Article 1.7 : Nombre de branchements de service (Nc)
B134: • | C134: Le nombre de branchements de service est automatiquement importé de l'audit de l'eau AWWA. Si vous n'avez pas encore importé les données de l'audit AWWA, référez vous à la section 3 de l'onglet Identification.
B135: • | C135: Il s'agit du nombre de branchements de service présents dans le réseau de distribution. Un branchement de service correspond à une entrée d'eau. Souvent, un immeuble n'aura qu'un seul branchement de service, mais ce n'est pas toujours le cas. Les branchements de services à prendre en considération sont dans le secteur résidentiel et non résidentiel. Les branchements actifs et inactifs doivent être inclus.
B137: Article 1.8 : Longueur moyenne des branchements de service côté usager (Lp)
B138: • | C138: La longueur moyenne des branchements de service côté usager est automatiquement importée de l'audit de l'eau AWWA. Si vous n'avez pas encore importé les données de l'audit AWWA, référez vous à la section 3 de l'onglet Identification.
B139: • | C139: Il s'agit de la longueur moyenne des branchements de service [m] détenus et gérés par les usagers. Cette portion de branchement s'étend généralement de la ligne de transfert de propriété (généralement le robinet d'arrêt situé entre la conduite principale et le bâtiment du client) jusqu'au compteur de l'usager (ou le bâtiment si non mesuré).
B141: Article 1.9 : Pression moyenne au point représentatif du réseau (P)
B142: • | C142: La pression moyenne au point représentatif du réseau est automatiquement importée de l'audit de l'eau AWWA. Si vous n'avez pas encore importé les données de l'audit AWWA, référez vous à la section 3 de l'onglet Identification.
B143: • | C143: Si une municipalité possède un modèle hydraulique calibré pour le réseau de distribution d'eau potable étudié, ce modèle hydraulique peut être utilisé afin d'obtenir une valeur précise de la pression moyenne [m]. En l'absence d'un modèle hydraulique, la pression moyenne peut être estimée en mesurant la pression statique à partir d'un échantillon représentatif de poteaux d'incendie ou autres points d'accès au réseau uniformément répartis sur le réseau. Une moyenne pondérée de la pression peut être obtenue; il faut prendre en considération l'élévation des poteaux d'incendie puisque ceux-ci sont généralement à plusieurs mètres au-dessus des conduites du système de distribution d'eau qui sont enfouies dans le sol.
B144: Affichage
B145: • | C145: L'affichage de la case du de la pression moyenne au point représentatif du réseau devient orange si la valeur entrée est inférieure à 30 mètres d'eau (niveau de pression très faible) ou si elle est supérieure 60 mètres d'eau (niveau de pression très élevée).
B147: Articles 1.10 à 1.12 : Indice de demande limitée par la capacité
B148: Utilité
B149: • | C149: L'indice de demande limitée par la capacité permet de déterminer les objectifs pour le contrôle des pertes d'eau (IFI) et pour l'économie d'eau chez les consommateurs (consommation résidentielle estimée). (art 2.1 et 2.2)
B150: Définitions
B151: • | C151: L’indice de demande limitée par la capacité est attribué aux réseaux et aux municipalités pour lesquelles la demande en eau est ou sera potentiellement limitée par la capacité des infrastructures ou de la ressource en eau. Les réseaux municipaux qui ont un indice de demande limitée par la capacité sont ceux qui répondent à au moins l’un des trois critères suivants :
C152: Critère 1 : | E152: L’ensemble des installations de production d’eau potable (du réseau étudié) a fonctionné pendant au moins une journée à plus de 90 % de sa capacité maximale nominale, au cours de la dernière année.
C153: Critère 2 : | E153: Au moins deux avis de restriction d’utilisation d’eau ont été émis lors d’une sécheresse, au cours des 5 dernières années.
C154: Critère 3 : | E154: Des investissements, dont l’objectif est d’augmenter la capacité des installations de production d’eau potable d’un réseau, sont prévus dans les 10 prochaines années.
B156: Article 1.13 : Consommation résidentielle
B157: • | C157: Volume annuel d'eau consommée [ML/an] dans le secteur résidentiel qui correspond uniquement au volume d'eau consommée par la population permanente desservie par ce réseau de distribution. En l'absence d'un échantillon de compteurs d'eau installé sur les immeubles résidentiels ou d'un secteur de suivi de la consommation (SSC), cette valeur peut-être estimée au meilleur des connaissances de la municipalité.
B158: Affichage
B159: • | C159: L'affichage de la case devient rouge si la valeur est supérieure à la différence entre l'eau distribuée et les pertes d'eau réelles (PER).
B161: Article 1.14 : Eau distribuée
B162: • | C162: Le volume annuel d'eau distribuée est automatiquement importé de l'audit de l'eau AWWA. Si vous n'avez pas encore importé les données de l'audit AWWA, référez vous à la section 3 de l'onglet Identification.
B163: • | C163: Volume annuel d'eau distribuée [ML/an] dans le réseau de distribution. Ce volume correspond au volume d'eau produit plus l'eau importée moins l'eau exportée.
B165: Article 1.15 : Pertes d'eau réelles (PER)
B166: Utilité
B167: • | C167: Les pertes d'eau réelles dans ce réseau sont utilisées pour le calcul de l'IFI de ce réseau de distribution
B168: Remarques
B169: • | C169: Pour les réseaux ayant moins de 3 000 branchements de service, la moyenne des PER des trois dernières années peut être utilisée pour calculer l'IFI et ainsi limiter l’influence des fluctuations annuelles (ex: important bris ponctuel).
B170: Définitions
B171: • | C171: Les pertes d'eau réelles (PER) représentent le volume d’eau perdue dans le réseau de distribution d'eau potable (conduites et branchements de service) et dans les réservoirs d’eau, et ce, jusqu’au point de consommation. S’il y a présence de compteurs d’eau à la consommation, les pertes réelles s’arrêtent aux compteurs. S’il n’y a pas de compteurs d’eau à la consommation, les pertes réelles s’arrêtent jusqu’au premier point de consommation (robinet d’arrêt ou robinet) dans la propriété. Le volume d’eau annuel perdu par tous les types de fuites, bris et surverses dépendent des fréquences, débits et durées moyennes des fuites, bris et surverses individuels. Cette valeur est tirée de l'audit de l'eau AWWA du réseau.
B173: Article 1.16: Pertes d'eau réelles inévitables (PERI)
B174: • | C174: Aucun réseau de distribution n'est exempt de pertes d'eau. Les pertes d'eau réelles inévitables (PERI) représentent le niveau le plus bas des pertes techniquement atteignables (limite inférieure théorique) par un réseau de distribution d'eau potable selon un certain nombre de ses caractéristiques (articles 1.6 à 1.9). Le calcul des PERI est basé sur des résultats empiriques de pertes d’eau obtenues dans des réseaux de distribution bien entretenus et bien gérés. Les équations tiennent compte des débits et durées des fuites indétectables, des fuites signalées et non signalées, de même que la relation pression – débit (considérée comme linéaire pour la plupart des grands réseaux).
C177: où
C178: Lm : Longueur des conduites [m]
C179: Nc : Nombre de branchements de service
C180: Lp: Longueur moyenne des branchements de service côté usager [m]
C181: P : Pression [mètre d'eau]
B183: SECTION 2 - INDICATEURS DE PERFORMANCE
B185: Article 2.1 : Indice de fuites dans les infrastructures
B186: Définition
B187: • | C187: L’indice de fuites dans les infrastructures (IFI) est recommandé par l’International Water Association (IWA), l’American Water Works Association (AWWA) et la Banque mondiale. L’IFI représente le ratio des pertes d’eau réelles (PER) sur les pertes d’eau réelles inévitables (PERI). Ces dernières constituent le niveau le plus bas des pertes d’eau techniquement atteignable. L’IFI a pour avantage de prendre en considération les caractéristiques propres à chaque réseau de distribution d’eau potable. Il est calculé à l’aide du logiciel d’audit de l’eau de l’American Water Works Association (AWWA) et il est obtenu en comparant les PER du réseau de distribution aux PERI.
B189: • | C189: L’objectif qui se rattache au contrôle des pertes d'eau est d'atteindre un niveau de fuites modéré, soit un IFI entre 2 et 4 selon les particularités de la municipalité. En effet, l’objectif varie selon le nombre de branchements de service et selon l’indice de demande limitée par la capacité (articles 1.10 à 1.12) comme indiqué à la figure ci-dessous.
C190: Figure xxﾠ: Objectif pour le contrôle des pertes d'eau.
B193: Affichage
B194: • | C194: L'affichage de la case de l'IFI devient orange si le résultats n'atteint pas son objectif.
B196: Article 2.2 : Consommation résidentielle estimée
B197: Définition
B198: • | C198: Depuis le Bilan 2018, il est possible de faire la distinction entre la consommation résidentielle et la consommation non résidentielle. L’introduction de ce nouvel indicateur, la consommation résidentielle permanente, offre des avantages considérables. En effet, il engendre une meilleure précision des bilans d’eau et une comparaison plus équitable entre municipalités. La mesure de la consommation des immeubles non résidentiels et l’estimation de la consommation des immeubles résidentiels permettent aussi de mieux départager les volumes d’eau occasionnés par les consommations de ceux dus aux pertes.
B200: • | C200: L’objectif qui se rattache à la consommation résidentielle est d’atteindre une consommation égale ou inférieure à la moyenne ontarienne ou canadienne, selon les particularités de la municipalité. En effet, l’objectif varie selon l’indice de demande limitée par la capacité (articles 1.10 à 1.12). Si la demande est limitée par la capacité, l'objectif à atteindre est la moyenne ontarienne de consommation résidentielle. Si la demande n'est pas limitée par la capacité l'objectif à atteindre est la moyenne canadienne de consommation résidentielle. Les objectifs de la Stratégie 2019-2025 se rapportant aux moyennes canadienne et ontarienne sont réajustés tous les deux ans, en fonction des mises à jour des données de Statistique Canada. Il est à noter qu’il y a un délai d’un an entre le moment où les données de Statistique Canada sont mises à jour et le moment où ces objectifs seront réajustés. Pour le Bilan 2018, les moyennes 2015 étaient utilisées soit 235 L/pers/d pour la moyenne canadienne et 201 L/pers/d pour la moyenne ontarienne. Pour les Bilans 2019 et 2020, les moyennes 2017 de Statistique Canada sont utilisées soit 220 L/pers/d pour la moyenne canadienne et 184 L/pers/d pour la moyenne ontarienne.
C201: Référence utile : | F201: Statistique Canada, 2017
B202: Affichage
B203: • | C203: L'affichage de la case de la consommation résidentielle devient orange si le résultat n'atteint pas son objectif.
B205: Article 2.3 : Résultat de validité des données
B206: Définition
B207: • | C207: Le résultat de validité des données est une cote de précision des données entrées dans un audit de l'eau AWWA. Se situant entre 0 et 100 inclusivement, il est automatiquement calculé dans l'audit de l'eau AWWA. L'objectif est d' atteindre un résultat de validité de données supérieur à 50 %. Le délai sera prolongé si le résultat de validité de données augmente d’au moins 5% par année. Le résultat de validité de données se calcule en fonction de plusieurs données entrées. Il y a ainsi différentes façons d’obtenir un pointage supérieur à 50 %. La municipalité a donc la possibilité de choisir où investir son énergie pour améliorer son pointage. Pour plus d'information sur le résultat de validité des données référez-vous à votre audit de l'eau AWWA.
B208: Affichage
B209: • | C209: L'affichage de la case du résultat de validité des données devient orange si la valeur est inférieure à 50.
B211: ÉTAT & PLAN D'ACTION
W212: Retour à l'onglet État & Plan d'action
B213: ='État & Plan d''action'!B12:M12 -> SECTION 1 - ACTIONS À RÉALISER
B215: Article 1.1 : Assurer la validité des données de l’audit de l’eau AWWA
B216: Remarque
B217: • | C217: Il est nécessaire d'entreprendre cet action afin d'assurer la validité des données de l’audit de l’eau AWWA qui est mis à jour annuellement et l'obtention d'une validation de niveau 1 de l'audit de l'eau AWWA.
B218: • | C218: Il est très pertinent d'indiquer en commentaire les éléments qui amélioreront la qualité des données.
B219: Action 1
B220: • | C220: Atteindre un résultat de validité de données supérieur à 50 %, d'ici le 1er septembre 2022. Le délai sera prolongé si le résultat de validité de données augmente d’au moins 5 % par année. Le résultat de validité de données se calcule en fonction de plusieurs données entrées. Il y a ainsi différentes façons d’obtenir un pointage supérieur à 50 %. La municipalité a donc la possibilité de choisir où investir son énergie pour améliorer son pointage.
B221: Action 2
B222: • | C222: Obtenir une validation de niveau 1 de l’audit de l’eau AWWA, d'ici le 1er septembre 2022. La validation de niveau 1 désigne le processus par lequel une municipalité interagit avec un analyste de l’équipe de soutien technique de la Stratégie certifié par la formation Qualified Water Loss Auditors pour examiner et confirmer la précision de l’ensemble des données entrées dans le logiciel d’audit de l’eau et pour caractériser d’une manière appropriée le niveau de validité des données rapportées. La validation de niveau 1 s’obtient en transmettant les documents suivants :
C223: a. | D223: l’audit de l’eau AWWA complété;
C224: b. | D224: les volumes d’eau produits, importés et exportés par mois, pour chacun des débitmètres;
C225: c. | D225: le(s) rapport(s) de vérification pour le(s) débitmètre(s). Les rapports de vérification peuvent être réalisés à l’interne ou à l’externe. Le contenu d’un rapport type est disponible dans la section 2.5.1.4 du guide L’économie d’eau potable et les municipalités de Réseau Environnement. Un modèle de rapport de vérification de la précision des débitmètres est aussi disponible au lien suivant:
D226: Rapport de vérification de la précision des débitmètres
C227: d. | D227: les volumes d’eau vendue selon la catégorie d’immeuble (résidentiel et non résidentiel) et la catégorie de revenus (tarification volumétrique, tarification non volumétrique et taxe foncière sur la valeur).
B229: Article 1.2 : Mettre en place une directive pour éliminer les fuites et les débordements constatés aux réservoirs
B230: Remarques
B231: • | C231: Une directive est un document administratif ou public pouvant être déposé ou non au conseil municipal. Dans ce document, la municipalité définit les cibles à atteindre.
B232: • | C232: Le délai de mise en place de cette mesure débute à partir du moment où des fuites ou des débordements aux réservoirs sont constatés.
B233: Action 1
B234: • | C234: À partir du 1er septembre 2020, mettre en place une directive pour éliminer les fuites et les débordements constatés aux réservoirs, dans un délai de 3 ans.
B236: Article 1.3 : Mettre à jour la réglementation municipale sur l'utilisation de l'eau et présenter le rapport annuel analysé par le MAMH au conseil municipal.
B237: Action 1
... 294 more rows

Sheet Conversions (hidden)
B1: $/100 cubic feet (ccf) | C1: $/1000 gallons (US) | D1: $/1000 litres | F1: Conversion table
A2: Megagallons US (MGAL US) | B2: =1000000/(F2*100) -> 1336.805561 | C2: 1000 | D2: =1000/F5 -> 3785.4118 | F2: 7.48051945 | G2: gallons / cubic foot | H2: converting FROM volume unit TO pricing UNITS
A3: Megalitres (ML) | B3: =1000000/F4/(F2*100) -> 353.1466672 | C3: =1000/F4 -> 264.1720512 | D3: 1000 | F3: 43560 | G3: sq feet / acre
A4: Acre-pieds | B4: =F3/100 -> 435.6 | C4: =F3*F2/1000 -> 325.8514272 | D4: =F3*F2*F4/1000 -> 1233.481838 | F4: 3.7854118 | G4: litres / gallon
F5: =1/F4 -> 0.2641720512 | G5: gallons / litre
F6: =F11 -> 0.3531472483 | G6: multiply cu ft by F6 to get 1000 litres
A7: losses | B7: 1 | C7: Megagallons US (MGAL US) | D7: =MATCH(C7,A2:A4,0) -> 1
E8: =INDEX($B$2:$D$4,MATCH(C7,A2:A4,0),MATCH(C9,B1:D1,0)) -> 1336.805561
A9: cost | B9: 10 | C9: $/100 cubic feet (ccf) | D9: =MATCH(C9,B1:D1,0) -> 1
F10: If 100 cu ft equals 2831.68 litres, then
B11: cost = | C11: =B7*B9*E8 -> 13368.05561 | E11: 1 | F11: =E11/2831.68*1000 -> 0.3531472483
A13: customer cost | B13: 5 | C13: $/1000 gallons (US) | D13: =MATCH(C13,B1:D1,0) -> 2 | G13: $/100 cu ft to $/1000 gallons
E14: =INDEX($B$2:$D$4,MATCH(C15,A2:A4,0),MATCH(C13,B1:D1,0)) -> 1000 | G14: 2.92 / 100 cu ft | H14: for example
A15: marginal production | B15: 5000 | C15: Megagallons US (MGAL US) | D15: =MATCH(C15,A2:A4,0) -> 1 | G15: =2.92/100 -> 0.0292 | H15: per cu ft
G16: =G15/F2 -> 0.003903472238 | H16: per gallon
B17: cost = | C17: =(B13*E14)/B15 -> 1 | G17: =G16*1000 -> 3.903472238 | H17: per 1000 gallons
G18: =G17/2.92 -> 1.336805561
A19: FROM: TO: | B19: Megagallons US (MGAL US) | C19: Megalitres (ML) | D19: Acre-pieds | F19: VOLUME CONVERSION
A20: Megagallons US (MGAL US) | B20: 1 | C20: =(F4) -> 3.7854118 | D20: 3.06888329
A21: Megalitres (ML) | B21: =1/C20 -> 0.2641720512 | C21: 1 | D21: =1/C22 -> 0.8107131937
A22: Acre-pieds | B22: =325851.427242/1000000 -> 0.3258514272 | C22: 1.233481838 | D22: 1
C23: 1000
B24: From | E24: To
A25: 547500 | B25: Megagallons US (MGAL US) | C25: = | D25: =A25*INDEX(B20:D22,MATCH(B25,A20:A22,0),MATCH(E25,B19:D19,0)) -> 2072512.961 | E25: Megalitres (ML)
C26: Multiply By… | D26: =INDEX(B20:D22,MATCH(B25,A20:A22,0),MATCH(E25,B19:D19,0)) -> 3.7854118
A29: FROM: TO: | B29: $/1000 gallons (US) | C29: $/1000 litres | D29: $/100 cubic feet (ccf) | F29: CRUC CONVERSION
A30: $/1000 gallons (US) | B30: 1 | C30: =1/F4 -> 0.2641720512 | D30: =1/B32 -> 0.748051945
A31: $/1000 litres | B31: =F4 -> 3.7854118 | C31: 1 | D31: =1/F6 -> 2.83168
A32: $/100 cubic feet (ccf) | B32: =(1/F2)*10 -> 1.336805561 | C32: =F6 -> 0.3531472483 | D32: 1
A34: NOTE: Conversion below are for Dollars per the units, but in VBA I use oVols and targVols to identify the conversion factors - essentially, this inverses the relationships in the Volume Conversion area and to simplify coding I swap variables to feed conversion function.
A35: FROM: TO: | B35: Megagallons US (MGAL US) | C35: Megalitres (ML) | D35: Acre-pieds | F35: VPC CONVERSION
A36: Megagallons US (MGAL US) | B36: 1 | C36: =1/F4 -> 0.2641720512 | D36: =B22 -> 0.3258514272
A37: Megalitres (ML) | B37: =F4 -> 3.7854118 | C37: 1 | D37: =C22 -> 1.233481838
A38: Acre-pieds | B38: =1/D36 -> 3.06888329 | C38: =1/C22 -> 0.8107131937 | D38: 1

Sheet Statistiques
B2: =Identification!B2 -> Année du bilan : 2020 | I2: =Identification!J2 -> 
B3: ='État & Plan d''action'!B3 -> Bilan 2020 de la Stratégie municipale d’économie d’eau potable
B7: STATISTIQUES
J8: 2019 | Q8: 2018 | U8: 2017 | Y8: =U8-1 -> 2016 | AA8: =Y8-1 -> 2015 | AC8: =AA8-1 -> 2014 | AE8: =AC8-1 -> 2013 | AG8: =AE8-1 -> 2012 | AI8: =AG8-1 -> 2011
B9: Code géographique | C9: Choisir une municipalité | D9: Région | E9: Désignation | F9: Population Source : Décret de population 2020 | G9: Logements permanents Source : Sommaire des rôles de l'évaluation foncière 2019 | H9: Personne par logement | I9: Longueur de réseau (m) Source : Base de données 2019 | J9: Nombre de réseaux de distribution d'eau potable distincts | K9: IFI | L9: Objectif IFI | M9: Consommation résidentielle | N9: Objectif consommation résidentielle | O9: Pression | P9: Quantité d'eau distribuée par personne (l/pers/d) | Q9: IFI | R9: Consommation résidentielle | S9: Pression | T9: Quantité d'eau distribuée par personne (l/pers/d) | U9: Respect des objectifs? | V9: Respect des PE en 2017? | W9: Quantité d'eau distribuée par personne (l/pers/d) | X9: Premier quartile canadien 2006 (l/pers/d) | Y9: Quantité d'eau distribuée par personne (l/pers/d) | Z9: Premier quartile canadien 2006 (l/pers/d) | AA9: Quantité d'eau distribuée par personne (l/pers/d) | AB9: Premier quartile canadien 2006 (l/pers/d) | AC9: Quantité d'eau distribuée par personne (l/pers/d) | AD9: Premier quartile canadien 2006 (l/pers/d) | AE9: Quantité d'eau distribuée par personne (l/pers/d) | AF9: Premier quartile canadien 2006 (l/pers/d) | AG9: Quantité d'eau distribuée par personne (l/pers/d) | AH9: Premier quartile canadien 2006 (l/pers/d) | AI9: Quantité d'eau distribuée par personne (l/pers/d) | AJ9: Premier quartile canadien 2006 (l/pers/d)
B10: 46005 | C10: Abercorn (VL) | D10: 16 | E10: Village | F10: 344 | G10: 216 | H10: 1.592592593 | I10: 4258 | K10: Non disponible | M10: Non disponible | P10: Non disponible | Q10: Non disponible | R10: Non disponible | T10: Non disponible | U10: Non | W10: Non disponible | Y10: Non disponible | AA10: Non disponible | AC10: 361.1506685 | AD10: 346.5167741 | AE10: 278.0088973 | AF10: 345.645963 | AG10: 339.4282231 | AH10: 346.0884496 | AI10: 330.1897977 | AJ10: 345.8318794
B11: 48028 | C11: Acton Vale | D11: 16 | E11: Ville | F11: 7733 | G11: 3267 | H11: 2.367003367 | I11: 44440 | J11: 1 | K11: 1.798818675 | L11: ≤ 2,0 | M11: 233 | N11: ≤ 184 | O11: 90 | P11: 458 | Q11: 1.865414102 | R11: 237 | S11: 90 | T11: 505 | U11: Non | V11: Oui | W11: 513.7650781 | X11: 391.0886746 | Y11: 448.9974914 | Z11: 390.3390344 | AA11: 446.7434453 | AB11: 390.2756247 | AC11: 806.2090013 | AD11: 390.3828509 | AE11: 725.2448445 | AF11: 390.4662531 | AG11: 776.1723779 | AH11: 389.8949894 | AI11: 897.2204945 | AJ11: 389.4248985
B12: 31056 | C12: Adstock | D12: 12 | E12: Municipalité | F12: 2768 | G12: 1061 | H12: 2.608859566 | I12: 13356 | J12: 1 | K12: 0.2855159097 | L12: ≤ 3,0 | M12: 166 | N12: ≤ 220 | O12: 35.2 | P12: 260 | Q12: 0.5229920083 | R12: 169 | S12: 35.2 | T12: 313 | U12: Non | V12: Oui | W12: 288.6805926 | X12: 366.4091208 | Y12: 340.6543113 | Z12: 363.1279156 | AA12: 338.5359951 | AB12: 363.2898506 | AC12: 384.5338299 | AD12: 363.0232697 | AE12: 562.8779567 | AF12: 361.9893713 | AG12: 764.2244209 | AH12: 360.6092161 | AI12: 844.6409854 | AJ12: 360.9147602
B13: 98030 | C13: Aguanish | D13: 9 | E13: Municipalité | F13: 238 | G13: 132 | H13: 1.803030303 | I13: 10735 | J13: 1 | K13: 0.3897914759 | L13: ≤ 3,0 | M13: 159 | N13: ≤ 220 | O13: 49 | P13: 209 | Q13: 0.4793967845 | R13: 129 | S13: 49.21 | T13: 201 | U13: Oui | V13: Oui | W13: 191.994079 | X13: 350.0908089 | Y13: 211.9987925 | Z13: 349.8683551 | AA13: 217.1948415 | AB13: 350.2370836 | AC13: 208.8802799 | AD13: 350.7741561 | AE13: Non disponible | AG13: 241.286792 | AH13: 351.335392 | AI13: 241.616418 | AJ13: 351.7369421
B14: 92030 | C14: Albanel | D14: 2 | E14: Municipalité | F14: 2232 | G14: 842 | H14: 2.650831354 | I14: 19817 | J14: 2 | K14: 4.3 | M14: 307 | N14: ≤ 220 | O14: 48 | P14: 480 | Q14: 1.9 | R14: 455 | S14: 48 | T14: 551 | U14: Non | V14: Oui | W14: 539 | X14: 371 | Y14: Non disponible | AA14: 536.8374188 | AB14: 370.6713055 | AC14: 577.4918348 | AD14: 370.3377679 | AE14: 539.6369485 | AF14: 370.7860073 | AG14: 593.6651584 | AH14: 369.3497266 | AI14: 610.7391767 | AJ14: 369.4966859
B15: 7025 | C15: Albertville | D15: 1 | E15: Municipalité | F15: 227 | G15: 103 | H15: 2.203883495 | K15: Non disponible | M15: Non disponible | P15: Non disponible | Q15: Non disponible | R15: Non disponible | T15: Non disponible | W15: Non disponible | Y15: Non disponible | AA15: Non disponible | AC15: Non disponible | AE15: Non disponible | AG15: Non disponible | AI15: Non disponible
B16: 84050 | C16: Alleyn-et-Cawood | D16: 7 | E16: Municipalité | F16: 172 | G16: 98 | H16: 1.755102041 | K16: Non disponible | M16: Non disponible | P16: Non disponible | Q16: Non disponible | R16: Non disponible | T16: Non disponible | W16: Non disponible | Y16: Non disponible | AA16: Non disponible | AC16: Non disponible | AE16: Non disponible | AG16: Non disponible | AI16: Non disponible
B17: 93042 | C17: Alma | D17: 2 | E17: Ville | F17: 30831 | G17: 14029 | H17: 2.197661986 | I17: 253858 | J17: 1 | K17: 3.496970914 | L17: ≤ 3,1 | M17: 246 | N17: ≤ 220 | O17: 56.6 | P17: 399 | Q17: 1.857760683 | R17: 271 | S17: 56.6 | T17: 399 | U17: Non | V17: Oui | W17: 392.8088706 | X17: 414.1434444 | Y17: 397.905454 | Z17: 413.7525903 | AA17: 441.8145897 | AB17: 413.9806235 | AC17: 451.5197374 | AD17: 414.1585806 | AE17: 492.1423262 | AF17: 414.2603237 | AG17: 498.0146779 | AH17: 413.6263238 | AI17: 477.2860499 | AJ17: 413.6994875
B18: 78070 | C18: Amherst (CT) | D18: 15 | E18: Canton | F18: 1459 | G18: 851 | H18: 1.714453584 | I18: 6507.54 | J18: 1 | K18: 0.952950373 | L18: ≤ 3,0 | M18: 208 | N18: ≤ 220 | O18: 50.63 | P18: 264 | Q18: 1.980548986 | R18: 158 | S18: 51.21666667 | T18: 244 | U18: Oui | V18: Oui | W18: 198.8250239 | X18: 359.8316348 | Y18: 208.044993 | Z18: 358.1388292 | AA18: 332.9976757 | AB18: 353.8118308 | AC18: 319.1968631 | AD18: 353.6415657 | AE18: 303.2564877 | AF18: 354.1716688 | AG18: 317.1774768 | AH18: 355.2867896 | AI18: 382.4592588 | AJ18: 355.2284714
B19: 88055 | C19: Amos | D19: 8 | E19: Ville | F19: 12769 | G19: 5493 | H19: 2.324594939 | I19: 103120 | J19: 1 | K19: 1.898776993 | L19: ≤ 3,0 | M19: 272 | N19: ≤ 220 | O19: 44 | P19: 480 | Q19: 0.7647509206 | R19: 231 | S19: 44 | T19: 429 | U19: Non | V19: Oui | W19: 367.1509458 | X19: 402.1415267 | Y19: 387.976034 | Z19: 401.839392 | AA19: 444.8717339 | AB19: 402.1415267 | AC19: 404.890079 | AD19: 402.821722 | AE19: 424.0781628 | AF19: 402.7716931 | AG19: 466.0457248 | AH19: 400.8849073 | AI19: 603.8033952 | AJ19: 400.5335917
B20: 7047 | C20: Amqui | D20: 1 | E20: Ville | F20: 6065 | G20: 2680 | H20: 2.263059701 | I20: 43910 | J20: 1 | K20: 9.360205358 | L20: ≤ 3,0 | M20: 348 | N20: ≤ 220 | O20: 51 | P20: 623 | Q20: Non disponible | R20: Non disponible | T20: Non disponible | U20: Non | V20: Oui | W20: 523.4754104 | X20: 389.651648 | Y20: 508.6403646 | Z20: 389.5378288 | AA20: 504.7286519 | AB20: 389.5996488 | AC20: 470.6301483 | AD20: 392.5718705 | AE20: 680.3005883 | AF20: 389.9561844 | AG20: 556.9457408 | AH20: 389.3302107 | AI20: 553.1751218 | AJ20: 389.1069826
B21: 55008 | C21: Ange-Gardien | D21: 16 | E21: Municipalité | F21: 2861 | G21: 929 | H21: 3.079655544 | I21: 21750 | J21: 1 | K21: 3.682871692 | L21: ≤ 2,0 | M21: 295 | N21: ≤ 184 | O21: 59 | P21: 1037 | Q21: 3.549182122 | R21: 301 | S21: 45.7 | T21: 1012 | U21: Non | V21: Oui | W21: 1050.443598 | X21: 378.7168018 | Y21: 1094.921913 | Z21: 377.036805 | AA21: 1111.09821 | AB21: 377.1697473 | AC21: 1089.114684 | AD21: 377.2141084 | AE21: Non disponible | AG21: 1119.014689 | AH21: 375.0335912 | AI21: 1137.74979 | AJ21: 373.1991247
B22: 19037 | C22: Armagh | D22: 12 | E22: Municipalité | F22: 1502 | G22: 686 | H22: 2.189504373 | I22: 9151 | J22: 1 | K22: 2.339634992 | L22: ≤ 3,0 | M22: 220 | N22: ≤ 220 | O22: 42.2 | P22: 309 | Q22: 1.531634013 | R22: 231 | S22: 42.19 | T22: 290 | U22: Oui | V22: Oui | W22: 336.1624897 | X22: 366.1187099 | Y22: 360.5236351 | Z22: 365.9533219 | AA22: 352.1497042 | AB22: 366.0878356 | AC22: 340.1820078 | AD22: 365.9223762 | AE22: 354.1952055 | AF22: 366.0568899 | AG22: 345.0339 | AH22: 366.0568899 | AI22: 330.8893256 | AJ22: 367.4558771
B23: 78060 | C23: Arundel (CT) | D23: 15 | E23: Canton | F23: 560 | G23: 274 | H23: 2.04379562 | K23: Non disponible | M23: Non disponible | P23: Non disponible | Q23: Non disponible | R23: Non disponible | T23: Non disponible | W23: Non disponible | Y23: Non disponible | AA23: Non disponible | AC23: Non disponible | AE23: Non disponible | AG23: Non disponible | AI23: Non disponible
B24: 41055 | C24: Ascot Corner | D24: 5 | E24: Municipalité | F24: 3255 | G24: 1131 | H24: 2.877984085 | I24: 8541 | J24: 1 | K24: 2.920473413 | L24: ≤ 3,0 | M24: 198 | N24: ≤ 220 | O24: 60.9 | P24: 380 | Q24: 2.379077935 | R24: 199 | S24: 63 | T24: 367 | U24: Non | V24: Non | W24: 326.0781516 | X24: 365.2771118 | Y24: 369.9651361 | Z24: 363.37662 | AA24: 380.0087906 | AB24: 363.5809599 | AC24: 388.5714838 | AD24: 362.7230614 | AE24: 302.3028761 | AF24: 363.9835689 | AG24: 277.3905347 | AH24: 363.5316633 | AI24: 350.7481085 | AJ24: 362.041963
B25: 50013 | C25: Aston-Jonction | D25: 3 | E25: Municipalité | F25: 430 | G25: 150 | H25: 2.866666667 | K25: Non disponible | M25: Non disponible | P25: Non disponible | Q25: Non disponible | R25: Non disponible | T25: Non disponible | W25: Non disponible | Y25: Non disponible | AA25: Non disponible | AC25: Non disponible | AE25: Non disponible | AG25: Non disponible | AI25: Non disponible
B26: 13045 | C26: Auclair | D26: 1 | E26: Municipalité | F26: 455 | G26: 193 | H26: 2.357512953 | I26: 2720 | J26: 1 | K26: 1.274405553 | L26: ≤ 3,0 | M26: 233 | N26: ≤ 220 | O26: 44.6 | P26: 297 | Q26: 2.927922939 | R26: 182 | S26: 44.6 | T26: 296 | U26: Non | W26: Non disponible | Y26: 416.3413999 | Z26: 349.0659091 | AA26: 437.2282417 | AB26: 348.666357 | AC26: 452.2461213 | AD26: 348.8708526 | AE26: 462.7621587 | AF26: 347.6848912 | AG26: 333.2705631 | AH26: 347.3907256 | AI26: 334.7280335 | AJ26: 347.446843
B27: 30055 | C27: Audet | D27: 5 | E27: Municipalité | F27: 757 | G27: 250 | H27: 3.028 | I27: 5330 | J27: 1 | K27: 2.38813061 | L27: ≤ 3,0 | M27: 109 | N27: ≤ 220 | O27: 37 | P27: 204 | Q27: 0.8425382238 | R27: 123 | S27: 45.35 | T27: 191 | U27: Oui | V27: Oui | W27: 169.9217069 | X27: 354.3529937 | Y27: 212.6355245 | Z27: 352.403748 | AA27: 250.866376 | AB27: 352.7045247 | AC27: 333.5423315 | AD27: 352.0533613 | AE27: Non disponible | AG27: 349.2192263 | AH27: 351.2803693 | AI27: 399.8785861 | AJ27: 349.8766604
B28: 83090 | C28: Aumond (CT) | D28: 7 | E28: Canton | F28: 766 | G28: 319 | H28: 2.401253918 | K28: Non disponible | M28: Non disponible | P28: Non disponible | Q28: Non disponible | R28: Non disponible | T28: Non disponible | W28: Non disponible | Y28: Non disponible | AA28: Non disponible | AC28: Non disponible | AE28: Non disponible | AG28: Non disponible | AI28: Non disponible
B29: 45085 | C29: Austin | D29: 5 | E29: Municipalité | F29: 1577 | G29: 690 | H29: 2.285507246 | K29: Non disponible | M29: Non disponible | P29: Non disponible | Q29: Non disponible | R29: Non disponible | T29: Non disponible | W29: Non disponible | Y29: Non disponible | AA29: Non disponible | AC29: Non disponible | AE29: Non disponible | AG29: Non disponible | AI29: Non disponible
B30: 87050 | C30: Authier | D30: 8 | E30: Municipalité | F30: 266 | G30: 117 | H30: 2.273504274 | K30: Non disponible | M30: Non disponible | P30: Non disponible | Q30: Non disponible | R30: Non disponible | T30: Non disponible | W30: Non disponible | Y30: Non disponible | AA30: Non disponible | AC30: Non disponible | AE30: Non disponible | AG30: Non disponible | AI30: Non disponible
B31: 87100 | C31: Authier-Nord | D31: 8 | E31: Municipalité | F31: 292 | G31: 105 | H31: 2.780952381 | K31: Non disponible | M31: Non disponible | P31: Non disponible | Q31: Non disponible | R31: Non disponible | T31: Non disponible | W31: Non disponible | Y31: Non disponible | AA31: Non disponible | AC31: Non disponible | AE31: Non disponible | AG31: Non disponible | AI31: Non disponible
B32: 45035 | C32: Ayer's Cliff (VL) | D32: 5 | E32: Village | F32: 1131 | G32: 521 | H32: 2.170825336 | I32: 18702 | K32: Non disponible | M32: Non disponible | P32: Non disponible | Q32: Non disponible | R32: Non disponible | T32: Non disponible | U32: Non | V32: Oui | W32: 582.0422325 | X32: 370.4019605 | Y32: 544.8057007 | Z32: 372.2831716 | AA32: Non disponible | AC32: 392.8628336 | AD32: 374.3923666 | AE32: Non disponible | AG32: 606.3585282 | AH32: 369.6751895 | AI32: 758.431692 | AJ32: 369.1394013
B33: 96020 | C33: Baie-Comeau | D33: 9 | E33: Ville | F33: 21082 | G33: 8900 | H33: 2.368764045 | I33: 148950 | J33: 1 | K33: 8.655640926 | L33: ≤ 3,1 | M33: 297 | N33: ≤ 220 | O33: 37.6 | P33: 498 | Q33: 3.912316815 | R33: 334 | S33: 53.66329486 | T33: 472 | U33: Non | V33: Oui | W33: 533.0176912 | X33: 409.1846972 | Y33: 484.4174111 | Z33: 409.3731243 | AA33: 487.8803568 | AB33: 409.6838289 | AC33: Non disponible | AE33: 450.9764134 | AF33: 409.8511222 | AG33: 606.4876072 | AH33: 409.3508339 | AI33: 620.2515619 | AJ33: 409.3578577
B34: 8080 | C34: Baie-des-Sables | D34: 1 | E34: Municipalité | F34: 634 | G34: 291 | H34: 2.178694158 | I34: 7045 | J34: 1 | K34: 0.6744351751 | L34: ≤ 3,0 | M34: 142 | N34: ≤ 220 | O34: 50 | P34: 184 | Q34: 0.5931752239 | R34: 150 | S34: 50 | T34: 186 | U34: Oui | V34: Oui | W34: 159.3294889 | X34: 357.1781299 | Y34: 165.4058899 | Z34: 356.0311918 | AA34: 160.3428041 | AB34: 356.2408671 | AC34: 170.4583658 | AD34: 356.1696184 | AE34: 183.6998822 | AF34: 353.872932 | AG34: 222.0488967 | AH34: 351.3994548 | AI34: 166.9935112 | AJ34: 355.063252
B35: 50100 | C35: Baie-du-Febvre | D35: 17 | E35: Municipalité | F35: 955 | G35: 410 | H35: 2.329268293 | I35: 37802 | J35: 2 | K35: 1.431825832 | M35: 161 | N35: ≤ 220 | O35: 54.6 | P35: 581 | Q35: 3.207401327 | R35: 262 | S35: 54.6 | T35: 556 | U35: Non | V35: Non | W35: 438.2966823 | X35: 369.7938202 | Y35: 436.9630718 | Z35: 368.7567275 | AA35: 419.9611215 | AB35: 368.6931455 | AC35: 466.2590498 | AD35: 367.7330601 | AE35: 510.0954363 | AF35: 368.1845474 | AG35: 471.3284675 | AH35: 368.2394071 | AI35: 451.0851588 | AJ35: 369.1052632
B36: 66112 | C36: Baie-D'Urfé | D36: 6 | E36: Ville | F36: 3922 | G36: 1369 | H36: 2.864864865 | I36: 47136 | J36: 1 | K36: 4.257213101 | L36: ≤ 3,0 | M36: 299 | N36: ≤ 220 | O36: 50 | P36: 941 | Q36: 0.8051574931 | R36: 286 | S36: 50 | T36: 1042 | U36: Non | V36: Non | W36: 600.3350024 | X36: 426.8500024 | Y36: 572 | Z36: 427 | AA36: 548.4040133 | AB36: 426.8174833 | AC36: 1143.00881 | AD36: 386.0965916 | AE36: Non disponible | AG36: Non disponible | AI36: 1077.821637 | AJ36: 386.1436719
B37: 98035 | C37: Baie-Johan-Beetz | D37: 9 | E37: Municipalité | F37: 85 | G37: 51 | H37: 1.666666667 | I37: 2750 | J37: 1 | K37: 1.251260155 | L37: ≤ 3,0 | M37: 163 | N37: ≤ 220 | O37: 46 | P37: 721 | Q37: 1.478126504 | R37: 293 | S37: 45.7 | T37: 957 | U37: Non | V37: Non | W37: 827.3781014 | X37: 335.1458224 | Y37: Non disponible | AA37: 923.6099919 | AB37: 335.0204444 | AC37: Non disponible | AE37: Non disponible | AG37: 1346.824203 | AH37: 335.3224807 | AI37: 1431.288418 | AJ37: 336.2430074
B38: 15065 | C38: Baie-Sainte-Catherine | D38: 3 | E38: Municipalité | F38: 197 | G38: 108 | H38: 1.824074074 | I38: 6596 | J38: 1 | K38: 2.558365363 | L38: ≤ 3,0 | M38: 260 | N38: ≤ 220 | O38: 44 | P38: 589 | Q38: 1.278380058 | R38: 235 | S38: 44 | T38: 622 | U38: Non | V38: Oui | W38: 574.0933505 | X38: 346.2975468 | Y38: 653.142109 | Z38: 347.477918 | AA38: 854.2441919 | AB38: 346.3961726 | AC38: Non disponible | AE38: Non disponible | AG38: 1383.356575 | AH38: 347.8168802 | AI38: 1653.440122 | AJ38: 346.6032043
B39: 16013 | C39: Baie-Saint-Paul | D39: 3 | E39: Ville | F39: 7168 | G39: 3332 | H39: 2.151260504 | I39: 57701 | J39: 2 | K39: 3.951386716 | M39: 271 | N39: ≤ 220 | O39: 50.87727473 | P39: 567 | Q39: 1.233263378 | R39: 411 | S39: 50.90776014 | T39: 598 | U39: Non | V39: Oui | W39: 572.8375103 | X39: 391.783688 | Y39: 569.239067 | Z39: 391.2958154 | AA39: 527.8365419 | AB39: 391.2949693 | AC39: 477.5163952 | AD39: 393.0917315 | AE39: Non disponible | AG39: 473.1811475 | AH39: 393.2693893 | AI39: 509.6433487 | AJ39: 393.1190057
B40: 96005 | C40: Baie-Trinité (VL) | D40: 9 | E40: Village | F40: 389 | G40: 289 | H40: 1.346020761 | I40: 19800 | J40: 1 | K40: 2.513917515 | L40: ≤ 3,0 | M40: 308 | N40: ≤ 220 | O40: 56 | P40: 1157 | Q40: 0.9505413745 | R40: 1040 | S40: 56 | T40: 1351 | W40: Non disponible | Y40: Non disponible | AA40: Non disponible | AC40: Non disponible | AE40: Non disponible | AG40: 832.2838306 | AH40: 358.7363148 | AI40: 917.0550137 | AJ40: 358.7363148
B41: 78050 | C41: Barkmere | D41: 15 | E41: Ville | F41: 57 | G41: 43 | H41: 1.325581395 | K41: Non disponible | M41: Non disponible | P41: Non disponible | Q41: Non disponible | R41: Non disponible | T41: Non disponible | W41: Non disponible | Y41: Non disponible | AA41: Non disponible | AC41: Non disponible | AE41: Non disponible | AG41: Non disponible | AI41: Non disponible
B42: 44045 | C42: Barnston-Ouest | D42: 5 | E42: Municipalité | F42: 554 | G42: 184 | H42: 3.010869565 | K42: Non disponible | M42: Non disponible | P42: Non disponible | Q42: Non disponible | R42: Non disponible | T42: Non disponible | W42: Non disponible | Y42: Non disponible | AA42: Non disponible | AC42: Non disponible | AE42: Non disponible | AG42: Non disponible | AI42: Non disponible
B43: 88022 | C43: Barraute | D43: 8 | E43: Municipalité | F43: 1984 | G43: 834 | H43: 2.378896882 | I43: 15724 | K43: Non disponible | M43: Non disponible | P43: Non disponible | Q43: 1.196445465 | R43: 239 | S43: 52.7 | T43: 342 | U43: Oui | V43: Oui | W43: 362.6599286 | X43: 374.0470971 | Y43: 341.1102352 | Z43: 373.6572443 | AA43: 336.2958323 | AB43: 374.0470971 | AC43: 287.3105524 | AD43: 374.2378462 | AE43: 324.4582491 | AF43: 374.6897215 | AG43: 339.087999 | AH43: 372.9967373 | AI43: 267.0096512 | AJ43: 373.8133012
B44: 37210 | C44: Batiscan | D44: 4 | E44: Municipalité | F44: 899 | G44: 465 | H44: 1.933333333 | I44: 26650 | K44: Non disponible | M44: Non disponible | P44: Non disponible | Q44: 1.598020517 | R44: 403 | S44: 40 | T44: 496 | U44: Non | V44: Oui | W44: 778.3411616 | X44: 367.5811477 | Y44: Non disponible | AA44: 453.6860642 | AB44: 367.3353376 | AC44: 435.7914819 | AD44: 367.5648884 | AE44: 468.0277442 | AF44: 367.3978997 | AG44: 652.8668744 | AH44: 367.2588082 | AI44: 603.0435629 | AJ44: 367.4340922
B45: 66107 | C45: Beaconsfield | D45: 6 | E45: Ville | F45: 19977 | G45: 6852 | H45: 2.915499124 | I45: 126622 | K45: Non disponible | M45: Non disponible | P45: Non disponible | Q45: 4.310250388 | R45: 266 | S45: 46 | T45: 388 | U45: Non | V45: Non | W45: 600.3350024 | X45: 426.8500024 | Y45: 572 | Z45: 427 | AA45: 548.4040133 | AB45: 426.8174833 | AC45: 403.7965781 | AD45: 408.0054962 | AE45: Non disponible | AG45: 522.3751529 | AH45: 407.7413085 | AI45: 532.2704975 | AJ45: 407.9210705
B46: 85020 | C46: Béarn | D46: 8 | E46: Municipalité | F46: 711 | G46: 335 | H46: 2.12238806 | I46: 7223 | J46: 1 | K46: 9.116744214 | L46: ≤ 3,0 | M46: 265 | N46: ≤ 220 | O46: 37.89 | P46: 905 | Q46: 9.8785325 | R46: 346 | S46: 45.7 | T46: 869 | U46: Non | V46: Non | W46: 1039.365461 | X46: 364.2838613 | Y46: 989.4678311 | Z46: 363.9050435 | AA46: 812 | AB46: 364.1587762 | AC46: 837.3592576 | AD46: 364.6019188 | AE46: 1323.322722 | AF46: 363.395154 | AG46: 1421.041596 | AH46: 360.5136916 | AI46: 1003.110258 | AJ46: 364.7145598
B47: 27028 | C47: Beauceville | D47: 12 | E47: Ville | F47: 6297 | G47: 2824 | H47: 2.229815864 | I47: 41060 | J47: 1 | K47: 0.9161522841 | L47: ≤ 3,0 | M47: 275 | N47: ≤ 220 | O47: 49 | P47: 419 | Q47: 3.709606276 | R47: 222 | S47: 49.21 | T47: 412 | U47: Non | V47: Oui | W47: 452.2646097 | X47: 388.1973977 | Y47: 504.7752563 | Z47: 387.9909658 | AA47: 526.9606824 | AB47: 387.8918939 | AC47: 527.9831344 | AD47: 388.2857986 | AE47: 608.2496748 | AF47: 387.7464555 | AG47: 560.0930055 | AH47: 388.2583134 | AI47: 521.2423806 | AJ47: 389.7496902
B48: 70022 | C48: Beauharnois | D48: 16 | E48: Ville | F48: 13374 | G48: 5742 | H48: 2.329153605 | I48: 95061 | J48: 2 | K48: 9.43386669 | M48: 250 | N48: ≤ 184 | O48: 41.28400739 | P48: 501 | Q48: 7.88 | R48: 333 | S48: 41.22298986 | T48: 556 | U48: Non | W48: Non disponible | Y48: 544.7359982 | Z48: 402.2020905 | AA48: 593.2771577 | AB48: 402.077611 | AC48: 643.7379478 | AD48: 401.9190826 | AE48: 625.5501244 | AF48: 401.6613725 | AG48: 614.8610966 | AH48: 401.7624928 | AI48: 642.2630176 | AJ48: 401.6702612
B49: 31008 | C49: Beaulac-Garthby | D49: 12 | E49: Municipalité | F49: 972 | G49: 447 | H49: 2.174496644 | I49: 6215 | J49: 1 | K49: 0.6947309791 | L49: ≤ 2,0 | M49: 380 | N49: ≤ 184 | O49: 42 | P49: 444 | Q49: 1.324185408 | R49: 360 | S49: 45.5 | T49: 429 | U49: Non | V49: Oui | W49: 448.0034136 | X49: 354.1305398 | Y49: Non disponible | AA49: 315.6611818 | AB49: 353.4956463 | AC49: 378.4711232 | AD49: 353.666797 | AE49: 409.8251839 | AF49: 353.6456545 | AG49: 322.2215713 | AH49: 353.6288215 | AI49: 553.4226925 | AJ49: 353.3611326
B50: 19105 | C50: Beaumont | D50: 12 | E50: Municipalité | F50: 2984 | G50: 1059 | H50: 2.817752597 | I50: 14207 | J50: 1 | K50: 1.928160093 | L50: ≤ 2,0 | M50: 151 | N50: ≤ 184 | O50: 42 | P50: 202 | Q50: 1.928148087 | R50: 148 | S50: 42 | T50: 199 | U50: Oui | V50: Oui | W50: 199.6488392 | X50: 375.0897925 | Y50: 334.7925226 | Z50: 374.6670153 | AA50: 316.0542001 | AB50: 374.8494302 | AC50: 318.9837685 | AD50: 372.6782823 | AE50: Non disponible | AG50: 345.8538021 | AH50: 370.3190747 | AI50: 329.0998424 | AJ50: 369.0273232
B51: 21025 | C51: Beaupré | D51: 3 | E51: Ville | F51: 3847 | G51: 2474 | H51: 1.554971706 | I51: 45335 | J51: 1 | K51: 1.579795721 | L51: ≤ 3,0 | M51: 190 | N51: ≤ 220 | O51: 52.7 | P51: 479 | Q51: 1.920704806 | R51: 324 | S51: 52.7 | T51: 508 | U51: Non | V51: Non | W51: 516.526463 | X51: 385.7086299 | Y51: 553.8866653 | Z51: 385.169604 | AA51: 502.9482377 | AB51: 385.4504898 | AC51: 594.9038121 | AD51: 383.2892577 | AE51: 580.8938905 | AF51: 385.2459765 | AG51: 318.193354 | AH51: 393.6942657 | AI51: 373.34517 | AJ51: 391.8825297
B52: 38010 | C52: Bécancour | D52: 17 | E52: Ville | F52: 13543 | G52: 5679 | H52: 2.384750836 | I52: 333043 | J52: 1 | K52: 2.095065077 | L52: ≤ 3,1 | M52: 214 | N52: ≤ 220 | O52: 55 | P52: 457 | Q52: 1.984827866 | R52: 198 | S52: 55 | T52: 336 | U52: Non | V52: Oui | W52: 342.1850924 | X52: 402.4534097 | Y52: 340.9865055 | Z52: 402.2871541 | AA52: 323.5200016 | AB52: 402.1380355 | AC52: 378.6778029 | AD52: 402.1894332 | AE52: 444.4448817 | AF52: 402.5861388 | AG52: 453.7122655 | AH52: 402.0590318 | AI52: 851.9991867 | AJ52: 401.7738631
B53: 46035 | C53: Bedford | D53: 16 | E53: Ville | F53: 2556 | G53: 1257 | H53: 2.033412888 | I53: 23411 | J53: 1 | K53: 7.586639448 | L53: ≤ 3,0 | M53: 213 | N53: ≤ 220 | O53: 46.4 | P53: 597 | Q53: Non disponible | R53: Non disponible | T53: Non disponible | W53: Non disponible | Y53: Non disponible | AA53: Non disponible | AC53: Non disponible | AE53: Non disponible | AG53: 866.5950176 | AH53: 381.1741669 | AI53: 807.5113176 | AJ53: 380.9164394
B54: 46040 | C54: Bedford (CT) | D54: 16 | E54: Canton | F54: 698 | G54: 257 | H54: 2.715953307 | I54: 23411 | K54: Non disponible | M54: Non disponible | P54: Non disponible | Q54: 3.520187725 | R54: 270 | S54: 45.7 | T54: 732 | W54: Non disponible | Y54: Non disponible | AA54: Non disponible | AC54: Non disponible | AE54: Non disponible | AG54: Non disponible | AI54: Non disponible
B55: 94250 | C55: Bégin | D55: 2 | E55: Municipalité | F55: 828 | G55: 373 | H55: 2.219839142 | I55: 17749 | J55: 1 | K55: 0.7532590364 | L55: ≤ 3,0 | M55: 242 | N55: ≤ 220 | O55: 35 | P55: 318 | Q55: 2.418209701 | R55: 452 | S55: 35 | T55: 569 | U55: Non | W55: Non disponible | Y55: 429.9500746 | Z55: 362.7766873 | AA55: 420.8263693 | AB55: 362.5471105 | AC55: 410.0341461 | AD55: 362.5710854 | AE55: 514.7989386 | AF55: 362.3823394 | AG55: 428.8951468 | AH55: 364.4797847 | AI55: 443.7783399 | AJ55: 363.5701451
B56: 89050 | C56: Belcourt | D56: 8 | E56: Municipalité | F56: 217 | G56: 100 | H56: 2.17 | K56: Non disponible | M56: Non disponible | P56: Non disponible | Q56: Non disponible | R56: Non disponible | T56: Non disponible | W56: Non disponible | Y56: Non disponible | AA56: Non disponible | AC56: Non disponible | AE56: Non disponible | AG56: Non disponible | AI56: Non disponible
B57: 85065 | C57: Belleterre | D57: 8 | E57: Ville | F57: 296 | G57: 172 | H57: 1.720930233 | K57: Non disponible | M57: Non disponible | P57: Non disponible | Q57: Non disponible | R57: Non disponible | T57: Non disponible | W57: Non disponible | Y57: Non disponible | AA57: Non disponible | AC57: Non disponible | AE57: Non disponible | AG57: Non disponible | AI57: Non disponible
B58: 57040 | C58: Beloeil | D58: 16 | E58: Ville | F58: 24066 | G58: 9455 | H58: 2.545319937 | I58: 144858 | J58: 1 | K58: 2.037532765 | L58: ≤ 3,1 | M58: 222 | N58: ≤ 220 | O58: 46 | P58: 330 | Q58: 2.460161664 | R58: 233 | S58: 46 | T58: 344 | U58: Non | V58: Oui | W58: 357.7533885 | X58: 409.7707617 | Y58: 365.3457442 | Z58: 409.5093719 | AA58: 360.1916843 | AB58: 409.362526 | AC58: 343.9779123 | AD58: 410.7124503 | AE58: 382.3968622 | AF58: 409.1890374 | AG58: 445.758147 | AH58: 409.1587809 | AI58: 391.9978839 | AJ58: 408.6224235
B59: 88070 | C59: Berry | D59: 8 | E59: Municipalité | F59: 542 | G59: 203 | H59: 2.669950739 | K59: Non disponible | M59: Non disponible | P59: Non disponible | Q59: Non disponible | R59: Non disponible | T59: Non disponible | W59: Non disponible | Y59: Non disponible | AA59: Non disponible | AC59: Non disponible | AE59: Non disponible | AG59: Non disponible | AI59: Non disponible
B60: 18065 | C60: Berthier-sur-Mer | D60: 12 | E60: Municipalité | F60: 1635 | G60: 772 | H60: 2.117875648 | I60: 12993 | J60: 1 | K60: 0.3082430568 | L60: ≤ 2,0 | M60: 225 | N60: ≤ 184 | O60: 51 | P60: 247 | Q60: 1.108528122 | R60: 228 | S60: 51 | T60: 276 | U60: Oui | V60: Oui | W60: 272.6989698 | X60: 371.0895896 | Y60: 266.6256831 | Z60: 370.4535884 | AA60: 248.2297555 | AB60: 370.588972 | AC60: 227.4965762 | AD60: 369.646167 | AE60: 286.4314152 | AF60: 369.9084845 | AG60: 174.0311591 | AH60: 367.2839897 | AI60: 273.6681593 | AJ60: 365.4859789
B61: 52035 | C61: Berthierville | D61: 14 | E61: Ville | F61: 4346 | G61: 2127 | H61: 2.043253409 | I61: 31075 | J61: 1 | K61: 8.503238177 | L61: ≤ 3,0 | M61: 168 | N61: ≤ 220 | O61: 50.964116 | P61: 1187 | Q61: 1.599023051 | R61: 250 | S61: 53 | T61: 1194 | U61: Non | V61: Non | W61: 1067.365637 | X61: 388.0273483 | Y61: Non disponible | AA61: 1139.329891 | AB61: 387.0431749 | AC61: Non disponible | AE61: 1070.27147 | AF61: 387.2682828 | AG61: 1115.176824 | AH61: 387.058666 | AI61: 1132.021645 | AJ61: 386.8192409
B62: 48005 | C62: Béthanie | D62: 16 | E62: Municipalité | F62: 315 | G62: 100 | H62: 3.15 | K62: Non disponible | M62: Non disponible | P62: Non disponible | Q62: Non disponible | R62: Non disponible | T62: Non disponible | W62: Non disponible | Y62: Non disponible | AA62: Non disponible | AC62: Non disponible | AE62: Non disponible | AG62: Non disponible | AI62: Non disponible
B63: 13055 | C63: Biencourt | D63: 1 | E63: Municipalité | F63: 434 | G63: 238 | H63: 1.823529412 | I63: 5505 | J63: 1 | K63: 5.237775451 | L63: ≤ 3,0 | M63: 179 | N63: ≤ 220 | O63: 37.7 | P63: 393 | Q63: 1.578282341 | R63: 248 | S63: 37.73 | T63: 336 | U63: Non | V63: Oui | W63: 339.2749297 | X63: 350.8294342 | Y63: 340.3907202 | Z63: 350.2567693 | AA63: 562.7532317 | AB63: 350.3377308 | AC63: 514.4000065 | AD63: 350.8318213 | AE63: 357.9376994 | AF63: 351.5376729 | AG63: 384.0733637 | AH63: 350.0989774 | AI63: 182.5562874 | AJ63: 360.3746811
B64: 73015 | C64: Blainville | D64: 15 | E64: Ville | F64: 60838 | G64: 21902 | H64: 2.777737193 | I64: 276270 | J64: 1 | K64: 5.428210389 | L64: ≤ 3,2 | M64: 185 | N64: ≤ 220 | O64: 42 | P64: 360 | Q64: 3.185300071 | R64: 248 | S64: 42.19 | T64: 381 | U64: Non | V64: Oui | W64: 340 | X64: 423 | Y64: 357.8047171 | Z64: 422.4449979 | AA64: Non disponible | AC64: 369.6506876 | AD64: 421.946062 | AE64: 364.3378194 | AF64: 421.8787056 | AG64: 396.3784501 | AH64: 422.0761024 | AI64: 394.8309323 | AJ64: 421.4236534
B65: 98005 | C65: Blanc-Sablon | D65: 9 | E65: Municipalité | F65: 1093 | G65: 454 | H65: 2.407488987 | I65: 23264 | K65: Non disponible | M65: Non disponible | P65: Non disponible | Q65: 2.059861792 | R65: 1066 | S65: 31.83333333 | T65: 1248 | U65: Non | W65: Non disponible | Y65: Non disponible | AA65: Non disponible | AC65: Non disponible | AE65: 864.5585441 | AF65: 371.4324264 | AG65: 694.4608461 | AH65: 376.2202464 | AI65: 594.3875723 | AJ65: 377.5941696
B66: 83045 | C66: Blue Sea | D66: 7 | E66: Municipalité | F66: 656 | G66: 307 | H66: 2.136807818 | K66: Non disponible | M66: Non disponible | P66: Non disponible | Q66: Non disponible | R66: Non disponible | T66: Non disponible | W66: Non disponible | Y66: Non disponible | AA66: Non disponible | AC66: Non disponible | AE66: Non disponible | AG66: Non disponible | AI66: Non disponible
B67: 80115 | C67: Boileau | D67: 7 | E67: Municipalité | F67: 336 | G67: 157 | H67: 2.140127389 | K67: Non disponible | M67: Non disponible | P67: Non disponible | Q67: Non disponible | R67: Non disponible | T67: Non disponible | W67: Non disponible | Y67: Non disponible | AA67: Non disponible | AC67: Non disponible | AE67: Non disponible | AG67: Non disponible | AI67: Non disponible
B68: 73005 | C68: Boisbriand | D68: 15 | E68: Ville | F68: 26899 | G68: 10841 | H68: 2.481228669 | I68: 128027 | J68: 1 | K68: 5.503167267 | L68: ≤ 3,1 | M68: 176 | N68: ≤ 220 | O68: 56 | P68: 469 | Q68: 10.97922883 | R68: 173 | S68: 56 | T68: 580 | U68: Non | V68: Non | W68: 539.4971508 | X68: 411.7845086 | Y68: 526.8225809 | Z68: 412.3007816 | AA68: 520.196502 | AB68: 412.3111004 | AC68: 485.7993074 | AD68: 412.3189138 | AE68: 591.6838747 | AF68: 412.4998322 | AG68: 744.2427169 | AH68: 412.1999636 | AI68: 673.5988165 | AJ68: 412.0212768
B69: 21045 | C69: Boischatel | D69: 3 | E69: Municipalité | F69: 8103 | G69: 2974 | H69: 2.724613315 | I69: 46900 | J69: 1 | K69: 1.678046788 | L69: ≤ 3,0 | M69: 199 | N69: ≤ 220 | O69: 60 | P69: 249 | Q69: 1.248300924 | R69: 213 | S69: 60 | T69: 255 | U69: Oui | V69: Oui | W69: 254.6416288 | X69: 395.3242914 | Y69: 269.235293 | Z69: 394.2587051 | AA69: 268.9269885 | AB69: 393.9787971 | AC69: 273.8548352 | AD69: 394.3262449 | AE69: 266.7554522 | AF69: 393.8085091 | AG69: 274.1038979 | AH69: 393.4862174 | AI69: 301.6294208 | AJ69: 391.5141422
B70: 73030 | C70: Bois-des-Filion | D70: 15 | E70: Ville | F70: 9970 | G70: 4213 | H70: 2.36648469 | I70: 46919 | J70: 2 | K70: 4.398311858 | M70: 163 | N70: ≤ 220 | O70: 49.24358908 | P70: 292 | Q70: 2.204602072 | R70: 260 | S70: 44.8 | T70: 299 | W70: Non disponible | Y70: Non disponible | AA70: 338.9043367 | AB70: 398.6017794 | AC70: 329.8907525 | AD70: 398.6421593 | AE70: Non disponible | AG70: Non disponible | AI70: Non disponible
B71: 83085 | C71: Bois-Franc | D71: 7 | E71: Municipalité | F71: 412 | G71: 189 | H71: 2.17989418 | K71: Non disponible | M71: Non disponible | P71: Non disponible | Q71: Non disponible | R71: Non disponible | T71: Non disponible | W71: Non disponible | Y71: Non disponible | AA71: Non disponible | AC71: Non disponible | AE71: Non disponible | AG71: Non disponible | AI71: Non disponible
B72: 45095 | C72: Bolton-Est | D72: 5 | E72: Municipalité | F72: 1028 | G72: 460 | H72: 2.234782609 | K72: Non disponible | M72: Non disponible | P72: Non disponible | Q72: Non disponible | R72: Non disponible | T72: Non disponible | W72: Non disponible | Y72: Non disponible | AA72: Non disponible | AC72: Non disponible | AE72: Non disponible | AG72: Non disponible | AI72: Non disponible
B73: 46065 | C73: Bolton-Ouest | D73: 16 | E73: Municipalité | F73: 634 | G73: 443 | H73: 1.431151242 | K73: Non disponible | M73: Non disponible | P73: Non disponible | Q73: Non disponible | R73: Non disponible | T73: Non disponible | W73: Non disponible | Y73: Non disponible | AA73: Non disponible | AC73: Non disponible | AE73: Non disponible | AG73: Non disponible | AI73: Non disponible
B74: 5045 | C74: Bonaventure | D74: 11 | E74: Ville | F74: 2690 | G74: 1229 | H74: 2.188771359 | I74: 23715 | J74: 1 | K74: 1.072216479 | L74: ≤ 3,0 | M74: 381 | N74: ≤ 220 | O74: 53.2 | P74: 477 | Q74: 2.224089474 | R74: 419 | S74: 33.6 | T74: 533 | U74: Non | W74: Non disponible | Y74: 585.1668839 | Z74: 375.2892839 | AA74: 507.515151 | AB74: 375.1702442 | AC74: 509.1460931 | AD74: 375.2704447 | AE74: Non disponible | AG74: 500.9784621 | AH74: 373.9664443 | AI74: 601.0554318 | AJ74: 373.2655512
B75: 98010 | C75: Bonne-Espérance | D75: 9 | E75: Municipalité | F75: 659 | G75: 300 | H75: 2.196666667 | I75: 17000 | K75: Non disponible | M75: Non disponible | P75: Non disponible | Q75: Non disponible | R75: Non disponible | T75: Non disponible | W75: Non disponible | Y75: Non disponible | AA75: Non disponible | AC75: Non disponible | AE75: Non disponible | AG75: 552.5475844 | AH75: 363.6055402 | AI75: 589.2020308 | AJ75: 363.5234296
B76: 42040 | C76: Bonsecours | D76: 5 | E76: Municipalité | F76: 624 | G76: 251 | H76: 2.486055777 | I76: 9754 | J76: 1 | K76: 0.3936745664 | L76: ≤ 3,0 | M76: 181 | N76: ≤ 220 | O76: 50.8 | P76: 230 | Q76: 0.3999733595 | R76: 98 | S76: 50 | T76: 190 | V76: Oui | W76: 268.8477517 | X76: 351.77302 | Y76: Non disponible | AA76: Non disponible | AC76: Non disponible | AE76: Non disponible | AG76: 805.7090239 | AH76: 344.5903227 | AI76: 994.9937422 | AJ76: 343.4693859
B77: 58033 | C77: Boucherville | D77: 16 | E77: Ville | F77: 42714 | G77: 17185 | H77: 2.485539715 | I77: 241000 | K77: Non disponible | M77: Non disponible | P77: Non disponible | Q77: Non disponible | R77: Non disponible | T77: Non disponible | U77: Non | V77: Oui | W77: 701.9022739 | X77: 418.1245747 | Y77: 766.1369781 | Z77: 417.9990248 | AA77: 577.5730575 | AB77: 417.8669942 | AC77: 556.6982336 | AD77: 417.7497834 | AE77: 538.2517516 | AF77: 417.7062337 | AG77: 556.7503758 | AH77: 417.8787225 | AI77: 568.8750008 | AJ77: 417.7743074
B78: 83050 | C78: Bouchette | D78: 7 | E78: Municipalité | F78: 667 | G78: 307 | H78: 2.172638436 | I78: 7600 | K78: Non disponible | M78: Non disponible | P78: Non disponible | Q78: Non disponible | R78: Non disponible | T78: Non disponible | W78: Non disponible | Y78: Non disponible | AA78: Non disponible | AC78: Non disponible | AE78: Non disponible | AG78: 352.4904378 | AH78: 357.6200444 | AI78: 404.2415434 | AJ78: 355.5817459
B79: 80145 | C79: Bowman | D79: 7 | E79: Municipalité | F79: 670 | G79: 308 | H79: 2.175324675 | K79: Non disponible | M79: Non disponible | P79: Non disponible | Q79: Non disponible | R79: Non disponible | T79: Non disponible | W79: Non disponible | Y79: Non disponible | AA79: Non disponible | AC79: Non disponible | AE79: Non disponible | AG79: Non disponible | AI79: Non disponible
B80: 78075 | C80: Brébeuf (P) | D80: 15 | E80: Paroisse | F80: 1037 | G80: 518 | H80: 2.001930502 | I80: 12085 | J80: 1 | K80: 0.9675827321 | L80: ≤ 3,0 | M80: 206 | N80: ≤ 220 | O80: 70 | P80: 289 | Q80: 0.9083925341 | R80: 257 | S80: 70 | T80: 301 | U80: Non | V80: Oui | W80: 319.0527005 | X80: 367.0040632 | Y80: 377.7211764 | Z80: 365.7523104 | AA80: 337.5527698 | AB80: 365.8316284 | AC80: 388.621723 | AD80: 365.9973766 | AE80: 488.7784914 | AF80: 366.2216135 | AG80: 452.2809206 | AH80: 365.6127631 | AI80: 513.8034961 | AJ80: 365.5114965
B81: 46090 | C81: Brigham | D81: 16 | E81: Municipalité | F81: 2318 | G81: 838 | H81: 2.766109785 | I81: 5000 | K81: Non disponible | M81: Non disponible | P81: Non disponible | Q81: Non disponible | R81: Non disponible | T81: Non disponible | W81: Non disponible | Y81: Non disponible | AA81: Non disponible | AC81: Non disponible | AE81: Non disponible | AG81: Non disponible | AI81: Non disponible
B82: 84005 | C82: Bristol | D82: 7 | E82: Municipalité | F82: 1042 | G82: 327 | H82: 3.186544343 | K82: Non disponible | M82: Non disponible | P82: Non disponible | Q82: Non disponible | R82: Non disponible | T82: Non disponible | W82: Non disponible | Y82: Non disponible | AA82: Non disponible | AC82: Non disponible | AE82: Non disponible | AG82: Non disponible | AI82: Non disponible
B83: 46070 | C83: Brome (VL) | D83: 16 | E83: Village | F83: 293 | G83: 149 | H83: 1.966442953 | K83: Non disponible | M83: Non disponible | P83: Non disponible | Q83: Non disponible | R83: Non disponible | T83: Non disponible | W83: Non disponible | Y83: Non disponible | AA83: Non disponible | AC83: Non disponible | AE83: Non disponible | AG83: Non disponible | AI83: Non disponible
B84: 46078 | C84: Bromont | D84: 16 | E84: Ville | F84: 10167 | G84: 4876 | H84: 2.085110747 | I84: 117263 | J84: 1 | K84: 1.1261183 | L84: ≤ 3,0 | M84: 355 | N84: ≤ 220 | O84: 50.2 | P84: 731 | Q84: 5.633446846 | R84: 253 | S84: 50.2 | T84: 729 | U84: Non | V84: Non | W84: 788.9515572 | X84: 394.8363551 | Y84: 817.2502482 | Z84: 393.6837313 | AA84: 794.1248072 | AB84: 394.0638426 | AC84: 789.4478393 | AD84: 393.9669286 | AE84: 809.1407594 | AF84: 394.4045355 | AG84: 837.8248203 | AH84: 394.4045355 | AI84: 922.8944589 | AJ84: 392.5821466
B85: 58007 | C85: Brossard | D85: 16 | E85: Ville | F85: 89092 | G85: 34095 | H85: 2.613051767 | I85: 355000 | J85: 1 | K85: 5.809610755 | L85: ≤ 2,2 | M85: 181 | N85: ≤ 184 | O85: 35.2 | P85: 330 | Q85: 3.937668089 | R85: 206 | S85: 35 | T85: 325 | U85: Oui | V85: Oui | W85: 337.3659792 | X85: 427.794378 | Y85: 347.529903 | Z85: 427.794378 | AA85: 338.9928227 | AB85: 427.6255555 | AC85: 350.762668 | AD85: 427.0164689 | AE85: 359.417796 | AF85: 426.9390599 | AG85: 374.0524113 | AH85: 426.9256095 | AI85: 369.7335775 | AJ85: 426.3886334
B86: 76043 | C86: Brownsburg-Chatham | D86: 15 | E86: Ville | F86: 7269 | G86: 3182 | H86: 2.284412319 | I86: 36809 | J86: 2 | K86: 5.689028101 | M86: 184 | N86: ≤ 220 | O86: 54.03046615 | P86: 509 | Q86: 1.5 | R86: 439 | S86: 63 | T86: 702 | U86: Non | V86: Non | W86: 582 | X86: 383 | Y86: 621.6088148 | Z86: 382.2393722 | AA86: 701 | AB86: 382 | AC86: 586.3789015 | AD86: 385.9706675 | AE86: 597.0044395 | AF86: 386.276705 | AG86: 667.6801402 | AH86: 384.3417276 | AI86: 609.2283653 | AJ86: 387.4565198
B87: 84025 | C87: Bryson | D87: 7 | E87: Municipalité | F87: 700 | G87: 304 | H87: 2.302631579 | I87: 7026 | K87: Non disponible | M87: Non disponible | P87: Non disponible | Q87: 10.15914276 | R87: 206 | S87: 44.8 | T87: 441 | W87: Non disponible | Y87: Non disponible | AA87: Non disponible | AC87: Non disponible | AE87: Non disponible | AG87: 1076.086001 | AH87: 356.5296326 | AI87: 1071.547435 | AJ87: 355.4861953
B88: 41070 | C88: Bury | D88: 5 | E88: Municipalité | F88: 1139 | G88: 374 | H88: 3.045454545 | I88: 8715 | K88: Non disponible | M88: Non disponible | P88: Non disponible | Q88: 4.061695152 | R88: 392 | S88: 38 | T88: 568 | U88: Non | V88: Non | W88: 475.9140572 | X88: 358.8172303 | Y88: 455.8997643 | Z88: 358.5980152 | AA88: 506.7637074 | AB88: 358.4125526 | AC88: Non disponible | AE88: 425.3850378 | AF88: 358.6516104 | AG88: 431.0007961 | AH88: 359.4097015 | AI88: 403.0648666 | AJ88: 359.4097015
B89: 12057 | C89: Cacouna | D89: 1 | E89: Municipalité | F89: 1834 | G89: 832 | H89: 2.204326923 | I89: 18787 | J89: 1 | K89: 0.5118504316 | L89: ≤ 3,0 | M89: 225 | N89: ≤ 220 | O89: 49 | P89: 310 | Q89: 1.59670434 | R89: 183 | S89: 60 | T89: 313 | U89: Oui | V89: Oui | W89: 256.2069969 | X89: 372.145688 | Y89: 256.5896294 | Z89: 371.5068509 | AA89: 248.5459588 | AB89: 371.8590818 | AC89: 247.7427193 | AD89: 373.9985547 | AE89: Non disponible | AG89: 374.9128241 | AH89: 369.0011176 | AI89: 271.2920384 | AJ89: 372.5248646
B90: 59030 | C90: Calixa-Lavallée | D90: 16 | E90: Municipalité | F90: 528 | G90: 174 | H90: 3.034482759 | I90: 20150 | J90: 1 | K90: 2.123517799 | L90: ≤ 3,0 | M90: 116 | N90: ≤ 220 | O90: 54.52 | P90: 266 | Q90: 1.160804131 | R90: 200 | S90: 49.074257 | T90: 306 | U90: Non | V90: Oui | W90: 262.0033532 | X90: 358.6848213 | Y90: 283.495912 | Z90: 358.7309601 | AA90: 310.186056 | AB90: 358.803068 | AC90: 203.4301812 | AD90: 358.6288122 | AE90: 265.0403453 | AF90: 359.0275706 | AG90: 301.2103816 | AH90: 358.6590001 | AI90: 290.2098762 | AJ90: 359.3571621
B91: 84030 | C91: Campbell's Bay | D91: 7 | E91: Municipalité | F91: 735 | G91: 313 | H91: 2.348242812 | I91: 13232 | K91: Non disponible | M91: Non disponible | P91: Non disponible | Q91: 3.400674891 | R91: 343 | S91: 45 | T91: 483 | U91: Non | V91: Oui | W91: 570.2018972 | X91: 364.4245986 | Y91: Non disponible | AA91: Non disponible | AC91: Non disponible | AE91: Non disponible | AG91: 768.8334884 | AH91: 366.0323922 | AI91: 936.4422149 | AJ91: 363.4295064
B92: 67020 | C92: Candiac | D92: 16 | E92: Ville | F92: 22306 | G92: 8055 | H92: 2.76921167 | I92: 117331 | K92: Non disponible | M92: Non disponible | P92: Non disponible | Q92: Non disponible | R92: Non disponible | T92: Non disponible | U92: Non | V92: Oui | W92: 483.3734352 | X92: 408.7820586 | Y92: 533.6230622 | Z92: 408.7532522 | AA92: 479.7722977 | AB92: 408.7549484 | AC92: 545.9914309 | AD92: 408.6647 | AE92: 565.2066979 | AF92: 408.5596511 | AG92: 575.5196469 | AH92: 408.2985295 | AI92: 570.8774398 | AJ92: 408.021582
B93: 82020 | C93: Cantley | D93: 7 | E93: Municipalité | F93: 11193 | G93: 4185 | H93: 2.674551971 | K93: Non disponible | M93: Non disponible | P93: Non disponible | Q93: Non disponible | R93: Non disponible | T93: Non disponible | W93: Non disponible | Y93: Non disponible | AA93: Non disponible | AC93: Non disponible | AE93: Non disponible | AG93: Non disponible | AI93: Non disponible
B94: 4047 | C94: Cap-Chat | D94: 11 | E94: Ville | F94: 2327 | G94: 1203 | H94: 1.93433084 | I94: 29159 | J94: 1 | K94: 9.049156064 | L94: ≤ 2,0 | M94: 536 | N94: ≤ 184 | O94: 49 | P94: 1043 | Q94: 6.302367996 | R94: 354 | S94: 63 | T94: 934 | U94: Non | W94: Non disponible | Y94: 1807.815484 | Z94: 377.399116 | AA94: Non disponible | AC94: Non disponible | AE94: Non disponible | AG94: 549.1028599 | AH94: 378.2453391 | AI94: 851.9528957 | AJ94: 382.2436252
B95: 5060 | C95: Caplan | D95: 11 | E95: Municipalité | F95: 1980 | G95: 916 | H95: 2.161572052 | I95: 22579 | J95: 1 | K95: 2.19407898 | L95: ≤ 3,0 | M95: 354 | N95: ≤ 220 | O95: 43 | P95: 438 | Q95: 2.727996366 | R95: 353 | S95: 43.3 | T95: 459 | U95: Non | V95: Oui | W95: 355.3395927 | X95: 377.6350592 | Y95: 383.7179361 | Z95: 377.0464178 | AA95: 378.6914004 | AB95: 376.7399338 | AC95: 477.7155126 | AD95: 376.3407621 | AE95: 452.1255783 | AF95: 377.130325 | AG95: 420.3805657 | AH95: 377.2330049 | AI95: 457.6272642 | AJ95: 375.7764282
B96: 18045 | C96: Cap-Saint-Ignace | D96: 12 | E96: Municipalité | F96: 3105 | G96: 1315 | H96: 2.36121673 | I96: 19969 | J96: 1 | K96: 10.73345353 | L96: ≤ 2,0 | M96: 99 | N96: ≤ 184 | O96: 42 | P96: 464 | Q96: 9.491717622 | R96: 157 | S96: 42 | T96: 459 | U96: Non | W96: Non disponible | Y96: 899.6293023 | Z96: 375.093657 | AA96: 592.0613417 | AB96: 374.2672363 | AC96: Non disponible | AE96: Non disponible | AG96: 517.3405165 | AH96: 376.2856905 | AI96: 611.4279255 | AJ96: 374.8469404
B97: 34030 | C97: Cap-Santé | D97: 3 | E97: Ville | F97: 3457 | G97: 1452 | H97: 2.380853994 | I97: 30930 | J97: 1 | K97: 1.346705546 | L97: ≤ 3,0 | M97: 185 | N97: ≤ 220 | O97: 42.2 | P97: 237 | Q97: 1.675717849 | R97: 235 | S97: 42.2 | T97: 299 | V97: Oui | W97: 243.0140987 | X97: 384.7004459 | Y97: 236.5727146 | Z97: 384.5734358 | AA97: 266.8807587 | AB97: 384.4606486 | AC97: Non disponible | AE97: Non disponible | AG97: 398.6768761 | AH97: 380.2597821 | AI97: 434.5427727 | AJ97: 377.6613818
B98: 57010 | C98: Carignan | D98: 16 | E98: Ville | F98: 10959 | G98: 4078 | H98: 2.687346739 | I98: 63568 | J98: 3 | K98: 1.133460043 | M98: 260 | N98: ≤ 184 | O98: 51.64548469 | P98: 292 | Q98: 1.806562886 | R98: 232 | S98: 63.6406694 | T98: 290 | W98: Non disponible | Y98: Non disponible | AA98: Non disponible | AC98: 303.6732154 | AD98: 394.612178 | AE98: Non disponible | AG98: 382.849836 | AH98: 391.4183548 | AI98: 418.4631091 | AJ98: 391.4183548
B99: 6013 | C99: Carleton-sur-Mer | D99: 11 | E99: Ville | F99: 4015 | G99: 1853 | H99: 2.166756611 | I99: 54325 | J99: 1 | K99: 6.411364438 | L99: ≤ 2,0 | M99: 393 | N99: ≤ 184 | O99: 56 | P99: 746 | Q99: Non disponible | R99: Non disponible | T99: Non disponible | U99: Non | V99: Oui | W99: 607.488544 | X99: 385.8346196 | Y99: 754.9455074 | Z99: 385.1201857 | AA99: Non disponible | AC99: 779.3511135 | AD99: 385.221051 | AE99: Non disponible | AG99: 839.4023886 | AH99: 384.3886275 | AI99: 723.6543342 | AJ99: 384.4596303
B100: 5077 | C100: Cascapédia–Saint-Jules | D100: 11 | E100: Municipalité | F100: 741 | G100: 343 | H100: 2.160349854 | K100: Non disponible | M100: Non disponible | P100: Non disponible | Q100: Non disponible | R100: Non disponible | T100: Non disponible | W100: Non disponible | Y100: Non disponible | AA100: Non disponible | AC100: Non disponible | AE100: Non disponible | AG100: Non disponible | AI100: Non disponible
B101: 7018 | C101: Causapscal | D101: 1 | E101: Ville | F101: 2273 | G101: 1006 | H101: 2.25944334 | I101: 20480 | J101: 1 | K101: 1.965380934 | L101: ≤ 3,0 | M101: 355 | N101: ≤ 220 | O101: 57 | P101: 447 | Q101: Non disponible | R101: Non disponible | T101: Non disponible | U101: Non | W101: Non disponible | Y101: Non disponible | AA101: 641.425658 | AB101: 376.9657565 | AC101: 611.3302224 | AD101: 377.3282416 | AE101: 601.5147262 | AF101: 377.5300368 | AG101: 506.4411053 | AH101: 377.5300368 | AI101: 507.8286152 | AJ101: 377.5300368
B102: 83040 | C102: Cayamant | D102: 7 | E102: Municipalité | F102: 808 | G102: 410 | H102: 1.970731707 | K102: Non disponible | M102: Non disponible | P102: Non disponible | Q102: Non disponible | R102: Non disponible | T102: Non disponible | W102: Non disponible | Y102: Non disponible | AA102: Non disponible | AC102: Non disponible | AE102: Non disponible | AG102: Non disponible | AI102: Non disponible
B103: 57005 | C103: Chambly | D103: 16 | E103: Ville | F103: 31397 | G103: 12280 | H103: 2.556758958 | I103: 152060 | J103: 1 | K103: 1.12370231 | L103: ≤ 2,1 | M103: 257 | N103: ≤ 184 | O103: 39.8 | P103: 370 | Q103: 1.722871612 | R103: 257 | S103: 39.8 | T103: 382 | V103: Oui | W103: 352.1121106 | X103: 413.5467238 | Y103: Non disponible | AA103: Non disponible | AC103: 394.9278111 | AD103: 412.6044499 | AE103: 390.4371359 | AF103: 412.6776446 | AG103: 403.7573533 | AH103: 412.0713334 | AI103: 425.3528291 | AJ103: 411.3834844
B104: 91020 | C104: Chambord | D104: 2 | E104: Municipalité | F104: 1743 | G104: 769 | H104: 2.266579974 | I104: 13250 | J104: 1 | K104: 3.512528082 | L104: ≤ 2,0 | M104: 263 | N104: ≤ 184 | O104: 70 | P104: 518 | Q104: Non disponible | R104: Non disponible | T104: Non disponible | U104: Non | V104: Non | W104: 417.7095958 | X104: 373.951681 | Y104: Non disponible | AA104: 488.5209027 | AB104: 373.4443347 | AC104: 503.9352201 | AD104: 373.4659465 | AE104: Non disponible | AG104: 439.9822519 | AH104: 374.5937077 | AI104: 458.1180667 | AJ104: 374.3505207
B105: 37220 | C105: Champlain | D105: 4 | E105: Municipalité | F105: 1909 | G105: 855 | H105: 2.232748538 | I105: 34131 | K105: Non disponible | M105: Non disponible | P105: Non disponible | Q105: 1.538050442 | R105: 328 | S105: 35.15 | T105: 526 | U105: Non | V105: Oui | W105: 410.0424465 | X105: 376.4224114 | Y105: 472.446865 | Z105: 375.844595 | AA105: 432.6752116 | AB105: 375.7231182 | AC105: 454.1899495 | AD105: 374.9264655 | AE105: Non disponible | AG105: 461.0247326 | AH105: 374.8831176 | AI105: 427.4527953 | AJ105: 374.5361194
B106: 88005 | C106: Champneuf | D106: 8 | E106: Municipalité | F106: 135 | G106: 46 | H106: 2.934782609 | I106: 5000 | K106: Non disponible | M106: Non disponible | P106: Non disponible | Q106: Non disponible | R106: Non disponible | T106: Non disponible | U106: Non | W106: Non disponible | Y106: Non disponible | AA106: 320.4623849 | AB106: 326.7412957 | AC106: 313.5712388 | AD106: 327.0322416 | AE106: 370.5882353 | AF106: 328.6702988 | AG106: 4177.307745 | AH106: 330.771637 | AI106: 312.6641373 | AJ106: 325.5817831
B107: 2028 | C107: Chandler | D107: 11 | E107: Ville | F107: 7441 | G107: 3405 | H107: 2.185315712 | I107: 81043 | J107: 2 | K107: 8.922773186 | M107: 496 | N107: ≤ 220 | O107: 54.98839138 | P107: 947 | Q107: 6.176617456 | R107: 812 | S107: 54.43642196 | T107: 1132 | U107: Non | V107: Non | W107: 1063.599058 | X107: 395.6810137 | Y107: 1029.653018 | Z107: 394.7116128 | AA107: 1047.477951 | AB107: 394.8783562 | AC107: Non disponible | AE107: Non disponible | AG107: Non disponible | AI107: 1038.827264 | AJ107: 395.5149485
B108: 99020 | C108: Chapais | D108: 10 | E108: Ville | F108: 1609 | G108: 649 | H108: 2.479198767 | I108: 18400 | J108: 1 | K108: 4.40766685 | L108: ≤ 3,0 | M108: 534 | N108: ≤ 220 | O108: 53.6 | P108: 2301 | Q108: 3.111770525 | R108: 740 | S108: 76 | T108: 2806 | U108: Non | W108: Non disponible | Y108: 3140.629271 | Z108: 371.6102646 | AA108: Non disponible | AC108: 4107.42743 | AD108: 372.0329596 | AE108: 3492.652093 | AF108: 374.4089114 | AG108: 3602.197909 | AH108: 374.4089114 | AI108: 3998.984084 | AJ108: 374.6031999
B109: 51080 | C109: Charette | D109: 4 | E109: Municipalité | F109: 986 | G109: 439 | H109: 2.246013667 | I109: 13690 | J109: 1 | K109: 0.9816473348 | L109: ≤ 3,0 | M109: 322 | N109: ≤ 220 | O109: 31.7 | P109: 393 | Q109: 2.394801486 | R109: 261 | S109: 31.69 | T109: 395 | W109: Non disponible | Y109: 358.2647115 | Z109: 363.854372 | AA109: 363.4322387 | AB109: 364.0585251 | AC109: Non disponible | AE109: 300.6165134 | AF109: 364.3279666 | AG109: 359.6115076 | AH109: 363.1802556 | AI109: 236.0909423 | AJ109: 361.7354966
B110: 60005 | C110: Charlemagne | D110: 14 | E110: Ville | F110: 6166 | G110: 3107 | H110: 1.984551014 | I110: 25564 | J110: 1 | K110: 20.09720616 | L110: ≤ 3,0 | M110: 203 | N110: ≤ 220 | O110: 48.92 | P110: 522 | Q110: 14.16363576 | R110: 226 | S110: 48.92 | T110: 482 | U110: Non | V110: Non | W110: 450.9471318 | X110: 392.3117274 | Y110: 393.953207 | Z110: 392.1542219 | AA110: 367.2131564 | AB110: 392.0680485 | AC110: 354.5322064 | AD110: 392.0299486 | AE110: 364.9638253 | AF110: 391.922733 | AG110: 394.5943578 | AH110: 391.8516777 | AI110: 433.7742473 | AJ110: 391.8445279
B111: 41020 | C111: Chartierville | D111: 5 | E111: Municipalité | F111: 282 | G111: 143 | H111: 1.972027972 | K111: Non disponible | M111: Non disponible | P111: Non disponible | Q111: Non disponible | R111: Non disponible | T111: Non disponible | W111: Non disponible | Y111: Non disponible | AA111: Non disponible | AC111: Non disponible | AE111: Non disponible | AG111: Non disponible | AI111: Non disponible
B112: 67050 | C112: Châteauguay | D112: 16 | E112: Ville | F112: 49953 | G112: 19607 | H112: 2.547712552 | I112: 271000 | J112: 1 | K112: 9.600968237 | L112: ≤ 2,2 | M112: 308 | N112: ≤ 184 | O112: 32 | P112: 492 | Q112: Non disponible | R112: Non disponible | T112: Non disponible | U112: Non | V112: Non | W112: 517.6985804 | X112: 420.1300925 | Y112: 542.1934584 | Z112: 420.1986021 | AA112: 560.7047529 | AB112: 420.2516081 | AC112: 595.9513339 | AD112: 419.7643468 | AE112: 605.1618646 | AF112: 419.6752556 | AG112: 611.3856942 | AH112: 419.4641258 | AI112: 658.1484944 | AJ112: 419.6462336
B113: 21035 | C113: Château-Richer | D113: 3 | E113: Ville | F113: 4288 | G113: 1590 | H113: 2.696855346 | I113: 41250 | J113: 1 | K113: 2.692719602 | L113: ≤ 3,0 | M113: 190 | N113: ≤ 220 | O113: 51.33 | P113: 294 | Q113: Non disponible | R113: Non disponible | T113: Non disponible | U113: Non | W113: Non disponible | Y113: 390.8564981 | Z113: 387.1315558 | AA113: 479.0872629 | AB113: 383.3887434 | AC113: Non disponible | AE113: Non disponible | AG113: 394.9448092 | AH113: 386.426353 | AI113: 446.8933976 | AJ113: 386.9326042
B114: 87095 | C114: Chazel | D114: 8 | E114: Municipalité | F114: 296 | G114: 116 | H114: 2.551724138 | I114: 2751 | K114: Non disponible | M114: Non disponible | P114: Non disponible | Q114: 2.411644196 | R114: 147 | S114: 54.6 | T114: 250 | W114: Non disponible | Y114: Non disponible | AA114: Non disponible | AC114: Non disponible | AE114: Non disponible | AG114: Non disponible | AI114: Non disponible
B115: 82025 | C115: Chelsea | D115: 7 | E115: Municipalité | F115: 7187 | G115: 2952 | H115: 2.434620596 | I115: 10818 | J115: 1 | K115: 2.108048729 | L115: ≤ 2,0 | M115: 176 | N115: ≤ 184 | O115: 39.4 | P115: 1412 | Q115: Non disponible | R115: Non disponible | T115: Non disponible | W115: Non disponible | Y115: Non disponible | AA115: Non disponible | AC115: Non disponible | AE115: Non disponible | AG115: Non disponible | AI115: Non disponible
B116: 80103 | C116: Chénéville | D116: 7 | E116: Municipalité | F116: 768 | G116: 408 | H116: 1.882352941 | I116: 10965 | J116: 1 | K116: 4.947849252 | L116: ≤ 3,0 | M116: 193 | N116: ≤ 220 | O116: 40.25 | P116: 412 | Q116: Non disponible | R116: Non disponible | T116: Non disponible | U116: Non | V116: Oui | W116: 377.5958137 | X116: 361.3665422 | Y116: 408.3703213 | Z116: 360.8874357 | AA116: Non disponible | AC116: Non disponible | AE116: Non disponible | AG116: 451.0646069 | AH116: 359.5829391 | AI116: 522.9237419 | AJ116: 359.2158683
B117: 62047 | C117: Chertsey | D117: 14 | E117: Municipalité | F117: 4816 | G117: 3679 | H117: 1.309051373 | I117: 5555 | J117: 1 | K117: 3.054168611 | L117: ≤ 3,0 | M117: 226 | N117: ≤ 220 | O117: 57 | P117: 355 | Q117: 1.532754986 | R117: 238 | S117: 57.65 | T117: 346 | V117: Oui | W117: 288.3834037 | X117: 359.3579288 | Y117: 336.4651328 | Z117: 359.7224195 | AA117: 337.1927224 | AB117: 359.1646611 | AC117: Non disponible | AE117: Non disponible | AG117: 442.764727 | AH117: 357.6022839 | AI117: 464.0298449 | AJ117: 356.0108628
B118: 39030 | C118: Chesterville | D118: 17 | E118: Municipalité | F118: 939 | G118: 309 | H118: 3.038834951 | I118: 4517 | J118: 1 | K118: 1.79160301 | L118: ≤ 2,0 | M118: 98 | N118: ≤ 184 | O118: 50 | P118: 223 | Q118: 1.048346648 | R118: 156 | S118: 50 | T118: 301 | U118: Non | V118: Oui | W118: 305.9467919 | X118: 356.5926162 | Y118: 342.4487905 | Z118: 353.6531069 | AA118: 280.2743679 | AB118: 353.8280636 | AC118: 264.415973 | AD118: 354.0028755 | AE118: 281.7698141 | AF118: 354.2799993 | AG118: 341.8250853 | AH118: 350.3020876 | AI118: 447.2948183 | AJ118: 351.3298068
B119: 99025 | C119: Chibougamau | D119: 10 | E119: Ville | F119: 7559 | G119: 2863 | H119: 2.640237513 | I119: 51476 | J119: 1 | K119: 15.72393805 | L119: ≤ 3,0 | M119: 617 | N119: ≤ 220 | O119: 45 | P119: 1116 | Q119: 6.239516694 | R119: 830 | S119: 45 | T119: 1164 | U119: Non | V119: Non | W119: 1230.197156 | X119: 395.0640089 | Y119: 1305.095188 | Z119: 394.3068727 | AA119: 1420.073995 | AB119: 394.4274501 | AC119: 1311.188272 | AD119: 395.0786499 | AE119: 1247.381535 | AF119: 395.2643403 | AG119: 1180.67385 | AH119: 395.1917267 | AI119: 1200.413607 | AJ119: 394.9856546
B120: 84090 | C120: Chichester (CT) | D120: 7 | E120: Canton | F120: 345 | G120: 147 | H120: 2.346938776 | K120: Non disponible | M120: Non disponible | P120: Non disponible | Q120: Non disponible | R120: Non disponible | T120: Non disponible | W120: Non disponible | Y120: Non disponible | AA120: Non disponible | AC120: Non disponible | AE120: Non disponible | AG120: Non disponible | AI120: Non disponible
B121: 96035 | C121: Chute-aux-Outardes (VL) | D121: 9 | E121: Village | F121: 1481 | G121: 559 | H121: 2.649373882 | I121: 12032 | J121: 1 | K121: 0.9405594119 | L121: ≤ 3,0 | M121: 289 | N121: ≤ 220 | O121: 50 | P121: 601 | Q121: Non disponible | R121: Non disponible | T121: Non disponible | U121: Non | W121: Non disponible | Y121: 443.8990286 | Z121: 374.1012197 | AA121: 501.8103959 | AB121: 374.4089114 | AC121: Non disponible | AE121: Non disponible | AG121: 531.1213268 | AH121: 375.2628666 | AI121: 471.7063249 | AJ121: 375.4000314
B122: 79065 | C122: Chute-Saint-Philippe | D122: 15 | E122: Municipalité | F122: 948 | G122: 439 | H122: 2.159453303 | K122: Non disponible | M122: Non disponible | P122: Non disponible | Q122: Non disponible | R122: Non disponible | T122: Non disponible | W122: Non disponible | Y122: Non disponible | AA122: Non disponible | AC122: Non disponible | AE122: Non disponible | AG122: Non disponible | AI122: Non disponible
B123: 84015 | C123: Clarendon | D123: 7 | E123: Municipalité | F123: 1234 | G123: 328 | H123: 3.762195122 | K123: Non disponible | M123: Non disponible | P123: Non disponible | Q123: Non disponible | R123: Non disponible | T123: Non disponible | U123: Non | W123: Non disponible | Y123: Non disponible | AA123: Non disponible | AC123: Non disponible | AE123: 595 | AF123: 375 | AG123: 341.6650403 | AH123: 374.9569328 | AI123: 335 | AJ123: 374
B124: 15035 | C124: Clermont | D124: 3 | E124: Ville | F124: 3053 | G124: 1383 | H124: 2.207519884 | I124: 34560 | J124: 1 | K124: 1.197918106 | L124: ≤ 3,0 | M124: 322 | N124: ≤ 220 | O124: 59 | P124: 400 | Q124: Non disponible | R124: Non disponible | T124: Non disponible | W124: Non disponible | Y124: Non disponible | AA124: Non disponible | AC124: Non disponible | AE124: Non disponible | AG124: Non disponible | AI124: Non disponible
B125: 87110 | C125: Clermont (CT) | D125: 8 | E125: Canton | F125: 519 | G125: 183 | H125: 2.836065574 | I125: 34560 | K125: Non disponible | M125: Non disponible | P125: Non disponible | Q125: 1.367008148 | R125: 325 | S125: 59 | T125: 410 | U125: Non | V125: Oui | W125: 401.0596563 | X125: 383.2992995 | Y125: 412.2784622 | Z125: 383.3353022 | AA125: 415.5226836 | AB125: 383.5546314 | AC125: 404.1206769 | AD125: 383.4974978 | AE125: 419.8999276 | AF125: 383.5663414 | AG125: 458.7621548 | AH125: 383.3614755 | AI125: 543.8500387 | AJ125: 383.1078132
B126: 87075 | C126: Clerval | D126: 8 | E126: Municipalité | F126: 391 | G126: 155 | H126: 2.522580645 | K126: Non disponible | M126: Non disponible | P126: Non disponible | Q126: Non disponible | R126: Non disponible | T126: Non disponible | W126: Non disponible | Y126: Non disponible | AA126: Non disponible | AC126: Non disponible | AE126: Non disponible | AG126: Non disponible | AI126: Non disponible
B127: 42110 | C127: Cleveland (CT) | D127: 5 | E127: Canton | F127: 1552 | G127: 510 | H127: 3.043137255 | K127: Non disponible | M127: Non disponible | P127: Non disponible | Q127: Non disponible | R127: Non disponible | T127: Non disponible | W127: Non disponible | Y127: Non disponible | AA127: Non disponible | AC127: Non disponible | AE127: Non disponible | AG127: Non disponible | AI127: Non disponible
B128: 3010 | C128: Cloridorme (CT) | D128: 11 | E128: Canton | F128: 626 | G128: 372 | H128: 1.682795699 | I128: 20048 | K128: Non disponible | M128: Non disponible | P128: Non disponible | Q128: 2.203424512 | R128: 544 | S128: 56 | T128: 1262 | U128: Non | W128: Non disponible | Y128: 735.5458183 | Z128: 362.9495463 | AA128: 864.191149 | AB128: 360.5462324 | AC128: 757.6739126 | AD128: 361.6184651 | AE128: Non disponible | AG128: 1283.246301 | AH128: 363.422907 | AI128: 1348.351897 | AJ128: 363.422907
B129: 44037 | C129: Coaticook | D129: 5 | E129: Ville | F129: 8909 | G129: 3794 | H129: 2.348181339 | I129: 64996 | K129: Non disponible | M129: Non disponible | P129: Non disponible | Q129: 2.3328813 | R129: 305 | S129: 56.84851016 | T129: 534 | U129: Non | V129: Oui | W129: 556.7309906 | X129: 393.8826507 | Y129: 617.4340348 | Z129: 393.2375327 | AA129: 756.8168906 | AB129: 393.2015649 | AC129: 854.9833194 | AD129: 393.2100862 | AE129: 862.8442851 | AF129: 393.3468999 | AG129: 623.9863447 | AH129: 397.6943965 | AI129: 863.1516318 | AJ129: 393.1167701
B130: 95050 | C130: Colombier | D130: 9 | E130: Municipalité | F130: 674 | G130: 285 | H130: 2.364912281 | I130: 12600 | K130: Non disponible | M130: Non disponible | P130: Non disponible | Q130: Non disponible | R130: Non disponible | T130: Non disponible | W130: Non disponible | Y130: Non disponible | AA130: Non disponible | AC130: Non disponible | AE130: Non disponible | AG130: 524.5173253 | AH130: 358.2772218 | AI130: 583.9539406 | AJ130: 358.2772218
B131: 44071 | C131: Compton | D131: 5 | E131: Municipalité | F131: 3174 | G131: 1074 | H131: 2.955307263 | I131: 11562 | J131: 1 | K131: 0.592370037 | L131: ≤ 3,0 | M131: 198 | N131: ≤ 220 | O131: 51 | P131: 265 | Q131: 1.376825185 | R131: 155 | S131: 51 | T131: 223 | U131: Oui | V131: Oui | W131: 192.7831298 | X131: 374.4664699 | Y131: 226.3453525 | Z131: 372.0751285 | AA131: 255.4474343 | AB131: 370.8820815 | AC131: 258.6419486 | AD131: 370.6828023 | AE131: 280.9158758 | AF131: 370.071699 | AG131: 261.6430579 | AH131: 369.6221253 | AI131: 331.367918 | AJ131: 367.8246967
B132: 59035 | C132: Contrecoeur | D132: 16 | E132: Ville | F132: 8989 | G132: 3757 | H132: 2.392600479 | I132: 77845 | J132: 1 | K132: 2.263143825 | L132: ≤ 3,0 | M132: 221 | N132: ≤ 220 | O132: 49 | P132: 437 | Q132: Non disponible | R132: Non disponible | T132: Non disponible | U132: Non | V132: Non | W132: 450.1146291 | X132: 396.4167513 | Y132: 500.0511444 | Z132: 395.5873878 | AA132: 480.5546078 | AB132: 395.732113 | AC132: 475.3835822 | AD132: 395.5310506 | AE132: 528.4025962 | AF132: 395.0241087 | AG132: 590.9788512 | AH132: 394.661977 | AI132: 560.4491904 | AJ132: 393.9300497
B133: 41038 | C133: Cookshire-Eaton | D133: 5 | E133: Ville | F133: 5432 | G133: 1847 | H133: 2.940985382 | I133: 28358 | J133: 3 | K133: 9.648688719 | M133: 196 | N133: ≤ 220 | O133: 53.22451706 | P133: 515 | Q133: 5.353385521 | R133: 298 | S133: 53.54728 | T133: 497 | U133: Non | V133: Oui | W133: 511.3483677 | X133: 379.2764127 | Y133: 425.9293197 | Z133: 381.1177751 | AA133: 416.6442152 | AB133: 381.2307209 | AC133: 424.7923055 | AD133: 381.278632 | AE133: 421.3200607 | AF133: 380.811039 | AG133: 469.7158235 | AH133: 380.1321313 | AI133: 554.3690514 | AJ133: 380.311785
B134: 71040 | C134: Coteau-du-Lac | D134: 16 | E134: Ville | F134: 7221 | G134: 2703 | H134: 2.671476138 | I134: 50005 | J134: 2 | K134: 1.720460043 | M134: 266 | N134: ≤ 220 | O134: 44.98938523 | P134: 352 | Q134: 2.509 | R134: 265 | S134: 44.98929527 | T134: 343 | U134: Oui | V134: Oui | W134: 300.6089722 | X134: 394.7818747 | Y134: 342.9382609 | Z134: 394.4501584 | AA134: 311.9216021 | AB134: 394.5809173 | AC134: 291.3042384 | AD134: 394.9015001 | AE134: Non disponible | AG134: 305.8356788 | AH134: 394.4975506 | AI134: 345.8513496 | AJ134: 393.0550504
B135: 98015 | C135: Côte-Nord-du-Golfe-du-Saint-Laurent | D135: 9 | E135: Municipalité | F135: 831 | G135: 392 | H135: 2.119897959 | I135: 1765 | K135: Non disponible | M135: Non disponible | P135: Non disponible | Q135: Non disponible | R135: Non disponible | T135: Non disponible | U135: Non | V135: Oui | W135: 445.0491024 | X135: 343.2906376 | Y135: Non disponible | AA135: 334.1621317 | AB135: 344.7007827 | AC135: 357.0002743 | AD135: 360.4992625 | AE135: Non disponible | AG135: 331.7132642 | AH135: 361.5604216 | AI135: 312.2247617 | AJ135: 361.5604216
B136: 66058 | C136: Côte-Saint-Luc | D136: 6 | E136: Ville | F136: 34761 | G136: 15048 | H136: 2.310007974 | I136: 72805 | J136: 1 | K136: 3.881793889 | L136: ≤ 3,1 | M136: 343 | N136: ≤ 220 | O136: 50.81539838 | P136: 483 | Q136: 6.121926216 | R136: 386 | S136: 48.8 | T136: 529 | U136: Non | V136: Non | W136: 785.5459741 | X136: 467.8646605 | Y136: 818 | Z136: 467.7769159 | AA136: 857.5207993 | AB136: 467.4222734 | AC136: 559.4959994 | AD136: 414.9687027 | AE136: Non disponible | AG136: 542.2829433 | AH136: 414.6367003 | AI136: 689.9656958 | AJ136: 414.6895663
B137: 30090 | C137: Courcelles | D137: 5 | E137: Municipalité | F137: 782 | G137: 368 | H137: 2.125 | I137: 7867 | J137: 1 | K137: 1.599915421 | L137: ≤ 3,0 | M137: 172 | N137: ≤ 220 | O137: 52.1 | P137: 311 | Q137: 1.503141694 | R137: 187 | S137: 52.06513523 | T137: 294 | U137: Oui | V137: Oui | W137: 202 | X137: 362 | Y137: 243.9177002 | Z137: 361.4612128 | AA137: 268.4872389 | AB137: 361.6369352 | AC137: 244.4274942 | AD137: 361.6101376 | AE137: 233.3221971 | AF137: 360.8112668 | AG137: 210.7507874 | AH137: 360.820483 | AI137: 224.9553051 | AJ137: 360.820483
B138: 46080 | C138: Cowansville | D138: 16 | E138: Ville | F138: 14727 | G138: 6478 | H138: 2.273386848 | I138: 123231 | J138: 1 | K138: 5.598328281 | L138: ≤ 3,0 | M138: 243 | N138: ≤ 220 | O138: 55.5 | P138: 479 | Q138: 5.629886125 | R138: 303 | S138: 55.5 | T138: 534 | U138: Non | V138: Non | W138: 610.0880995 | X138: 402.7318552 | Y138: 613.6977315 | Z138: 402.3381687 | AA138: 661.6524933 | AB138: 402.3652068 | AC138: 605.2567287 | AD138: 402.5459221 | AE138: 608.6288566 | AF138: 402.4391764 | AG138: 680.8832955 | AH138: 402.0806771 | AI138: 790.8608199 | AJ138: 401.2829875
B139: 61013 | C139: Crabtree | D139: 14 | E139: Municipalité | F139: 4079 | G139: 1639 | H139: 2.48871263 | I139: 19981 | J139: 1 | K139: 0.4152521342 | L139: ≤ 3,0 | M139: 206 | N139: ≤ 220 | O139: 45.192 | P139: 314 | Q139: 1.129867406 | R139: 201 | S139: 51 | T139: 316 | U139: Non | V139: Oui | W139: 342.4275342 | X139: 383.9710172 | Y139: 395.3141291 | Z139: 383.9710172 | AA139: 343.0174934 | AB139: 383.9611826 | AC139: 331.5015518 | AD139: 383.884735 | AE139: 352.3344431 | AF139: 383.5770182 | AG139: 415.1326495 | AH139: 383.5045 | AI139: 402.8406136 | AJ139: 383.2724349
B140: 40047 | C140: Danville | D140: 5 | E140: Ville | F140: 3833 | G140: 1668 | H140: 2.297961631 | I140: 23100 | K140: Non disponible | M140: Non disponible | P140: Non disponible | Q140: Non disponible | R140: Non disponible | T140: Non disponible | U140: Non | W140: Non disponible | Y140: Non disponible | AA140: 316 | AB140: 377.2569766 | AC140: Non disponible | AE140: 358.2201851 | AF140: 376.0683967 | AG140: 378.0207135 | AH140: 375.4112023 | AI140: 399.7639689 | AJ140: 375.0293923
B141: 39152 | C141: Daveluyville | D141: 17 | E141: Ville | F141: 2336 | G141: 1048 | H141: 2.229007634 | I141: 22161 | J141: 1 | K141: 0.5244386183 | L141: ≤ 3,0 | M141: 226 | N141: ≤ 220 | O141: 52.03 | P141: 303 | Q141: 1.157308591 | R141: 280 | S141: 52.03 | T141: 412 | U141: Non | V141: Oui | W141: 350.2935421 | X141: 374.2938835 | Y141: 360.5359416 | Z141: 374.2938835 | AA141: 442.8903252 | AB141: 365.7798564 | AC141: 429.308128 | AD141: 366.7888031 | AE141: Non disponible | AG141: Non disponible | AI141: Non disponible
B142: 13005 | C142: Dégelis | D142: 1 | E142: Ville | F142: 2826 | G142: 1358 | H142: 2.081001473 | I142: 29504 | J142: 1 | K142: 7.974903723 | L142: ≤ 3,0 | M142: 315 | N142: ≤ 220 | O142: 56 | P142: 613 | Q142: Non disponible | R142: Non disponible | T142: Non disponible | U142: Non | V142: Non | W142: 572.5005489 | X142: 379.7949262 | Y142: 620.6118048 | Z142: 379.5304273 | AA142: 600.809288 | AB142: 380.1478166 | AC142: 620.9554353 | AD142: 380.0242849 | AE142: 465.2007296 | AF142: 383.8457426 | AG142: 538.4654304 | AH142: 382.8146604 | AI142: 594.4768497 | AJ142: 382.6021633
B143: 83070 | C143: Déléage | D143: 7 | E143: Municipalité | F143: 1862 | G143: 884 | H143: 2.106334842 | K143: Non disponible | M143: Non disponible | P143: Non disponible | Q143: Non disponible | R143: Non disponible | T143: Non disponible | W143: Non disponible | Y143: Non disponible | AA143: Non disponible | AC143: Non disponible | AE143: Non disponible | AG143: Non disponible | AI143: Non disponible
B144: 67025 | C144: Delson | D144: 16 | E144: Ville | F144: 8141 | G144: 3161 | H144: 2.575450807 | I144: 56879 | K144: Non disponible | M144: Non disponible | P144: Non disponible | Q144: Non disponible | R144: Non disponible | T144: Non disponible | U144: Non | V144: Oui | W144: 494.4774844 | X144: 395.1933954 | Y144: 536.9946482 | Z144: 395.1910943 | AA144: 583.3558165 | AB144: 395.1910943 | AC144: 592.6300481 | AD144: 395.2943602 | AE144: 545.2139972 | AF144: 395.2397705 | AG144: 588.6529196 | AH144: 395.0982642 | AI144: 451.5804556 | AJ144: 395.3197336
B145: 83005 | C145: Denholm | D145: 7 | E145: Municipalité | F145: 489 | G145: 227 | H145: 2.154185022 | K145: Non disponible | M145: Non disponible | P145: Non disponible | Q145: Non disponible | R145: Non disponible | T145: Non disponible | W145: Non disponible | Y145: Non disponible | AA145: Non disponible | AC145: Non disponible | AE145: Non disponible | AG145: Non disponible | AI145: Non disponible
B146: 93005 | C146: Desbiens | D146: 2 | E146: Ville | F146: 1007 | G146: 480 | H146: 2.097916667 | I146: 12516 | J146: 1 | K146: 2.77159144 | L146: ≤ 3,0 | M146: 348 | N146: ≤ 220 | O146: 38.5 | P146: 449 | Q146: Non disponible | R146: Non disponible | T146: Non disponible | U146: Non | V146: Oui | W146: 377.0042397 | X146: 368.8003366 | Y146: 320.2383375 | Z146: 369.4318373 | AA146: 547.8827402 | AB146: 369.2463748 | AC146: 409.663499 | AD146: 369.5590521 | AE146: Non disponible | AG146: 388.5858931 | AH146: 368.9460558 | AI146: 465.3853534 | AJ146: 368.6413974
B147: 38070 | C147: Deschaillons-sur-Saint-Laurent | D147: 17 | E147: Municipalité | F147: 872 | G147: 446 | H147: 1.955156951 | I147: 17280 | J147: 1 | K147: 0.8116622615 | L147: ≤ 3,0 | M147: 266 | N147: ≤ 220 | O147: 42.2 | P147: 435 | Q147: 1.012915094 | R147: 279 | S147: 42.18 | T147: 453 | U147: Non | V147: Oui | W147: 402.1463812 | X147: 366.4899011 | Y147: 386.4014729 | Z147: 365.6319654 | AA147: 397.8590664 | AB147: 365.3409974 | AC147: 382.7418909 | AD147: 366.8813992 | AE147: 422.0684921 | AF147: 367.2751865 | AG147: 458.0088194 | AH147: 365.9107923 | AI147: 411.9651652 | AJ147: 366.2106015
B148: 34058 | C148: Deschambault-Grondines | D148: 3 | E148: Municipalité | F148: 2246 | G148: 1041 | H148: 2.157540826 | I148: 61190 | J148: 1 | K148: 2.420460406 | L148: ≤ 3,0 | M148: 265 | N148: ≤ 220 | O148: 56.3 | P148: 506 | Q148: 2.09050761 | R148: 295 | S148: 56.25 | T148: 505 | U148: Non | V148: Oui | W148: 365.091776 | X148: 379.5351815 | Y148: 378.4673539 | Z148: 378.8949339 | AA148: 369.1786233 | AB148: 378.262215 | AC148: 356.6254783 | AD148: 378.0656858 | AE148: 408.0955319 | AF148: 377.9207139 | AG148: 525.6680937 | AH148: 377.6670435 | AI148: 530.8239997 | AJ148: 377.1153457
B149: 72010 | C149: Deux-Montagnes | D149: 15 | E149: Ville | F149: 17998 | G149: 7496 | H149: 2.401013874 | I149: 76041 | J149: 1 | K149: 0.8472413282 | L149: ≤ 2,1 | M149: 385 | N149: ≤ 184 | O149: 52.73 | P149: 424 | Q149: 3.126216908 | R149: 385 | S149: 52.7 | T149: 474 | U149: Non | V149: Non | W149: 470.7685985 | X149: 406.7182675 | Y149: 417.4496333 | Z149: 406.8629558 | AA149: 489.7583858 | AB149: 406.6179604 | AC149: 474.7265484 | AD149: 406.9172057 | AE149: 490.9464595 | AF149: 406.8400292 | AG149: 492.0320882 | AH149: 406.4526403 | AI149: 477.100655 | AJ149: 406.5437306
B150: 31015 | C150: Disraeli | D150: 12 | E150: Ville | F150: 2374 | G150: 1200 | H150: 1.978333333 | I150: 23393 | J150: 1 | K150: 3.849279719 | L150: ≤ 3,0 | M150: 134 | N150: ≤ 220 | O150: 49.18976085 | P150: 444 | Q150: Non disponible | R150: Non disponible | T150: Non disponible | U150: Non | W150: Non disponible | Y150: Non disponible | AA150: Non disponible | AC150: Non disponible | AE150: 408.4987276 | AF150: 377.9810796 | AG150: 462.2107589 | AH150: 377.9709906 | AI150: 490.792607 | AJ150: 378.2037748
B151: 31020 | C151: Disraeli (P) | D151: 12 | E151: Paroisse | F151: 1138 | G151: 480 | H151: 2.370833333 | I151: 22500 | K151: Non disponible | M151: Non disponible | P151: Non disponible | Q151: 5.245092994 | R151: 211 | S151: 45 | T151: 458 | U151: Non | W151: Non disponible | Y151: 370.7965169 | Z151: 378.4039148 | AA151: 419.7173029 | AB151: 377.7940286 | AC151: 412.6553893 | AD151: 377.6655829 | AE151: Non disponible | AG151: Non disponible | AI151: Non disponible
B152: 44023 | C152: Dixville | D152: 5 | E152: Municipalité | F152: 714 | G152: 242 | H152: 2.950413223 | I152: 4088 | J152: 1 | K152: 0.5040171307 | L152: ≤ 3,0 | M152: 243 | N152: ≤ 220 | O152: 54 | P152: 306 | Q152: 0.6726922402 | R152: 256 | S152: 54 | T152: 295 | U152: Oui | V152: Oui | W152: 262.3779905 | X152: 350.3757792 | Y152: 344.2005035 | Z152: 348.2357509 | AA152: 270.9451525 | AB152: 348.6475988 | AC152: 295.08922 | AD152: 346.3085752 | AE152: 300.4044396 | AF152: 349.0104562 | AG152: 318.8281777 | AH152: 348.4475901 | AI152: 350.9638682 | AJ152: 348.4475901
B153: 92022 | C153: Dolbeau-Mistassini | D153: 2 | E153: Ville | F153: 14039 | G153: 6045 | H153: 2.322415219 | I153: 93795 | J153: 2 | K153: 4.915514812 | M153: 216 | N153: ≤ 220 | O153: 71.00177749 | P153: 464 | Q153: 1.256397197 | R153: 320 | S153: 71.42526662 | T153: 456 | U153: Non | V153: Oui | W153: 436 | X153: 396 | Y153: 501.3066978 | Z153: 402.2074788 | AA153: 540.5899622 | AB153: 402.2874849 | AC153: 493.746988 | AD153: 402.4451411 | AE153: 487.5257633 | AF153: 402.4897219 | AG153: 487.8255693 | AH153: 402.48971 | AI153: 498.4404092 | AJ153: 403.1484188
B154: 66142 | C154: Dollard-Des Ormeaux | D154: 6 | E154: Ville | F154: 50453 | G154: 17619 | H154: 2.863556388 | I154: 207220 | J154: 2 | K154: 5.960546888 | M154: 298 | N154: ≤ 220 | O154: 48 | P154: 438 | Q154: 8.445071391 | R154: 308 | S154: 48 | T154: 505 | U154: Non | V154: Non | W154: 600.3350024 | X154: 426.8500024 | Y154: 572 | Z154: 427 | AA154: 548.4040133 | AB154: 426.8174833 | AC154: 892 | AD154: 384.8109409 | AE154: 923 | AF154: 384.7419511 | AG154: 941 | AH154: 384.7419511 | AI154: 487.8120207 | AJ154: 386.8095923
B155: 34025 | C155: Donnacona | D155: 3 | E155: Ville | F155: 7337 | G155: 3144 | H155: 2.333651399 | I155: 56836 | J155: 1 | K155: 2.646368089 | L155: ≤ 3,0 | M155: 244 | N155: ≤ 220 | O155: 42 | P155: 386 | Q155: 1.924283076 | R155: 268 | S155: 42 | T155: 371 | U155: Non | V155: Oui | W155: 311.7777654 | X155: 396.2653288 | Y155: 327.4019834 | Z155: 395.3012081 | AA155: 339.1953067 | AB155: 395.7013382 | AC155: 355.2318713 | AD155: 395.7581705 | AE155: 431.2926699 | AF155: 394.1341957 | AG155: 470.2476277 | AH155: 393.0449904 | AI155: 440.1423733 | AJ155: 392.6068875
B156: 66087 | C156: Dorval | D156: 6 | E156: Cité | F156: 20040 | G156: 9101 | H156: 2.201955829 | I156: 137790 | J156: 1 | K156: 18.87868874 | L156: ≤ 3,1 | M156: 308 | N156: ≤ 220 | O156: 47.28 | P156: 1138 | Q156: 14.31786628 | R156: 308 | S156: 48.4 | T156: 1067 | U156: Non | V156: Non | W156: 1217.373725 | X156: 408 | Y156: 1246 | Z156: 408 | AA156: 1433.18668 | AB156: 407.729122 | AC156: 1571.827699 | AD156: 407.540987 | AE156: Non disponible | AG156: 1477.874516 | AH156: 407.1189899 | AI156: 1449.21381 | AJ156: 407.1477804
B157: 33040 | C157: Dosquet | D157: 12 | E157: Municipalité | F157: 982 | G157: 402 | H157: 2.44278607 | K157: Non disponible | M157: Non disponible | P157: Non disponible | Q157: Non disponible | R157: Non disponible | T157: Non disponible | W157: Non disponible | Y157: Non disponible | AA157: Non disponible | AC157: Non disponible | AE157: Non disponible | AG157: Non disponible | AI157: Non disponible
B158: 49058 | C158: Drummondville | D158: 17 | E158: Ville | F158: 78345 | G158: 35069 | H158: 2.234024352 | I158: 488161 | J158: 1 | K158: 5.263215921 | L158: ≤ 2,2 | M158: 247 | N158: ≤ 184 | O158: 46.3 | P158: 509 | Q158: 2.229524586 | R158: 191 | S158: 46.33 | T158: 488 | U158: Non | V158: Oui | W158: 480.6487024 | X158: 425.7417751 | Y158: 458.3403037 | Z158: 425.4984643 | AA158: 460.9413528 | AB158: 425.4824804 | AC158: 487.5288298 | AD158: 425.2074738 | AE158: 493.6252026 | AF158: 425.0696 | AG158: 517.191566 | AH158: 424.0544763 | AI158: 482.3891755 | AJ158: 424.7977749
B159: 41117 | C159: Dudswell | D159: 5 | E159: Municipalité | F159: 1794 | G159: 662 | H159: 2.709969789 | I159: 3857 | J159: 1 | K159: 2.621559736 | L159: ≤ 3,0 | M159: 239 | N159: ≤ 220 | O159: 37.2 | P159: 335 | Q159: 1.6262264 | R159: 177 | S159: 32.34 | T159: 260 | U159: Oui | V159: Oui | W159: 237.1629667 | X159: 350.0672968 | Y159: 278.9033039 | Z159: 350.2188865 | AA159: 224.7097993 | AB159: 350.7192812 | AC159: 326.4055454 | AD159: 350.7007526 | AE159: 332.7934764 | AF159: 347.4673606 | AG159: 257.2800019 | AH159: 350.5974007 | AI159: 254.7918615 | AJ159: 352.2993703
B160: 80135 | C160: Duhamel | D160: 7 | E160: Municipalité | F160: 433 | G160: 223 | H160: 1.941704036 | I160: 1658 | J160: 1 | K160: 1.554082876 | L160: ≤ 2,0 | M160: 438 | N160: ≤ 184 | O160: 35.2 | P160: 582 | Q160: 2.513301831 | R160: 425 | S160: 35.1535 | T160: 785 | U160: Non | V160: Non | W160: 352.9645751 | X160: 333.8409888 | Y160: 461.7149556 | Z160: 333.5682443 | AA160: 546.8007302 | AB160: 333.203535 | AC160: 378.2037268 | AD160: 335.0058698 | AE160: 464.951228 | AF160: 334.3730844 | AG160: 493.2089752 | AH160: 334.7323658 | AI160: 329.3329363 | AJ160: 336.0796183
B161: 85030 | C161: Duhamel-Ouest | D161: 8 | E161: Municipalité | F161: 879 | G161: 356 | H161: 2.469101124 | K161: Non disponible | M161: Non disponible | P161: Non disponible | Q161: Non disponible | R161: Non disponible | T161: Non disponible | W161: Non disponible | Y161: Non disponible | AA161: Non disponible | AC161: Non disponible | AE161: Non disponible | AG161: Non disponible | AI161: Non disponible
B162: 69075 | C162: Dundee (CT) | D162: 16 | E162: Canton | F162: 372 | G162: 140 | H162: 2.657142857 | K162: Non disponible | M162: Non disponible | P162: Non disponible | Q162: Non disponible | R162: Non disponible | T162: Non disponible | W162: Non disponible | Y162: Non disponible | AA162: Non disponible | AC162: Non disponible | AE162: Non disponible | AG162: Non disponible | AI162: Non disponible
B163: 46050 | C163: Dunham | D163: 16 | E163: Ville | F163: 3524 | G163: 1452 | H163: 2.426997245 | K163: Non disponible | M163: Non disponible | P163: Non disponible | Q163: Non disponible | R163: Non disponible | T163: Non disponible | W163: Non disponible | Y163: Non disponible | AA163: Non disponible | AC163: Non disponible | AE163: Non disponible | AG163: Non disponible | AI163: Non disponible
B164: 87005 | C164: Duparquet | D164: 8 | E164: Ville | F164: 688 | G164: 340 | H164: 2.023529412 | I164: 11176 | K164: Non disponible | M164: Non disponible | P164: Non disponible | Q164: 0.8078066434 | R164: 445 | S164: 50 | T164: 498 | U164: Non | V164: Oui | W164: 517.8591348 | X164: 361.3784127 | Y164: Non disponible | AA164: Non disponible | AC164: Non disponible | AE164: 422.8848307 | AF164: 359.930486 | AG164: 475.7304138 | AH164: 358.317882 | AI164: 533.9258482 | AJ164: 358.9669304
B165: 87085 | C165: Dupuy | D165: 8 | E165: Municipalité | F165: 907 | G165: 361 | H165: 2.512465374 | I165: 7733.89 | J165: 1 | K165: 5.341106757 | L165: ≤ 3,0 | M165: 121 | N165: ≤ 220 | O165: 53 | P165: 364 | Q165: 1.295187959 | R165: 265 | S165: 52.5 | T165: 341 | W165: Non disponible | Y165: Non disponible | AA165: Non disponible | AC165: Non disponible | AE165: Non disponible | AG165: 366.4934066 | AH165: 362.9117829 | AI165: 344.7645485 | AJ165: 363.7297971
B166: 49015 | C166: Durham-Sud | D166: 17 | E166: Municipalité | F166: 1082 | G166: 366 | H166: 2.956284153 | I166: 6202 | J166: 1 | K166: 1.051848702 | L166: ≤ 3,0 | M166: 163 | N166: ≤ 220 | O166: 61.9 | P166: 220 | Q166: 1.114535776 | R166: 181 | S166: 60 | T166: 236 | U166: Oui | V166: Oui | W166: 201.4672374 | X166: 361.8549831 | Y166: 240.1407555 | Z166: 359.5867077 | AA166: 245.6342692 | AB166: 359.8178155 | AC166: 242.3057638 | AD166: 360.017233 | AE166: 304.6997121 | AF166: 358.4146549 | AG166: 315.5746721 | AH166: 358.3253368 | AI166: 274.2946708 | AJ166: 359.0118463
B167: 41060 | C167: East Angus | D167: 5 | E167: Ville | F167: 3826 | G167: 1700 | H167: 2.250588235 | I167: 41009 | K167: Non disponible | M167: Non disponible | P167: Non disponible | Q167: 5.558782039 | R167: 249 | S167: 34.5 | T167: 437 | U167: Non | V167: Non | W167: 462.2868438 | X167: 386.5219772 | Y167: 419.983126 | Z167: 386.5000017 | AA167: Non disponible | AC167: Non disponible | AE167: Non disponible | AG167: Non disponible | AI167: 552.5080851 | AJ167: 385.3211003
B168: 31122 | C168: East Broughton | D168: 12 | E168: Municipalité | F168: 2192 | G168: 1050 | H168: 2.087619048 | I168: 26607 | K168: Non disponible | M168: Non disponible | P168: Non disponible | Q168: Non disponible | R168: Non disponible | T168: Non disponible | U168: Non | V168: Oui | W168: 391.6745942 | X168: 378.647323 | Y168: 401.0877652 | Z168: 378.7863408 | AA168: 397.0282713 | AB168: 378.6066871 | AC168: Non disponible | AE168: Non disponible | AG168: 318.486394 | AH168: 378.8004564 | AI168: 500.8650865 | AJ168: 378.6992852
B169: 46085 | C169: East Farnham | D169: 16 | E169: Municipalité | F169: 576 | G169: 240 | H169: 2.4 | K169: Non disponible | M169: Non disponible | P169: Non disponible | Q169: Non disponible | R169: Non disponible | T169: Non disponible | W169: Non disponible | Y169: Non disponible | AA169: Non disponible | AC169: Non disponible | AE169: Non disponible | AG169: Non disponible | AI169: Non disponible
B170: 44010 | C170: East Hereford | D170: 5 | E170: Municipalité | F170: 264 | G170: 110 | H170: 2.4 | I170: 1406 | J170: 1 | K170: 0.6425868066 | L170: ≤ 3,0 | M170: 179 | N170: ≤ 220 | O170: 35 | P170: 209 | Q170: 0.6426825009 | R170: 158 | S170: 35 | T170: 186 | U170: Oui | V170: Oui | W170: 158.8440758 | X170: 337.249027 | Y170: 200.8094006 | Z170: 334.1755426 | AA170: 190.7260541 | AB170: 334.5525816 | AC170: 317.2374429 | AD170: 332.7988993 | AE170: 274.587519 | AF170: 328.6835241 | AG170: 271.5783699 | AH170: 331.378423 | AI170: 308.8803089 | AJ170: 331.378423
B171: 45093 | C171: Eastman | D171: 5 | E171: Municipalité | F171: 2069 | G171: 914 | H171: 2.263676149 | I171: 13685 | J171: 1 | K171: 9.969322993 | L171: ≤ 3,0 | M171: 164 | N171: ≤ 220 | O171: 42 | P171: 660 | Q171: 5.546329361 | R171: 214 | S171: 42 | T171: 542 | U171: Non | V171: Non | W171: 470.1414379 | X171: 363.0334955 | Y171: 556.1757073 | Z171: 362.0895528 | AA171: 676.4451357 | AB171: 362.9887622 | AC171: 876.7930749 | AD171: 362.807086 | AE171: Non disponible | AG171: 649.3349661 | AH171: 362.9160929 | AI171: 656.9577049 | AJ171: 365.5453372
B172: 83075 | C172: Egan-Sud | D172: 7 | E172: Municipalité | F172: 502 | G172: 222 | H172: 2.261261261 | K172: Non disponible | M172: Non disponible | P172: Non disponible | Q172: Non disponible | R172: Non disponible | T172: Non disponible | W172: Non disponible | Y172: Non disponible | AA172: Non disponible | AC172: Non disponible | AE172: Non disponible | AG172: Non disponible | AI172: Non disponible
B173: 69050 | C173: Elgin | D173: 16 | E173: Municipalité | F173: 399 | G173: 115 | H173: 3.469565217 | K173: Non disponible | M173: Non disponible | P173: Non disponible | Q173: Non disponible | R173: Non disponible | T173: Non disponible | W173: Non disponible | Y173: Non disponible | AA173: Non disponible | AC173: Non disponible | AE173: Non disponible | AG173: Non disponible | AI173: Non disponible
B174: 62053 | C174: Entrelacs | D174: 14 | E174: Municipalité | F174: 916 | G174: 868 | H174: 1.055299539 | K174: Non disponible | M174: Non disponible | P174: Non disponible | Q174: Non disponible | R174: Non disponible | T174: Non disponible | W174: Non disponible | Y174: Non disponible | AA174: Non disponible | AC174: Non disponible | AE174: Non disponible | AG174: Non disponible | AI174: Non disponible
B175: 6025 | C175: Escuminac | D175: 11 | E175: Municipalité | F175: 539 | G175: 253 | H175: 2.130434783 | K175: Non disponible | M175: Non disponible | P175: Non disponible | Q175: Non disponible | R175: Non disponible | T175: Non disponible | W175: Non disponible | Y175: Non disponible | AA175: Non disponible | AC175: Non disponible | AE175: Non disponible | AG175: Non disponible | AI175: Non disponible
B176: 10005 | C176: Esprit-Saint | D176: 1 | E176: Municipalité | F176: 326 | G176: 165 | H176: 1.975757576 | K176: Non disponible | M176: Non disponible | P176: Non disponible | Q176: Non disponible | R176: Non disponible | T176: Non disponible | W176: Non disponible | Y176: Non disponible | AA176: Non disponible | AC176: Non disponible | AE176: Non disponible | AG176: Non disponible | AI176: Non disponible
B177: 77011 | C177: Estérel | D177: 15 | E177: Ville | F177: 205 | G177: 387 | H177: 0.5297157623 | I177: 2185 | J177: 1 | K177: 0.6356425659 | L177: ≤ 3,0 | M177: 219 | N177: ≤ 220 | O177: 56 | P177: 2299 | Q177: 1.032696299 | R177: 219 | S177: 56 | T177: 2826 | U177: Non | V177: Oui | W177: 2147.188628 | X177: 332.7430162 | Y177: 1966.984475 | Z177: 332.7430162 | AA177: 2037.332111 | AB177: 332.7430162 | AC177: 1487.017825 | AD177: 332.7430162 | AE177: 462.1615942 | AF177: 332.7430162 | AG177: 1028.267447 | AH177: 332.7430162 | AI177: 3659.17755 | AJ177: 316.0439971
B178: 46112 | C178: Farnham | D178: 16 | E178: Ville | F178: 9604 | G178: 4076 | H178: 2.3562316 | I178: 50000 | J178: 1 | K178: 0.4330688513 | L178: ≤ 3,0 | M178: 218 | N178: ≤ 220 | O178: 49.2 | P178: 349 | Q178: 1.970779264 | R178: 241 | S178: 49.2 | T178: 351 | U178: Non | V178: Oui | W178: 356.0560672 | X178: 397.7546698 | Y178: 362.4916462 | Z178: 397.2729205 | AA178: 446.2187266 | AB178: 397.1570292 | AC178: 443.9810831 | AD178: 397.0271752 | AE178: 630.858328 | AF178: 394.6062176 | AG178: 551.8197744 | AH178: 394.0834361 | AI178: 583.472872 | AJ178: 393.9643648
B179: 80005 | C179: Fassett | D179: 7 | E179: Municipalité | F179: 448 | G179: 228 | H179: 1.964912281 | I179: 10159 | J179: 1 | K179: 1.571510589 | L179: ≤ 2,0 | M179: 139 | N179: ≤ 184 | O179: 38 | P179: 209 | Q179: Non disponible | R179: Non disponible | T179: Non disponible | W179: Non disponible | Y179: 288.3033005 | Z179: 362.9903206 | AA179: 256.0274069 | AB179: 363.4021449 | AC179: Non disponible | AE179: Non disponible | AG179: 316.664479 | AH179: 361.220601 | AI179: 368.3357006 | AJ179: 360.6292155
B180: 94220 | C180: Ferland-et-Boilleau | D180: 2 | E180: Municipalité | F180: 565 | G180: 245 | H180: 2.306122449 | I180: 4759 | J180: 1 | K180: 0.5674205111 | L180: ≤ 3,0 | M180: 184 | N180: ≤ 220 | O180: 42 | P180: 226 | Q180: 1.115827987 | R180: 145 | S180: 35.153479 | T180: 207 | U180: Oui | V180: Oui | W180: 256.5687952 | X180: 340.7214869 | Y180: 291.6069622 | Z180: 339.8020525 | AA180: 247.2317066 | AB180: 339.6223988 | AC180: 228.5478642 | AD180: 339.6524029 | AE180: 219.8573321 | AF180: 339.9211886 | AG180: 294.1964027 | AH180: 338.8550261 | AI180: 353.7659025 | AJ180: 341.7237751
B181: 79097 | C181: Ferme-Neuve | D181: 15 | E181: Municipalité | F181: 2740 | G181: 1166 | H181: 2.349914237 | I181: 22841 | J181: 1 | K181: 2.408983156 | L181: ≤ 3,0 | M181: 198 | N181: ≤ 220 | O181: 46 | P181: 299 | Q181: 1.364705688 | R181: 230 | S181: 46 | T181: 304 | V181: Oui | W181: 237.6812151 | X181: 381.7091889 | Y181: 246.8053351 | Z181: 381.5206982 | AA181: Non disponible | AC181: Non disponible | AE181: Non disponible | AG181: Non disponible | AI181: Non disponible
B182: 97035 | C182: Fermont | D182: 9 | E182: Ville | F182: 2455 | G182: 1244 | H182: 1.973472669 | I182: 23385 | J182: 1 | K182: 3.243021196 | L182: ≤ 3,0 | M182: 211 | N182: ≤ 220 | O182: 58.3 | P182: 501 | Q182: Non disponible | R182: Non disponible | T182: Non disponible | U182: Non | W182: Non disponible | Y182: Non disponible | AA182: 530.1418477 | AB182: 383.1993981 | AC182: Non disponible | AE182: Non disponible | AG182: 776.1448745 | AH182: 382.7873501 | AI182: 912.2957226 | AJ182: 382.2682379
B183: 95045 | C183: Forestville | D183: 9 | E183: Ville | F183: 2929 | G183: 1336 | H183: 2.192365269 | I183: 35140 | K183: Non disponible | M183: Non disponible | P183: Non disponible | Q183: Non disponible | R183: Non disponible | T183: Non disponible | U183: Non | W183: Non disponible | Y183: 734.474962 | Z183: 382.9973432 | AA183: 704.7551928 | AB183: 383.3703585 | AC183: Non disponible | AE183: Non disponible | AG183: 519.6716234 | AH183: 382.9358185 | AI183: 598.9921545 | AJ183: 383.1422596
B184: 84060 | C184: Fort-Coulonge (VL) | D184: 7 | E184: Village | F184: 1382 | G184: 630 | H184: 2.193650794 | I184: 13642 | K184: Non disponible | M184: Non disponible | P184: Non disponible | Q184: Non disponible | R184: Non disponible | T184: Non disponible | U184: Non | W184: Non disponible | Y184: Non disponible | AA184: 409.1024088 | AB184: 372.0769069 | AC184: Non disponible | AE184: Non disponible | AG184: 472.179882 | AH184: 372.4331172 | AI184: 334.2531386 | AJ184: 373.0109335
B185: 38047 | C185: Fortierville | D185: 17 | E185: Municipalité | F185: 651 | G185: 266 | H185: 2.447368421 | I185: 4566 | J185: 1 | K185: 2.382028098 | L185: ≤ 3,0 | M185: 203 | N185: ≤ 220 | O185: 41.72 | P185: 296 | Q185: 1.257116152 | R185: 221 | S185: 39.9 | T185: 310 | U185: Oui | V185: Oui | W185: 242.0329948 | X185: 360.2234371 | Y185: 251.5751588 | Z185: 358.8983471 | AA185: 262.4057647 | AB185: 359.197778 | AC185: 280.760453 | AD185: 358.673797 | AE185: 315.4982095 | AF185: 359.2125299 | AG185: 315.2379488 | AH185: 358.4823003 | AI185: 300.529733 | AJ185: 358.353462
B186: 22010 | C186: Fossambault-sur-le-Lac | D186: 3 | E186: Ville | F186: 2092 | G186: 945 | H186: 2.213756614 | I186: 29429 | J186: 1 | K186: 0.7341804522 | L186: ≤ 3,0 | M186: 180 | N186: ≤ 220 | O186: 69 | P186: 286 | Q186: 0.5626030421 | R186: 220 | S186: 69 | T186: 273 | U186: Non | V186: Oui | W186: 280.6190819 | X186: 379.7092387 | Y186: 510.7016127 | Z186: 379.2764703 | AA186: 327.7258912 | AB186: 379.6317098 | AC186: 286.1008343 | AD186: 379.7151034 | AE186: 308.8418431 | AF186: 379.8189083 | AG186: 512.3759893 | AH186: 374.4781171 | AI186: 415.0687142 | AJ186: 375.3899311
B187: 26005 | C187: Frampton | D187: 12 | E187: Municipalité | F187: 1301 | G187: 549 | H187: 2.369763206 | I187: 8670 | J187: 1 | K187: 1.308372748 | L187: ≤ 2,0 | M187: 256 | N187: ≤ 184 | O187: 38.5 | P187: 304 | Q187: 0.730362826 | R187: 266 | S187: 49 | T187: 300 | U187: Non | V187: Oui | W187: 274.5917374 | X187: 364.1244583 | Y187: 354.8451049 | Z187: 363.1360109 | AA187: 417.4983015 | AB187: 362.588726 | AC187: 500.976656 | AD187: 362.8687499 | AE187: 527.462049 | AF187: 365.2933899 | AG187: 467.8155653 | AH187: 362.1236798 | AI187: 693.6073059 | AJ187: 361.8295141
B188: 69010 | C188: Franklin | D188: 16 | E188: Municipalité | F188: 1678 | G188: 572 | H188: 2.933566434 | I188: 2894 | K188: Non disponible | M188: Non disponible | P188: Non disponible | Q188: 1.25665039 | R188: 322 | S188: 42.1842 | T188: 391 | U188: Non | V188: Oui | W188: 471.3494122 | X188: 348.9017134 | Y188: 326.5471682 | Z188: 348.9017134 | AA188: 317.500503 | AB188: 347.9900682 | AC188: 344.7636154 | AD188: 346.1297073 | AE188: 309.0037745 | AF188: 346.0512085 | AG188: 207.8093185 | AH188: 350.8945164 | AI188: 320.8037914 | AJ188: 350.0969357
B189: 96015 | C189: Franquelin | D189: 9 | E189: Municipalité | F189: 290 | G189: 155 | H189: 1.870967742 | I189: 2716 | K189: Non disponible | M189: Non disponible | P189: Non disponible | Q189: Non disponible | R189: Non disponible | T189: Non disponible | U189: Non | V189: Oui | W189: 374.0225457 | X189: 345.9263181 | Y189: 297.8207516 | Z189: 345.9304999 | AA189: 462.6601031 | AB189: 345.2221865 | AC189: Non disponible | AE189: Non disponible | AG189: 480.5826958 | AH189: 342.6223428 | AI189: 502.5954338 | AJ189: 342.6223428
B190: 46010 | C190: Frelighsburg | D190: 16 | E190: Municipalité | F190: 1144 | G190: 512 | H190: 2.234375 | I190: 1857 | K190: Non disponible | M190: Non disponible | P190: Non disponible | Q190: Non disponible | R190: Non disponible | T190: Non disponible | U190: Non | W190: Non disponible | Y190: 333.0788475 | Z190: 344.5037746 | AA190: 363.535194 | AB190: 344.9009551 | AC190: 251.6496394 | AD190: 346.8413831 | AE190: Non disponible | AG190: 366.2543163 | AH190: 345.0103841 | AI190: 217.6877177 | AJ190: 346.7048738
B191: 30025 | C191: Frontenac | D191: 5 | E191: Municipalité | F191: 1763 | G191: 729 | H191: 2.418381344 | I191: 5818 | J191: 1 | K191: 0.6073443442 | L191: ≤ 3,0 | M191: 194 | N191: ≤ 220 | O191: 45.7 | P191: 222 | Q191: Non disponible | R191: Non disponible | T191: Non disponible | U191: Oui | V191: Oui | W191: 212.0542165 | X191: 356.3106769 | Y191: 245.2160337 | Z191: 355.8331512 | AA191: 252.382632 | AB191: 355.6981337 | AC191: 269.3597 | AD191: 357.5635445 | AE191: Non disponible | AG191: 429.7069051 | AH191: 351.6153675 | AI191: 390.6375337 | AJ191: 351.5385896
B192: 85055 | C192: Fugèreville | D192: 8 | E192: Municipalité | F192: 316 | G192: 146 | H192: 2.164383562 | K192: Non disponible | M192: Non disponible | P192: Non disponible | Q192: Non disponible | R192: Non disponible | T192: Non disponible | W192: Non disponible | Y192: Non disponible | AA192: Non disponible | AC192: Non disponible | AE192: Non disponible | AG192: Non disponible | AI192: Non disponible
B193: 87020 | C193: Gallichan | D193: 8 | E193: Municipalité | F193: 490 | G193: 187 | H193: 2.620320856 | I193: 1385 | K193: Non disponible | M193: Non disponible | P193: Non disponible | Q193: 3.121196042 | R193: 217 | S193: 42 | T193: 360 | W193: Non disponible | Y193: Non disponible | AA193: Non disponible | AC193: Non disponible | AE193: Non disponible | AG193: Non disponible | AI193: Non disponible
B194: 3005 | C194: Gaspé | D194: 11 | E194: Ville | F194: 15179 | G194: 6531 | H194: 2.324146379 | I194: 109715 | J194: 2 | K194: 4.029764965 | M194: 411 | N194: ≤ 220 | O194: 63 | P194: 875 | Q194: 7.467232137 | R194: 355 | S194: 63.29044483 | T194: 859 | U194: Non | V194: Non | W194: 869.6690751 | X194: 396.2359035 | Y194: Non disponible | AA194: Non disponible | AC194: Non disponible | AE194: Non disponible | AG194: Non disponible | AI194: 1226.140078 | AJ194: 396.0934
B195: 81017 | C195: Gatineau | D195: 7 | E195: Ville | F195: 286755 | G195: 125773 | H195: 2.279940846 | I195: 1349600 | J195: 1 | K195: 3.358088852 | L195: ≤ 4,0 | M195: 250 | N195: ≤ 220 | O195: 43.57 | P195: 373 | Q195: 2.972377759 | R195: 250 | S195: 48.6 | T195: 374 | U195: Non | V195: Non | W195: 365.9390721 | X195: 443.6137293 | Y195: 406.0795703 | Z195: 443.4927847 | AA195: Non disponible | AC195: Non disponible | AE195: 402.5647492 | AF195: 443.1353506 | AG195: 431.0702609 | AH195: 442.972279 | AI195: 436.8089938 | AJ195: 442.6322585
B196: 92055 | C196: Girardville | D196: 2 | E196: Municipalité | F196: 986 | G196: 469 | H196: 2.102345416 | I196: 11298 | J196: 1 | K196: 1.261225448 | L196: ≤ 3,0 | M196: 231 | N196: ≤ 220 | O196: 56 | P196: 318 | Q196: 1.159109048 | R196: 276 | S196: 56 | T196: 385 | V196: Oui | W196: 214.3044848 | X196: 369.0575633 | Y196: Non disponible | AA196: 299.4534647 | AB196: 366.3946281 | AC196: 286.4460981 | AD196: 366.1570213 | AE196: Non disponible | AG196: 518.4947105 | AH196: 363.6107485 | AI196: 499.3757803 | AJ196: 363.9275835
B197: 96010 | C197: Godbout (VL) | D197: 9 | E197: Village | F197: 254 | G197: 140 | H197: 1.814285714 | K197: Non disponible | M197: Non disponible | P197: Non disponible | Q197: Non disponible | R197: Non disponible | T197: Non disponible | W197: Non disponible | Y197: Non disponible | AA197: Non disponible | AC197: Non disponible | AE197: Non disponible | AG197: Non disponible | AI197: Non disponible
B198: 69060 | C198: Godmanchester (CT) | D198: 16 | E198: Canton | F198: 1423 | G198: 434 | H198: 3.278801843 | K198: Non disponible | M198: Non disponible | P198: Non disponible | Q198: Non disponible | R198: Non disponible | T198: Non disponible | W198: Non disponible | Y198: Non disponible | AA198: Non disponible | AC198: Non disponible | AE198: Non disponible | AG198: Non disponible | AI198: Non disponible
B199: 76025 | C199: Gore (CT) | D199: 15 | E199: Canton | F199: 1969 | G199: 1114 | H199: 1.767504488 | K199: Non disponible | M199: Non disponible | P199: Non disponible | Q199: Non disponible | R199: Non disponible | T199: Non disponible | W199: Non disponible | Y199: Non disponible | AA199: Non disponible | AC199: Non disponible | AE199: Non disponible | AG199: Non disponible | AI199: Non disponible
B200: 99060 | C200: Gouvernement régional d'Eeyou Istchee Baie-James | D200: 10 | E200: Municipalité | F200: 1079 | G200: 646 | H200: 1.670278638 | I200: 23782 | K200: Non disponible | M200: Non disponible | P200: Non disponible | Q200: Non disponible | R200: Non disponible | T200: Non disponible | U200: Non | W200: Non disponible | Y200: Non disponible | AA200: 483.022172 | AB200: 368.8813621 | AC200: 518.171886 | AD200: 369.1931499 | AE200: 543.6924964 | AF200: 369.1101965 | AG200: 619.6874803 | AH200: 367.5706379 | AI200: 609.6337836 | AJ200: 368.4448276
B201: 83032 | C201: Gracefield | D201: 7 | E201: Ville | F201: 2458 | G201: 1144 | H201: 2.148601399 | I201: 8973 | K201: Non disponible | M201: Non disponible | P201: Non disponible | Q201: Non disponible | R201: Non disponible | T201: Non disponible | U201: Non | V201: Non | W201: 582.7195337 | X201: 358.1228654 | Y201: 700.4603315 | Z201: 356.649362 | AA201: 439.0259409 | AB201: 361.4402326 | AC201: 400.8255332 | AD201: 363.3114858 | AE201: 452.573502 | AF201: 362.6510043 | AG201: 547.5708029 | AH201: 362.6382144 | AI201: 550.0698809 | AJ201: 362.6382144
B202: 47017 | C202: Granby | D202: 16 | E202: Ville | F202: 68599 | G202: 30605 | H202: 2.241431139 | I202: 275170 | J202: 1 | K202: 0.07830933365 | L202: ≤ 2,1 | M202: 268 | N202: ≤ 184 | O202: 56 | P202: 465 | Q202: 2.066063152 | R202: 207 | S202: 56 | T202: 425 | U202: Non | V202: Oui | W202: 441.2423588 | X202: 422.2173614 | Y202: 453.6204573 | Z202: 422.1441177 | AA202: 477.2835955 | AB202: 421.9967295 | AC202: 517.4524491 | AD202: 421.6494792 | AE202: 535.8778381 | AF202: 421.8788172 | AG202: 562.5571382 | AH202: 421.1591756 | AI202: 599.0261971 | AJ202: 420.8168922
B203: 2015 | C203: Grande-Rivière | D203: 11 | E203: Ville | F203: 3429 | G203: 1555 | H203: 2.205144695 | I203: 28983 | J203: 1 | K203: 14.69625183 | L203: ≤ 3,0 | M203: 519 | N203: ≤ 220 | O203: 46 | P203: 1031 | Q203: 8.857698564 | R203: 454 | S203: 45.5 | T203: 846 | U203: Non | W203: Non disponible | Y203: Non disponible | AA203: Non disponible | AC203: 1249.139378 | AD203: 382.6837216 | AE203: Non disponible | AG203: 1125.271949 | AH203: 381.1460007 | AI203: 1385.150129 | AJ203: 381.3395077
B204: 35040 | C204: Grandes-Piles (VL) | D204: 4 | E204: Village | F204: 445 | G204: 247 | H204: 1.801619433 | I204: 4863 | K204: Non disponible | M204: Non disponible | P204: Non disponible | Q204: 1.848082196 | R204: 422 | S204: 42 | T204: 551 | U204: Non | W204: Non disponible | Y204: Non disponible | AA204: Non disponible | AC204: Non disponible | AE204: 548.030137 | AF204: 352.2382782 | AG204: 467.5215541 | AH204: 355.0293971 | AI204: 460.8894183 | AJ204: 355.2867896
... 931 more rows
